{"text_format":"3","workbook":"xlsx","n_sheets":1,"sheets":["Sheet1"],"not_rendered":{"defined_names":1,"comments":1},"read":"whole","date_system":"1900"}

{"sheet":"Sheet1","index":0,"n_rows":398,"n_cols":19,"rows_kept":398,"merged":[[0,0,0,3],[1,0,2,18],[3,0,3,18],[4,0,6,0],[4,1,6,1],[4,2,6,2],[4,3,6,3],[4,4,6,4],[4,5,6,5],[4,6,4,11],[4,12,4,15],[4,16,6,16],[4,17,6,17],[4,18,6,18],[5,6,6,6],[5,7,6,7],[5,8,6,8],[5,9,6,9],[5,10,6,10],[5,11,6,11],[5,12,6,12],[5,13,5,15],[7,0,10,0],[7,1,10,1],[8,2,10,2],[8,3,10,3],[8,4,10,4],[8,5,10,5],[8,17,10,17],[8,18,10,18],[11,0,12,0],[11,1,12,1],[11,2,12,2],[11,3,12,3],[11,4,12,4],[11,5,12,5],[14,0,15,0],[14,1,15,1],[14,2,15,2],[14,3,15,3],[14,4,15,4],[14,5,15,5],[17,0,20,0],[17,1,20,1],[19,2,20,2],[19,3,20,3],[19,4,20,4],[19,5,20,5],[19,17,20,17],[19,18,20,18],[21,0,32,0],[21,1,32,1],[22,2,23,2],[22,3,23,3],[22,4,23,4],[22,5,23,5],[30,2,32,2],[30,3,32,3],[30,4,32,4],[30,5,32,5],[35,0,41,0],[35,1,41,1],[38,2,40,2],[38,3,40,3],[38,4,40,4],[38,5,40,5],[38,17,40,17],[38,18,40,18],[42,0,51,0],[42,1,51,1],[42,2,43,2],[42,3,43,3],[42,4,43,4],[42,5,43,5],[42,17,43,17],[42,18,43,18],[48,2,49,2],[48,3,49,3],[48,4,49,4],[48,5,49,5],[48,17,49,17],[48,18,49,18],[52,0,57,0],[52,1,57,1],[53,2,54,2],[53,3,54,3],[53,4,54,4],[53,5,54,5],[56,2,57,2],[56,3,57,3],[56,4,57,4],[56,5,57,5],[59,0,60,0],[59,1,60,1],[59,2,60,2],[59,3,60,3],[59,4,60,4],[59,5,60,5],[59,18,60,18],[63,0,78,0],[63,1,78,1],[63,2,68,2],[63,3,68,3],[63,4,68,4],[63,5,68,5],[63,6,65,6],[63,7,65,7],[63,8,65,8],[63,9,65,9],[63,10,65,10],[63,11,65,11],[63,12,65,12],[63,13,65,13],[63,14,65,14],[63,15,65,15],[63,16,65,16],[63,17,68,17],[63,18,68,18],[66,6,68,6],[66,7,68,7],[66,8,68,8],[66,9,68,9],[66,10,68,10],[66,11,68,11],[66,12,68,12],[66,13,68,13],[66,14,68,14],[66,15,68,15],[66,16,68,16],[69,2,70,2],[69,3,70,3],[69,4,70,4],[69,5,70,5],[69,6,70,6],[69,7,70,7],[69,8,70,8],[69,9,70,9],[69,10,70,10],[69,11,70,11],[69,12,70,12],[69,13,70,13],[69,14,70,14],[69,15,70,15],[69,16,70,16],[69,17,70,17],[69,18,70,18],[71,2,76,2],[71,3,76,3],[71,4,76,4],[71,5,76,5],[71,6,72,6],[71,7,72,7],[71,8,72,8],[71,9,72,9],[71,10,72,10],[71,11,72,11],[71,12,72,12],[71,13,72,13],[71,14,72,14],[71,15,72,15],[71,16,72,16],[71,17,76,17],[71,18,76,18],[73,6,75,6],[73,7,75,7],[73,8,75,8],[73,9,75,9],[73,10,75,10],[73,11,75,11],[73,12,75,12],[73,13,75,13],[73,14,75,14],[73,15,75,15],[73,16,75,16],[77,2,78,2],[77,3,78,3],[77,4,78,4],[77,5,78,5],[77,6,78,6],[77,7,78,7],[77,8,78,8],[77,9,78,9],[77,10,78,10],[77,11,78,11],[77,12,78,12],[77,13,78,13],[77,14,78,14],[77,15,78,15],[77,16,78,16],[77,17,78,17],[77,18,78,18],[81,0,82,0],[81,1,82,1],[81,2,82,2],[81,3,82,3],[81,4,82,4],[81,5,82,5],[81,17,82,17],[81,18,82,18],[83,0,91,0],[83,1,91,1],[86,2,87,2],[86,3,87,3],[86,4,87,4],[86,5,87,5],[86,17,87,17],[86,18,87,18],[88,2,90,2],[88,3,90,3],[88,4,90,4],[88,5,90,5],[88,17,90,17],[88,18,90,18],[94,0,101,0],[94,1,101,1],[94,2,101,2],[94,3,101,3],[94,4,101,4],[94,5,101,5],[103,0,104,0],[103,1,104,1],[103,2,104,2],[103,3,104,3],[103,4,104,4],[103,5,104,5],[105,0,106,0],[105,1,106,1],[105,2,106,2],[105,3,106,3],[105,4,106,4],[105,5,106,5],[110,0,113,0],[110,1,113,1],[110,2,111,2],[110,3,111,3],[110,4,111,4],[110,5,111,5],[116,0,120,0],[116,1,120,1],[116,2,118,2],[116,3,118,3],[116,4,118,4],[116,5,118,5],[119,2,120,2],[119,3,120,3],[119,4,120,4],[119,5,120,5],[121,0,125,0],[121,1,125,1],[121,2,123,2],[121,3,123,3],[121,4,123,4],[121,5,123,5],[124,2,125,2],[124,3,125,3],[124,4,125,4],[124,5,125,5],[133,0,134,0],[133,1,134,1],[133,2,134,2],[133,3,134,3],[133,4,134,4],[133,5,134,5],[136,0,137,0],[136,1,137,1],[136,2,137,2],[136,3,137,3],[136,4,137,4],[136,5,137,5],[141,0,142,0],[141,1,142,1],[141,2,142,2],[141,3,142,3],[141,4,142,4],[141,5,142,5],[145,0,147,0],[145,1,147,1],[148,0,149,0],[148,1,149,1],[150,0,152,0],[150,1,152,1],[153,0,154,0],[153,1,154,1],[155,0,156,0],[155,1,156,1],[157,0,159,0],[157,1,159,1],[162,0,163,0],[162,1,163,1],[164,0,166,0],[164,1,166,1],[167,0,168,0],[167,1,168,1],[170,0,171,0],[170,1,171,1],[172,0,174,0],[172,1,174,1],[175,0,176,0],[175,1,176,1],[177,0,178,0],[177,1,178,1],[179,0,180,0],[179,1,180,1],[183,0,185,0],[183,1,185,1],[183,2,185,2],[183,3,185,3],[183,4,185,4],[183,5,185,5],[183,17,185,17],[183,18,185,18],[187,0,188,0],[187,1,188,1],[189,0,190,0],[189,1,190,1],[194,0,195,0],[194,1,195,1],[194,17,195,17],[194,18,195,18],[209,0,211,0],[209,1,211,1],[209,2,210,2],[209,3,210,3],[209,4,210,4],[209,5,210,5],[209,17,210,17],[209,18,210,18],[213,0,214,0],[213,1,214,1],[213,17,214,17],[216,0,217,0],[216,1,217,1],[216,2,217,2],[216,3,217,3],[216,4,217,4],[216,17,217,17],[226,0,228,0],[226,1,228,1],[226,2,227,2],[226,3,227,3],[226,4,227,4],[226,5,227,5],[229,0,230,0],[229,1,230,1],[233,0,234,0],[233,1,234,1],[235,0,238,0],[235,1,238,1],[237,2,238,2],[237,3,238,3],[237,4,238,4],[237,5,238,5],[239,0,244,0],[239,1,244,1],[239,2,240,2],[239,3,240,3],[239,4,240,4],[239,5,240,5],[241,2,243,2],[241,3,243,3],[241,4,243,4],[241,5,243,5],[245,0,246,0],[245,1,246,1],[247,0,248,0],[247,1,248,1],[249,0,253,0],[249,1,253,1],[250,2,251,2],[250,3,251,3],[250,4,251,4],[250,5,251,5],[254,0,255,0],[254,1,255,1],[256,0,257,0],[256,1,257,1],[258,0,259,0],[258,1,259,1],[260,0,262,0],[260,1,262,1],[263,0,265,0],[263,1,265,1],[266,0,267,0],[266,1,267,1],[266,2,267,2],[266,3,267,3],[266,4,267,4],[266,5,267,5],[268,0,269,0],[268,1,269,1],[271,0,272,0],[271,1,272,1],[274,0,277,0],[274,1,277,1],[274,17,277,17],[274,18,277,18],[278,0,280,0],[278,1,280,1],[278,17,280,17],[278,18,280,18],[279,2,280,2],[279,3,280,3],[279,4,280,4],[279,5,280,5],[281,0,282,0],[281,1,282,1],[281,17,282,17],[281,18,282,18],[283,0,284,0],[283,1,284,1],[283,17,284,17],[283,18,284,18],[285,0,288,0],[285,1,288,1],[285,17,288,17],[285,18,288,18],[286,2,287,2],[286,3,287,3],[286,4,287,4],[286,5,287,5],[289,0,292,0],[289,1,292,1],[289,17,292,17],[289,18,292,18],[291,2,292,2],[291,3,292,3],[291,4,292,4],[291,5,292,5],[293,0,294,0],[293,1,294,1],[293,17,294,17],[293,18,294,18],[302,0,305,0],[302,1,305,1],[302,18,305,18],[306,0,307,0],[306,1,307,1],[306,18,307,18],[309,0,310,0],[309,1,310,1],[309,18,310,18],[311,0,312,0],[311,1,312,1],[311,2,312,2],[311,3,312,3],[311,4,312,4],[311,5,312,5],[311,18,312,18],[313,0,314,0],[313,1,314,1],[313,18,314,18],[315,0,317,0],[315,1,317,1],[315,18,317,18],[316,2,317,2],[316,3,317,3],[316,4,317,4],[316,5,317,5],[318,0,319,0],[318,1,319,1],[318,2,319,2],[318,3,319,3],[318,18,319,18],[326,0,327,0],[326,1,327,1],[326,2,327,2],[326,3,327,3],[326,4,327,4],[326,5,327,5],[330,0,332,0],[330,1,332,1],[334,0,335,0],[334,1,335,1],[351,0,352,0],[351,1,352,1],[353,0,354,0],[353,1,354,1],[355,0,356,0],[355,1,356,1],[357,0,358,0],[357,1,358,1],[360,0,361,0],[360,1,361,1],[360,2,361,2],[360,3,361,3],[360,4,361,4],[360,5,361,5],[360,17,361,17],[360,18,361,18],[362,0,363,0],[362,1,363,1],[362,2,363,2],[362,3,363,3],[362,4,363,4],[362,5,363,5],[365,0,366,0],[365,1,366,1],[365,2,366,2],[365,3,366,3],[365,4,366,4],[365,5,366,5],[365,17,366,17],[365,18,366,18],[369,0,370,0],[369,1,370,1],[369,17,370,17],[369,18,370,18],[373,0,374,0],[373,1,374,1],[373,17,374,17],[373,18,374,18],[380,0,382,0],[380,1,382,1],[380,17,382,17],[380,18,382,18],[383,0,385,0],[383,1,385,1],[383,2,385,2],[383,3,385,3],[383,4,385,4],[383,5,385,5],[383,17,385,17],[383,18,385,18],[386,0,388,0],[386,1,388,1],[386,17,388,17],[386,18,388,18],[389,0,394,0],[389,1,394,1],[392,2,393,2],[392,3,393,3],[392,4,393,4],[392,5,393,5],[392,17,393,17],[392,18,393,18],[395,0,397,0],[395,1,397,1],[395,2,397,2],[395,3,397,3],[395,4,397,4],[395,5,397,5]]}
["附件2"]
["贵阳贵安2026年公开招聘事业单位工作人员岗位一览表"]
[]
["注：1.本岗位表来源贵阳市人力资源和社会保障局官方网站（http://rsj.guiyang.gov.cn/），请考生通过官方网站下载查阅。\n2.“岗位类别”设A、B、C类，其中，A类为管理人员岗位，B类为专业技术人员岗位，C类为教师岗位。笔试考试大纲类别统一为综合管理类（A类），综合管理类（A类）考试大纲详见“贵州人事考试信息网”-《事业单位公开招聘分类考试公共科目笔试考试大纲（2026年版）》。\n"]
["序号","主管单位","单位代码","招聘单位","单位\n性质","招聘\n总人数","岗位",{"$nulls":5},"要求",{"$nulls":3},"其它招聘条件","单位地址","联系人及联系电话"]
[{"$nulls":6},"岗位\n代码","招聘人数","岗位\n类别","岗位名称","岗位职能简介","是否组织专业测试（试教）","学历","专业"]
[{"$nulls":13},"大专","本科","硕士研究生及以上专业"]
[1,"中共贵阳市委政法委员会","0101","贵阳市关爱中心","全额拨款",2,20101010101,2,"A","管理岗位","从事特殊人员教育工作。","否","本科及以上",null,"哲学专业、宗教学专业、科学社会主义专业、中国共产党历史专业、思想政治教育专业、马克思主义理论专业、汉语言文学专业、汉语言专业、应用语言学专业","马克思主义哲学专业、宗教学专业、科学社会主义与国际共产主义运动专业、中共党史专业、马克思主义基本原理专业、思想政治教育专业、语言学及应用语言学专业","1.中共党员（含预备党员）； \n2.具有与学历、专业相应的学位。","贵阳市观山湖区林城东路3号","邓羽斯\n0851-88935096"]
[null,null,{"v":102,"d":"0102"},"贵阳市社会治理综合服务中心","全额拨款",4,20101010201,1,"A","管理岗位","从事办公室综合管理、公文写作、统筹协调、后勤保障、综合调研等工作。","否","本科及以上",null,"汉语言文学专业、中国语言与文化专业、汉语言专业、法学专业、秘书学专业、社会学专业、社会工作专业、哲学类（一级学科）、马克思主义理论类（一级学科）、政治学类（一级学科）、新闻传播学类（一级学科）","社会学专业、社会工作专业、中国语言文学（一级学科）、法学（一级学科）、哲学（一级学科）、政治学（一级学科）、马克思主义理论（一级学科）、新闻传播学（一级学科）","1.中共党员（含预备党员）；\n2.具有与学历、专业相应的学位。","贵阳市观山湖区林城东路3号","张元春\n0851-87989964"]
[{"$nulls":6},20101010202,2,"A","管理岗位","从事综合业务类、负责统筹协调、公文写作、综合调研等工作。","否","本科及以上",null,"不限专业","不限专业","1.中共党员（含预备党员）；\n2.具有与学历、专业相应的学位；\n3.具有1年及以上基层工作经历的高校毕业生。"]
[{"$nulls":6},20101010203,1,"B","专业技术岗位","从事数据采集、信息收集、动态监测、数据分析、信息安全管理等工作；协助办公室综合性日常工作和公文写作等相关工作。","否","本科及以上",null,"计算机类（一级学科）、电子信息类（一级学科）、大数据管理与应用专业、数学与应用数学专业、信息与计算科学专业、数据计算及应用专业、概率论与数理统计专业、统计学专业、应用统计学专业、数据科学专业","计算数学专业、概率论与数理统计专业、应用数学专业、统计学（一级学科）、信息与通信工程（一级学科）、计算机科学与技术（一级学科）、网络空间安全（一级学科）","1.中共党员（含预备党员）； \n2.具有与学历、专业相应的学位。"]
[2,"中共贵阳市委网络安全和信息化委员会办公室","0103","贵阳市互联网舆情研究中心","全额拨款",2,20101010301,1,"A","管理岗位","从事网络安全和信息化工作。","否","本科及以上",null,"法学专业、汉语言文学专业、网络与新媒体专业、财务管理专业、计算机科学与技术专业、信息安全专业","法学(一级学科)、中国语言文学（一级学科）、新闻与传播(专硕）、计算机科学与技术（一级学科）","1.中共党员（含预备党员）；\n2.具有与学历、专业相应的学位；\n3.该岗位需要开展24小时应急值守、经常性参与处理突发应急工作。","贵阳市观山湖区市级行政中心市委大楼四楼 ","易小波 \n 13885645153"]
[{"$nulls":6},20101010302,1,"A","管理岗位","从事网络安全和信息化工作。","否","研究生",null,null,"专业不限","1.中共党员（含预备党员）；\n2.具有与学历、专业相应的学位；\n3.该岗位需要开展24小时应急值守、经常性参与处理突发应急工作。","贵阳市观山湖区市级行政中心市委大楼四楼 ","易小波 \n 13885645153"]
[{"$f":"MAX($A$1:A13)+1","v":3},"贵阳市信访局",{"v":104,"d":"0104"},"贵阳市人民群众来访接待服务中心","全额拨款",1,20101010401,1,"B","专业技术岗位","从事财务相关工作。","否","本科及以上",null,"会计学专业、财务管理专业、审计学专业","会计学专业、会计（专硕）、审计（专硕）","1.具有中级及以上会计专业技术资格且具有两年及以上会计相关工作经历；                         \n2.具有与学历、专业相应的学位。","贵阳市观山湖区金华园街道金阳北路304号","马紫涵\n13176170673"]
[{"$f":"MAX($A$1:A14)+1","v":4},"贵阳市市委直属",{"v":105,"d":"0105"},"贵阳孔学堂文化传播中心","全额拨款",2,20101010501,1,"A","管理岗位","从事综合协调、文稿起草；活动组织、宣传推广、国际传播等相关工作。","否","本科及以上",null,"思想政治教育专业、马克思主义理论专业、汉语言文学专业、哲学（一级学科）、历史学（一级学科)、播音与主持艺术专业","历史学（学科门类）、哲学（一级学科）、中国语言文学（一级学科）、新闻传播学（一级学科）、马克思主义理论（一级学科）、政治学（一级学科）","\n具有与学历、专业相应的学位。\n","贵阳市花溪区董家堰贵阳孔学堂","刘波、李承园\n0851-83613818"]
[{"$nulls":6},20101010502,1,"B","专业技术岗位","从事学刊编辑、管理、宣传推广、融媒体等相关工作。","是","本科及以上",null,"编辑出版学专业、数字出版专业","新闻传播学（一级学科）、出版（专硕）","\n1.中共党员 （含预备党员）；                 2.具有与学历、专业相应的学位；                              \n3.具有中级及以上出版、新闻专业技术职称资格。","贵阳市花溪区董家堰贵阳孔学堂","刘波、李承园\n0851-83613818"]
[{"$f":"MAX($A$1:A16)+1","v":5},"贵阳市科学技术局",{"v":106,"d":"0106"},"贵阳生产力促进中心","全额拨款",1,20101010601,1,"A","管理岗位","从事科技管理，产业（行业）战略咨询等相关工作。","否","本科及以上",null,"电子信息类（一级学科）、环境科学与工程类（一级学科）","电子信息（一级学科）、环境科学与工程（一级学科）","1.具有与学历、专业相应的学位；\n2.定向招聘2026年度高校毕业生。","贵阳市观山湖区（高新）阳关大道28号西部研发基地2号楼14层","李心悛\n0851-85563291；\n牟长军\n0851-87989257"]
[{"$f":"MAX($A$1:A17)+1","v":6},"贵阳市工业和信息化局",{"v":107,"d":"0107"},"贵阳市中小企业服务中心","全额拨款",1,20101010701,1,"B","专业技术岗位","从事工业经济相关工作。","否","本科及以上",null,"经济学(学科门类)","经济学(学科门类)","1.具有与学历、专业相应的学位；                       2.具有1年及以上基层工作经历的高校毕业生。","贵阳市云岩区民生路钰达大厦A栋5楼","陈志\n0851-86581276"]
[null,null,{"v":108,"d":"0108"},"中关村贵阳科技园创新服务中心","全额拨款",1,20101010801,1,"A","管理岗位","从事工业产品推广工作，负责办公室日常工作，文字材料撰写等。","否","本科及以上",null,"市场营销专业、电子商务专业、物流管理专业","管理学(学科门类)","1.具有与学历、专业相应的学位；\n2.具有1年及以上基层工作经历的高校毕业生。","贵阳市云岩区延安中路48号世贸广场A座22楼","蔡丽娟\n0851-85555738"]
[null,null,{"v":109,"d":"0109"},"贵阳市煤炭安全生产技术中心","全额拨款",2,20101010901,1,"B","专业技术岗位","从事全市煤炭安全生产管理技术支持和服务工作。","是","本科及以上",null,"安全工程专业、应急技术与管理专业、安全生产监管专业","安全科学与工程（一级学科）","1.具有与学历、专业相应的学位；\n2.具有2年以上（含两年）井工煤矿安全现场管理经历或2年以上（含两年）煤矿基层监管部门直接从事煤矿安全监管工作经历；\n3.需下井从事煤矿安全检查工作，限男性报考。","贵阳市观山湖区市级行政中心","艾龙\n0851-87989355"]
[{"$nulls":6},20101010902,1,"B","专业技术岗位","从事全市煤炭安全生产管理技术支持和服务工作。","是","本科及以上",null,"地质工程专业、勘查技术与工程专业、资源勘查工程专业、测绘工程专业","地质资源与地质工程（一级学科）、测绘科学与技术（一级学科）","1.具有与学历、专业相应的学位；\n2.具有2年以上（含两年）井工煤矿安全现场管理经历或2年以上（含两年）煤矿基层监管部门直接从事煤矿安全监管工作经历；\n3.需下井从事煤矿安全检查工作，限男性报考。"]
[{"$f":"MAX($A$1:A21)+1","v":7},"贵阳市民政局",{"v":110,"d":"0110"},"贵阳市社会救助服务中心","全额拨款",1,20101011001,1,"A","管理岗位","负责做好低保、特困供养、服务类社会救助等政策咨询、综合服务相关工作。","否","本科及以上",null,"法学类（一级学科）、社会学类（一级学科）、公共管理类（一级学科）、心理学类（一级学科）","法学（一级学科）、社会学专业、社会工作专业、公共管理（一级学科）、心理学（一级学科）","1.具有与学历、专业相应的学位；          \n2.具有1年及以上基层工作经历的高校毕业生。","贵阳市观山湖区金阳北路306号","魏强\n0851-85832735"]
[null,null,{"v":111,"d":"0111"},"贵阳市精神病医院","全额拨款",3,20101011101,2,"B","专业技术岗位","男病区护理工作。","是","本科及以上",null,"护理学专业","护理专业、护理学专业","1.具有护士资格证、护士执业证；\n2.具有与学历、专业相应的学位。","贵阳市南明区见龙洞路291号\n","魏强\n0851-85832735"]
[{"$nulls":6},20101011102,1,"B","专业技术岗位","主要开展个案服务、小组活动、心理支持与教育等工作，使用社工工作方法，助力病患回归社会，协助康复治疗师、临床医师、病区医护等人员开展相关工作。","否","本科及以上",null,"不限专业","不限专业","1.中共党员（含预备党员）；                2.具有助理社会工作师及以上职业资格证书；\n3.具有与学历、专业相应的学位；         \n4.具有1年及以上基层工作经历的高校毕业生。","贵阳市南明区见龙洞路291号\n","魏强\n0851-85832735"]
[null,null,{"v":112,"d":"0112"},"贵阳市社会福利院","全额拨款",1,20101011201,1,"A","管理岗位","从事养老服务事业促进和发展研究、养老服务机构综合管理和老年人健康服务工作。","否","本科及以上",null,"老年学专业、养老服务管理专业、健康服务与管理专业、中国语言文学类（一级学科）、法学类（一级学科）","不限专业","1.中共党员（含预备党员）；\n2.具有与学历、专业相应的学位。","贵阳市云岩区大营路171号","魏强\n0851-85832735"]
[null,null,{"v":113,"d":"0113"},"贵阳市儿童福利院","全额拨款",1,20101011301,1,"A","管理岗位","负责单位采购及其他工作。","否","本科及以上",null,"采购管理专业、汉语言文学专业、行政管理专业","不限专业","1.具有与学历、专业相应的学位；\n2.定向招聘2026年度高校毕业生。","贵阳市龙洞堡龙水路111号","魏强\n0851-85832735"]
[null,null,{"v":114,"d":"0114"},"贵阳市康复医院","差额补贴",1,20101011401,1,"B","专业技术岗位","负责中医科日常诊疗工作。","是","本科及以上",null,"中医学类（一级学科）","中医学（一级学科）、中医专业","1.具有与学历、专业相应的学位；\n2.具有执业医师资格证。","贵阳市南明区指月街9号","魏强\n0851-85832735"]
[null,null,{"v":115,"d":"0115"},"贵阳市第二社会福利院","全额拨款",1,20101011501,1,"B","专业技术岗位","从事养老服务事业促进和发展研究、养老服务机构综合管理和老年人健康服务工作。","否","研究生",null,null,"不限专业","1.具有与学历、专业相应的学位；\n2.具有1年及以上基层工作经历的高校毕业生。","贵阳市南明区二福路7号","魏强\n0851-85832735"]
[null,null,{"v":116,"d":"0116"},"贵阳市殡葬管理所","全额拨款",1,20101011601,1,"A","管理岗位","从事殡葬管理相关工作。","否","研究生",null,null,"不限专业","1.中共党员（含预备党员）；\n2.具有与学历、专业相对应的学位；             \n3.具有1年及以上基层工作经历的高校毕业生。","贵阳市云岩区大营坡常青路57号","魏强\n0851-85832735"]
[null,null,{"v":117,"d":"0117"},"贵阳市慈善事业促进发展中心","全额拨款",1,20101011701,1,"A","管理岗位","从事社会组织服务；单位内部管理和财会管理等相关工作。","否","研究生",null,null,"审计专业、会计专业、会计学专业、税务专业、统计学专业、应用统计专业","1.具有与学历、专业相应的学位；\n2.具有初级及以上会计专业技术资格或初级审计师及以上资格证书；               \n3.具有1年及以上基层工作经历的高校毕业生。","贵阳市南明区指月街9号","魏强\n0851-85832735"]
[null,null,{"v":118,"d":"0118"},"贵阳市区划地名服务中心","差额补贴",3,20101011801,1,"A","管理岗位","从事公文写作及办公室日常工作。","否","本科及以上",null,"法学专业、汉语言文学专业、汉语言专业、中国语言与文化专业、秘书学专业、编辑出版学专业","不限专业","1.具有与学历、专业相应的学位；         \n2.具有1年及以上基层工作经历的高校毕业生。","贵阳市云岩区百花山路28号","魏强\n0851-85832735"]
[{"$nulls":6},20101011802,1,"B","专业技术岗位","从事档案收集、整理、鉴定、归档、保管等，严格按照《地名档案管理办法》等行业标准，对地名命名文件、行政区域界线勘界资料、地名普查档案文件、边界纠纷调处档案等不同类型资料进行分类归档。","否","本科及以上",null,"图书馆学专业、档案学专业、信息资源管理专业","图书情报与档案管理（一级学科）","具有与学历、专业相应的学位","贵阳市云岩区百花山路28号","魏强\n0851-85832735"]
[{"$nulls":6},20101011803,1,"B","专业技术岗位","从事地理测绘、地图绘制、空间数据采集与分析、地理信息数据库建设等工作，为行政区划界线精准管理、行政区划基础研究、地名实体位置精准标注升级提供技术支撑。","是","本科及以上",null,"测绘工程专业、遥感科学与技术专业，地理国情监测专业、地理空间信息工程专业、人文地理与城乡规划专业","测绘科学与技术（一级学科）、地质资源与地质工程（一级学科）、遥感科学与技术（一级学科）","具有与学历、专业相应的学位","贵阳市云岩区百花山路28号","魏强\n0851-85832735"]
[{"$f":"MAX($A$1:A33)+1","v":8},"贵阳市财政局",{"v":119,"d":"0119"},"贵阳市财政预算评审中心","全额拨款",1,20101011901,1,"B","专业技术岗位","从事财政预算评审相关工作。","否","本科及以上",null,"经济学(学科门类)","经济学(学科门类)","1.中共党员（含预备党员）；     2.具有与学历、专业相应的学位；\n3.具有1年及以上基层工作经历的高校毕业生。","贵阳市市级行政中心政府一期B区","张而立\n 0851-85806937"]
[{"$f":"MAX($A$1:A34)+1","v":9},"贵阳市人力资源和社会保障局",{"v":120,"d":"0120"},"贵阳市企业离退休人员托管中心","全额拨款",1,20101012001,1,"B","专业技术岗位","负责各项资金资产的财务管理与绩效评价工作；负责产业园运营经费、人社公共服务中心运行经费等各类费用的监督、管理及执行；协助园区招商、数据分析、资产管理维护、楼宇安全等运营管理工作。","否","本科及以上",null,"劳动经济学专业、经济学专业、数字经济专业","劳动经济学专业、产业经济学专业、数量经济学专业","1.具有初级及以上会计专业技术资格证；\n2.具有3年以上人力资源管理工作经验；\n3.具有与学历、专业相应的学位。","贵阳市观山湖区凯里路235号贵阳市人社公共服务中心11楼","吴海一\n0851-86824175"]
[{"$f":"MAX($A$1:A35)+1","v":10},"贵阳市自然资源和规划局",{"v":121,"d":"0121"},"贵阳市测绘院","自收自支",1,20101012101,1,"B","专业技术岗位","从事会计岗位相关工作。","是","研究生",null,null,"会计（专硕）、会计学专业、\n审计（专硕）、审计学专业","1.具有与学历、专业相应的学位；\n2.具有中级及以上会计专业技术资格证书（或具有注册会计师职业资格证书）；\n3.具有2年及以上相关工作经历。\n\n","贵阳市观山湖区桃林路1号","苏菲\n0851-85868871"]
[null,null,{"v":122,"d":"0122"},"贵阳市城乡规划展览馆","全额拨款",1,20101012201,1,"B","专业技术岗位","从事宣传讲解、布展策划、科普教育等工作。","是","本科及以上",null,"播音与主持艺术专业、音乐学专业、广播电视学专业、网络与新媒体专业","新闻传播学（一级学科）、艺术学（一级学科）","1.具有与学历、专业相应的学位；\n2.具有普通话一级乙等及以上证书。","贵阳市观山湖区中天路2号","王修竹\n17385612040"]
[null,null,{"v":123,"d":"0123"},"贵阳市土地矿产资源储备中心","全额拨款",1,20101012301,1,"A","管理岗位","从事地块招商推介策划、图册设计，土地储备业务系统管理维护、网络信息安全等相关工作。","否","研究生",null,null,"新闻学专业、传播学专业、设计艺术学专业、计算机应用技术专业、网络空间安全专业","1.具有与学历、专业相应的学位；\n2.具有1年及以上基层工作经历的高校毕业生。","贵阳市云岩区瑞金北路23号","惠瑜琳\n0851-86508089"]
[null,null,{"v":124,"d":"0124"},"贵阳市不动产登记中心","全额拨款",3,20101012401,1,"A","管理岗位","从事登记系统开发和维护、数据管理、信息安全等相关工作。","否","本科及以上",null,"信息工程专业、网络工程专业、信息安全专业、网络空间安全专业、数据科学与大数据技术专业、信息管理与信息系统专业、大数据管理与应用专业","计算机科学与技术（一级学科）、网络空间安全（一级学科）","具有与学历、专业相应的学位","贵阳市观山湖区诚信腾祥.迈腾国际路二期B1","文慧\n0851-84855301"]
[{"$nulls":6},20101012402,1,"A","管理岗位","从事农村宅基地使用权、集体建设用地使用权、土地经营权等不动产登记公共服务及业务管理工作。","否","本科及以上",null,"土地资源管理专业、自然资源登记与管理专业、公共事业管理专业","土地资源管理专业、公共管理学科专业","1.具有与学历、专业相应的学位；\n2.具有1年及以上基层工作经历的高校毕业生。"]
[{"$nulls":6},20101012403,1,"A","管理岗位","从事林权确权登记等相关工作。","否","本科及以上",null,"林学专业、测绘工程专业、采矿工程专业","森林经理学专业、林学学科专业、林业专业、大地测量学与测量工程专业、测绘科学与技术学科专业、采矿工程专业","1.具有与学历、专业相应的学位；\n2.具有1年及以上基层工作经历的高校毕业生。"]
[null,null,{"v":125,"d":"0125"},"贵阳市自然资源市场管理服务中心","全额拨款",1,20101012501,1,"B","专业技术岗位","从事自然资源市场管理的事务性技术性工作，开展国有土地使用权招标、拍卖或者挂牌出让相关工作、国有土地使用权二级市场相关工作、开展自然资源分等定级及价格评估工作、组织开展自然资源资产价值评估和资产核算工作等。","是","本科及以上",null,"自然地理与资源环境专业、人文地理与城乡规划专业、地理信息科学专业、城乡规划专业、测绘工程专业、计算机科学与技术专业、网络工程专业、信息安全专业","地理学（一级学科）、测绘科学与技术（一级学科）、计算机科学与技术（一级学科）、信息与通信工程（一级学科）、城乡规划学（一级学科）、城市规划（一级学科）、网络空间安全（一级学科）","1.具有与学历、专业相应的学位；\n2.定向招聘2026年度高校毕业生。","贵阳市云岩区瑞金北路23号，5-6楼","杨琦\n18684167613"]
[{"$f":"MAX($A$1:A42)+1","v":11},"贵阳市住房和城乡建设局",{"v":126,"d":"0126"},"贵阳市建筑管理处","全额拨款",2,20101012601,1,"B","专业技术岗位","承担建筑工程质量安全监督服务等相关工作。","是","本科及以上",null,"土木工程专业、给排水科学与工程专业、勘查技术与工程专业、交通工程专业、建筑学专业、工程管理专业","建筑技术科学专业、结构工程专业、市政工程专业","1.具有2年及以上工作经历；\n2.该岗位需要到施工一线对危大工程、起重机械、防高空坠落监督检查，需要攀爬基坑、外脚手架、支模架、起重设备、大型机械等，适合男性报考。","贵阳市南明区新华路23号","徐彬荣\n0851-85826533"]
[{"$nulls":6},20101012602,1,"A","管理岗位","承担建筑市场管理服务、办公室行政管理等相关工作。","否","本科及以上",null,"经济学专业、社会工作专业、汉语言文学专业、秘书学专业、计算机科学与技术专业、行政管理专业、劳动与社会保障专业","汉语言文字学专业、行政管理专业、社会保障专业","1.具有与学历、专业相应的学位；\n2.具有2年及以上工作经历；\n3.中共党员（含预备党员）。"]
[null,null,{"v":127,"d":"0127"},"贵阳市城市建设档案馆","全额拨款",1,20101012701,1,"B","专业技术岗位","从事档案数字化、档案管理及其他工作。","是","本科及以上",null,"档案学专业、图书馆学专业、信息资源管理专业","档案学专业、情报学专业、图书情报与档案管理学专业","1.具有与学历、专业相应的学位；\n2.具有1年及以上基层工作经历的高校毕业生。","贵阳市云岩区半边街138号","李梅\n0851-86768880"]
[null,null,{"v":128,"d":"0128"},"贵阳市工程设计质量监督站","自收自支",1,20101012801,1,"B","专业技术岗位","从事会计、财务管理工作。","是","本科及以上",null,"会计学专业、财务管理专业、审计学专业","会计（一级学科）、审计（一级学科）","1.具有与学历、专业相应的学位；\n2.中共党员（含预备党员）；\n3.具有3年及以上财务工作经历。","贵阳市观山湖区诚信路西侧腾祥·迈德国际B2栋4楼","石倩\n18685035959\n"]
[null,null,{"v":129,"d":"0129"},"贵阳市房屋使用安全管理中心","差额补贴",1,20101012901,1,"B","专业技术岗位","开展城市房屋安全管理及城市危旧房改造等相关工作。","是","本科及以上",null,"土木工程专业、智能建造专业、工程管理专业","结构工程专业、岩土工程专业","1.具有与学历、专业相应的学位；\n2.定向招聘2026年度高校毕业生； \n3.该岗位需要到一线开展房屋使用安全检查和城市危旧房改造施工现场检查及应急值班值守和应急处置等相关工作，适合男性报考。","贵阳市云岩区中华北路18号银海大厦南四楼","车昊\n 13985545577"]
[null,null,{"v":130,"d":"0130"},"贵阳市住房保障中心","全额拨款",1,20101013001,1,"B","专业技术岗位","负责落实国家、省市保障房建设管理政策；负责项目建设跟踪管理；负责督促指导保障房运营管理。","是","本科及以上",null,"土木工程专业、工程管理专业、工程造价专业","工程管理（一级学科）、土木工程（一级学科）","1.具有与学历、专业相应的学位；\n2.具有2年及以上相关工作经历；\n3.该岗位需要到施工一线对项目建设，施工管理，手续办理，安全监督，防高空坠落监督检查，需要攀爬基坑，进入楼栋检查等，适合男性报考。","贵阳市云岩区中华中路178号燃气大厦10楼","罗黎\n0851-85814932"]
[null,null,{"v":131,"d":"0131"},"贵阳市房地产交易管理中心","自收自支",2,20101013101,1,"B","专业技术岗位","从事房产测绘成果应用审核及地理信息系统数据维护相关工作。","否","本科及以上",null,"测绘工程专业、遥感科学与技术专业、建筑学专业","建筑学（一级学科）、测绘科学与技术（一级学科）","1.中共党员（含预备党员）；\n2.以本科学历报考的，要求不低于2年测绘相关工作或建筑规划设计相关工作经历，以研究生学历报考的，无工作经历要求；\n3.具有与学历、专业相应的学位。","贵阳市南明区都司高架桥路39号","安明梅\n 15117490534"]
[{"$nulls":6},20101013102,1,"A","管理岗位","负责单位房产档案的规范化管理，包括档案的收集、整理、数字化、保管、利用及安全维护，确保档案完整性、准确性与保密性，为业务部门提供高效档案查询支持。","否","本科及以上",null,"档案学专业、图书馆学专业、信息资源管理专业","档案学专业、情报学专业、图书情报与档案管理学专业","1..中共党员（含预备党员）；\n2.具有与学历、专业相应的学位；\n3具有1年及以上基层工作经历的高校毕业生。"]
[null,null,{"v":132,"d":"0132"},"贵阳市燃气管理服务中心","全额拨款",1,20101013201,1,"B","专业技术岗位","从事财务管理相关工作。","是","本科及以上",null,"会计学专业、财务管理专业、审计学专业","会计（一级学科）、审计（一级学科）","1.中共党员（含预备党员）；\n2.具有初级及以上会计专业技术资格；\n3.具有与学历、专业相应的学位；\n4.具有1年及以上基层工作经历的高校毕业生。","贵阳市云岩区中华中路166号燃气大厦12楼","姚岑怡\n0851-85834044"]
[null,null,{"v":133,"d":"0133"},"贵阳市建设工程消防设计审查验收服务中心","全额拨款",1,20101013301,1,"B","专业技术岗位","承担建设工程消防设计审查验收服务等相关工作。","是","本科及以上",null,"建筑环境与能源应用工程专业、给排水科学与工程专业、建筑电气与智能化专业、消防工程专业","结构工程专业；\n供热、供燃气、通风及空调工程专业","1.具有与学历、专业相应的学位；\n2.具有3年及以上相关工作经历。","贵阳市观山湖区中天会展城SOHO商务区G座","聂玉林\n0851-82238651"]
[{"$f":"MAX($A$1:A52)+1","v":12},"贵阳市交通委员会",{"v":134,"d":"0134"},"贵阳市交通运输行业党建服务中心","全额拨款",1,20101013401,1,"A","管理岗位","从事纪检相关工作。","否","本科及以上",null,"法学专业、司法警察学专业、纪检监察专业","法学（一级学科）\n法律（一级学科）","1.中共党员（含预备党员）；\n2.具有与学历、专业相应的学位。","贵阳市观山湖区金融城7号楼13层","杨再敏\n 19117792015"]
[null,null,{"v":135,"d":"0135"},"贵阳市邮政业安全服务中心","全额拨款",2,20101013501,1,"A","管理岗位","从事邮政业安全管理相关工作。","否","本科及以上",null,"安全工程专业、邮政工程专业、交通运输专业、软件工程专业","安全科学与工程（一级学科）、交通运输（一级学科）","1.具有与学历、专业相应的学位；\n2.具有1年及以上基层工作经历的高校毕业生。","贵阳市观山湖区龙滩坝路迈德国际A3栋1201","王迪\n 18708628139"]
[{"$nulls":3},"贵阳市邮政业安全服务中心","全额事业单位",null,20101013502,1,"A","管理岗位","从事行业管理与申诉投诉相关工作。","否","本科及以上",null,"法学专业、社会学专业、社会工作专业、公共事业管理专业","法学（一级学科）、社会学（一级学科）、社会工作（一级学科）","具有与学历、专业相应的学位","贵阳市观山湖区龙滩坝路迈德国际A3栋1201","王迪\n 18708628139"]
[null,null,{"v":136,"d":"0136"},"贵阳市交通基础设施建设服务中心","全额拨款",1,20101013601,1,"B","专业技术岗位","负责市属公路、水路等交通基础设施建设技术服务工作。","否","本科及以上",null,"道路桥梁与渡河工程专业、城乡规划专业、土木工程专业、智能建造专业 、交通工程专业","土木工程（一级学科）、\n城乡规划学（一级学科）、\n交通运输规划与管理专业","1.具有与学历、专业相对应的学位；\n2.定向招聘2026年度高校毕业生。","贵阳市观山湖区金融城7号楼12楼","胡醒\n13595139384"]
[null,null,{"v":137,"d":"0137"},"贵阳市交通运输服务中心","全额拨款",2,20101013701,1,"A","管理岗位","从事交通运输服务及保障工作。","否","本科及以上",null,"交通运输类（一级学科）","交通运输（一级学科）","1.具有与学历、专业相对应的学位；\n2.定向招聘2026年度高校毕业生。","贵阳市观山湖区金融城7号楼13层","陈钥涵\n13984366772"]
[{"$nulls":3},"贵阳市交通运输服务中心","事业单位",null,20101013702,1,"A","管理岗位","从事交通运输法律服务相关工作。","否","本科及以上",null,"法学类（一级学科）","法学（一级学科）、法律（一级学科）","1.具有与学历、专业相对应的学位；\n2.定向招聘2026年度高校毕业生。","贵阳市观山湖区金融城7号楼13层","陈钥涵\n13984366772"]
[{"$f":"MAX($A$1:A58)+1","v":13},"贵阳市水务管理局",{"v":138,"d":"0138"},"贵阳市水旱灾害防御技术服务中心","全额拨款",1,20101013801,1,"B","专业技术岗位","从事水旱灾害防御技术工作。","否","本科及以上",null,"水利水电工程专业、水文与水资源工程专业、智慧水利专业","水利工程（一级学科）","具有与学历、专业相应的学位","贵阳市南明区市南路36号","汪文超\n13078561459"]
[{"$f":"MAX($A$1:A59)+1","v":14},"贵阳市文化和旅游局",{"v":139,"d":"0139"},"贵阳市图书馆","全额拨款",2,20101013901,1,"B","专业技术岗位","从事脚本撰写、阅读推广文案编写，阅读推广活动策划、组织实施、宣传等相关工作。","否","本科及以上",null,"新闻传播学类（一级学科）、中国语言文学类（一级学科）","新闻传播学（一级学科）、中国语言文学（一级学科）","1.中共党员（含预备党员）；                       2.具有与学历、专业相应的学位；               \n3.具有1年及以上基层工作经历的高校毕业生。","贵阳市南明区青云路201号","汪洋\n0851-85983863"]
[{"$nulls":6},20101013902,1,"B","专业技术岗位","从事馆内网络建设管理、系统维护等工作。","否","本科及以上",null,"计算机类（一级学科）、电子信息类（一级学科）","计算机科学与技术（一级学科）、信息与通信工程（一级学科）","1.中共党员（含预备党员）；                       2.具有与学历、专业相应的学位；              \n3.定向招聘2026年度高校毕业生。","贵阳市南明区青云路201号"]
[{"$f":"MAX($A$1:A61)+1","v":15},"贵阳市退役军人事务局",{"v":140,"d":"0140"},"贵阳市退役军人服务中心","全额拨款",1,20101014001,1,"B","专业技术岗位","从事会计工作及办公室日常工作。","否","本科及\n以上",null,"财政学类（一级学科）、金融学类（一级学科）、经济学类（一级学科）、会计学专业、财务管理专业、审计学专业","经济学（一级学科）、会计学专业、会计（专硕）、审计（专硕）","1.具有与学历、专业相应的学位；\n2.具有初级及以上会计专业技术资格。","贵阳市观山湖区金融城7号楼","张老师\n0851-84398928"]
[{"$f":"MAX($A$1:A62)+1","v":16},"贵阳市市场监督管理局",{"v":141,"d":"0141"},"贵阳市食品药品检验检测中心","全额拨款",1,20101014101,1,"B","专业技术岗位","从事药品检验工作。","是","本科及以上",null,"药学专业、药物分析专业、中药学专业","药物化学专业、药物分析学专业、微生物与生化药学专业","1.具有与学历、专业相应的学位；\n2.具有1年及以上基层工作经历的高校毕业生。","贵阳市观山湖区云潭南路609号","王皓\n0851-84827529"]
[{"$f":"MAX($A$1:A63)+1","v":17},"贵阳市体育局",{"v":142,"d":"0142"},"贵阳市体育中学","全额拨款",2,20101014201,1,"B","专业技术岗位","承担射击项目竞训工作。","是","本科及以上",null,"运动训练专业、体育教育专业、体能训练专业","体育专业、体育教学专业、运动训练专业","1.具有专业队训练经历3年以上的已退役运动员；\n2.持有射击一级运动员及以上证书；\n3.取得全国及以上射击项目赛事前八名成绩。","贵阳市云岩区东新路32号","代纯\n0851-85610934"]
[]
[]
[{"$nulls":6},20101014202,1,"B","专业技术岗位","承担射箭项目竞训工作。","是","本科及以上",null,"运动训练专业、体育教育专业、体能训练专业","体育专业、体育教学专业、运动训练专业","1.具有专业队训练经历3年以上的已退役运动员；\n2.持有射箭一级运动员及以上证书；\n3.取得全国及以上射箭项目赛事前八名成绩。"]
[{"$nulls":15},"运动训练"]
[]
[null,null,{"v":143,"d":"0143"},"贵阳市人民体育场","全额拨款",1,20101014301,1,"B","专业技术岗位","负责艺术体操项目的选拔、训练、比赛、输送等相关工作。","是","本科及以上",null,"运动训练专业、体育教育专业、社会体育指导与管理专业","体育学（一级学科）、体育（一级学科）","1.持有艺术体操一级运动员及以上证书；\n2.取得全国运动会、全国锦标赛、全国冠军赛及以上艺术体操项目赛事前八名成绩。","贵阳市云岩区北京路27号\n","潘旻\n15685900789"]
[]
[null,null,{"v":144,"d":"0144"},"贵阳市体育训练馆","全额拨款",3,20101014401,1,"B","专业技术岗位","承担全市乒乓球项目竞技训练及赛事活动组织。","是","本科及以上",null,"运动训练专业、体育教育专业、社会体育指导与管理专业","体育教育训练学专业、运动训练专业、社会体育指导专业","1.持有乒乓球一级运动员及以上证书；\n2.高考按照乒乓球高水平运动员录取进校的可不受专业限制（需提供相关证明）。","贵阳市云岩区北京路27号\n","张  卓\n13078570947\n\n吴靖康\n13124601313"]
[]
[{"$nulls":6},20101014402,1,"B","专业技术岗位","承担举重项目竞训工作。","是","本科及以上",null,"运动训练专业、体育教育专业、体能训练专业","体育专业、体育教学专业、运动训练专业","1.具有专业队训练经历3年以上的已退役运动员；\n2.持有举重一级运动员及以上证书；\n3.取得全国及以上举重项目赛事前八名成绩。"]
[]
[]
[{"$nulls":6},20101014403,1,"A","管理岗位","承担体育产业、经济及相关行政管理。","否","本科及以上",null,"体育经济与管理专业、休闲体育专业、社会体育指导与管理专业","体育教育训练学专业、竞赛组织专业、社会体育指导专业","具有一年及以上基层工作经历的高校毕业生。"]
[null,null,{"v":145,"d":"0145"},"贵阳市市民健身中心","全额拨款",1,20101014501,1,"B","专业技术岗位","贵阳市排球项目训练、赛事指导及运动员管理等相关工作。","是","本科及以上",null,"运动训练专业、体育教育专业、运动人体科学专业","体育教学专业、运动训练专业、体育教育训练学专业","1.持有排球一级运动员及以上证书；\n2.取得全国运动会、全国锦标赛及以上排球项目赛事前六名成绩。","贵阳市云岩区北京路104号","柴霞\n13639006438"]
[]
[{"$f":"MAX($A$1:A79)+1","v":18},"贵阳市统计局",{"v":146,"d":"0146"},"贵阳市经济运行监测中心","全额拨款",1,20101014601,1,"B","专业技术岗位","经济运行监测、统计资料管理。","否","本科及以上",null,"经济学类（一级学科）、\n数学类（一级学科）、\n统计学类（一级学科）","应用经济学(一级学科)、\n数学（一级学科）、\n统计学（一级学科）","1.具有与学历、专业相对应的学位；\n2.定向招聘2026年度高校毕业生。","贵阳市观山湖区市级行政中心市政府大楼","陈小爽\n0851-87989120"]
[{"$f":"MAX($A$1:A80)+1","v":19},"贵阳市国防动员办公室",{"v":147,"d":"0147"},"贵阳市人防工程管理服务中心","全额拨款",1,20101014701,1,"B","专业技术岗位","负责人防工程的日常维护、功能保养技术服务指导，为人防工程监督管理工作提供技术保障，不断提升专业水平和服务效能。","否","本科及以上",null,"土木类（一级学科）、建筑类（一级学科）、计算机类（一级学科）","计算机科学与技术类（一级学科）、建筑学（一级学科）、土木工程类（一级学科）","无","贵阳市云岩区北新区路100号","杨本席\n13628512425"]
[{"$f":"MAX($A$1:A81)+1","v":20},"贵阳市大数据发展管理局",{"v":148,"d":"0148"},"贵阳市大数据应用服务中心","全额拨款",3,20101014801,1,"B","专业技术岗位","从事大数据相关工作。","否","本科及以上",null,"人工智能专业、计算机科学与技术专业、网络工程专业、数据科学与大数据技术专业","计算机科学与技术（一级学科）、软件工程（一级学科）","1.具有与学历、专业相应的学位；\n2.具有人社部、工信部颁发的计算机技术与软件专业技术资格证书（初级及以上）。","贵阳市观山湖区市级行政中心二期D区三楼","曾臻\n0851-87988116"]
[null,"贵阳市大数据发展管理局",null,"贵阳市大数据应用服务中心","全额拨款",null,20101014802,2,"B","专业技术岗位","从事大数据相关工作。","否","本科及以上",null,"人工智能专业、计算机科学与技术专业、网络工程专业、数据科学与大数据技术专业","计算机科学与技术（一级学科）、软件工程（一级学科）","1.具有与学历、专业相应的学位；\n2.具有人社部、工信部颁发的计算机技术与软件专业技术资格证书（初级及以上）；                      \n3.具有1年及以上基层工作经历的高校毕业生。","贵阳市观山湖区市级行政中心二期D区三楼","曾臻：0851-87988116"]
[{"$f":"MAX($A$1:A83)+1","v":21},"贵阳市林业局",{"v":149,"d":"0149"},"贵阳市长坡岭国有林场","全额拨款",1,20101014901,1,"B","专业技术\n岗位","负责林场（公园）内工程造价、管理、计算金融相关工作。","否","本科及以上",null,"工程管理专业、工程造价专业、金融学专业","农林经济管理专业、林业经济管理专业、工程管理专业","1.定向招聘2026年度高校毕业生;\n2.具有与学历、专业相应的学位。","贵阳市白云区粑粑坳","许悦\n13984349860"]
[null,null,{"v":150,"d":"0150"},"贵阳市林业产业发展中心","全额拨款",1,20101015001,1,"A","管理岗位","承担林业产业经济发展规划、统计报告撰写及信息报送等工作。","否","本科及以上",null,"资源与环境经济学专业、国民经济管理专业、商务经济学专业","产业经济学专业、农林经济管理专业、林业经济管理专业","1.中共党员（含预备党员）；\n2.具有与学历、专业相应的学位；\n3.具有1年及以上基层工作经历的高校毕业生。","贵阳市南明区花溪大道北段城市印象办公楼十楼","熊莉\n0851-85966411"]
[null,null,{"v":151,"d":"0151"},"贵阳市顺海国有林场","全额拨款",1,20101015101,1,"A","管理岗位","公文写作、信息宣传、媒体平台内容服务、会议组织及记录等工作。","否","本科及以上",null,"汉语言文学专业、 汉语言专业、    新闻学专业","语言学及应用语言学专业、汉语言文字学专业、新闻传播学（一级学科）","具有与学历、专业相应的学位。\n","贵阳市乌当区新添大道北段粮技校路口","罗利君\n13017479492"]
[null,null,{"v":152,"d":"0152"},"贵阳市林长制工作服务中心","全额拨款",2,20101015201,1,"A","管理岗位","负责单位宣传、公文及行政管理等相关工作。","否","本科及以上",null,"新闻学专业、传播学专业、汉语言文学专业","新闻学专业、传播学专业、汉语言文字学专业","1.具有1年及以上基层工作经历的高校毕业生；\n2.具有与学历、专业相应的学位。","贵阳市南明区花溪大道北段275号","汪岚\n 0851-85962409"]
[{"$nulls":6},20101015202,1,"B","专业技术\n岗位","负责林草信息化科技赋能及森林资源调查、监测、管理等相关工作。","否","本科及以上",null,"计算机科学与技术专业、信息安全专业、智能科学与技术专业","计算机技术专业、大数据技术与工程专业、网络与信息安全专业","1.定向招聘2026年度高校毕业生;\n2.具有与学历、专业相应的学位。"]
[null,null,{"v":153,"d":"0153"},"贵阳阿哈湖国家湿地公园管理处","全额拨款",3,20101015301,1,"A","管理岗位","负责湿地科普宣教中心运营，自然教育活动以及各类科普宣教活动策划、宣传环境布置、宣传培训、撰写宣传新闻稿件等日常工作。","否","本科及以上",null,"新闻学专业、传播学专业、广告学专业、网络与新媒体专业","新闻传播学专业、新闻学专业、传播学专业、新闻传播学学科专业","具有与学历、专业相应的学位。","贵阳市南明区小车河路6号","刘文媛\n13984177199"]
[{"$nulls":6},20101015302,1,"B","专业技术\n岗位","负责公园内森林资源调查或森林资源监测，分析和评价森林资源的数量、质量、空间分布、动态变化及其与环境相互关系的专业性工作。","否","本科及以上",null,"林业工程类（一级学科）、林学专业、植物保护专业","林业工程（一级学科）、林业专业、植物学专业、野生动植物保护与利用专业","1.具有1年及以上基层工作经历的高校毕业生；\n2.因长期野外工作，适宜男性报考；\n3.具有与学历、专业相应的学位。"]
[{"$nulls":6},20101015303,1,"B","专业技术\n岗位","负责公园内经营管理项目的管理，各类资产价值的分析、估算。制定公园营销策略，优化公园运营模式，推动湿地公园价值转化等工作。","否","本科及以上",null,"金融学专业、金融工程专业、投资学专业","产业经济学专业、农林经济管理专业、林业经济管理专业","1.具有1年及以上基层工作经历的高校毕业生；\n2.具有与学历、专业相应的学位。"]
[null,null,{"v":154,"d":"0154"},"贵阳市天然林和公益林保护修复中心","全额拨款",1,20101015401,1,"B","专业技术\n岗位","天然林和公益林保护管理工作。","否","本科及以上",null,"林学类（一级学科）","森林培育专业、森林保护学专业、森林经理学专业","1.具有与学历、专业相应的学位；\n2.具有1年及以上基层工作经历的高校毕业生；\n2.因长期野外工作，适宜男性报考。","贵阳市花溪大道北段308号林业综合大楼8楼","王名芹\n13595070829"]
[{"$f":"MAX($A$1:A92)+1","v":22},"贵阳市粮食和物资储备局",{"v":155,"d":"0155"},"贵阳市军粮供应站","全额拨款",1,20101015501,1,"B","专业技术岗位","从事人事等相关工作。","否","研究生",null,null,"管理学(学科门类)、法学(学科门类)","1.中共党员（含预备党员）；\n2.具有与学历、专业相应的学位。","贵阳市南明区花溪大道中段76号","唐林龙  李田田 0851-85168440"]
[{"$f":"MAX($A$1:A93)+1","v":23},"贵阳市投资促进局",{"v":156,"d":"0156"},"贵阳市人民政府驻武汉办事处","全额拨款",1,20101015601,1,"A","管理岗位","从事招商引资、投资促进、产业发展研究等工作。","否","本科及以上",null,"经济学类(一级学科）、经济与贸易类(一级学科）、金融学专业、管理科学与工程类(一级学科）、工商管理类(一级学科）、计算机科学与技术专业、电子信息类(一级学科）","不限专业","1.具有与学历、专业相对应的学位；\n2.具有1年及以上基层工作经历的高校毕业生。","湖北省武汉市武昌区徐东大道迎宾华府B区1栋31层6号","闫徐 \n15071013149"]
[{"$f":"MAX($A$1:A94)+1","v":24},"贵阳市人民政府",{"v":157,"d":"0157"},"贵阳职业技术学院","全额拨款",10,20101015701,2,"C","教师岗位","承担动车组检修技术专业、铁道机车运用与维护专业核心课程教学，并承担实训室管理工作。","是","研究生",null,null,"电气工程（一级学科）、电子科学与技术（一级学科）、控制科学与工程（一级学科）、信息与通信工程（一级学科）、计算机科学与技术（一级学科）、机械工程（一级学科）","具有与学历、专业相应的学位","贵阳市观山湖区云潭南路609号","岑老师 \n0851-87981943"]
[{"$nulls":6},20101015702,1,"C","教师岗位","承担现代物流管理专业理论与实训教学工作，并承担一定的行政管理工作。","是","研究生",null,null,"物流管理专业、物流工程专业、物流与供应链管理专业","\n1.具有与学历、专业相应的学位；\n2.具有1年以上物流相关工作经历。","贵阳市观山湖区云潭南路609号","岑老师\n0851-87981943"]
[{"$nulls":6},20101015703,1,"C","教师岗位","承担导游、研学旅行、旅游规划、民宿方面的教学、实训和专业建设等工作，并承担一定的行政管理工作。","是","研究生",null,null,"旅游管理专业、生态旅游学专业、旅游地理与旅游规划专业","\n1.具有与学历、专业相应的学位；\n2.具有导游资格证；\n3.具有1年及以上的民宿管理工作经历。","贵阳市观山湖区云潭南路609号","岑老师\n0851-87981943"]
[{"$nulls":6},20101015704,1,"C","教师岗位","承担药学专业教学及科研等工作，并承担一定的行政管理工作。","是","研究生",null,null,"药学（一级学科）\n 中药学（一级学科）","\n1.具有与学历、专业相应的学位；\n2.具备执业药师资格证书；\n3.具有2年及以上医药企业相关工作经历。\n","贵阳市观山湖区云潭南路609号","岑老师\n0851-87981943"]
[{"$nulls":6},20101015705,2,"C","教师岗位","\n承担思政课相关课程教学及管理工作；思政课教师研修基地、大中小学思政课一体化研修中心等行政管理工作。","是","研究生",null,null,"马克思主义基本原理专业、\n马克思主义发展史专业、\n马克思主义中国化研究专业、\n国外马克思主义研究专业、\n思想政治教育专业、\n中国近现代史基本问题研究专业","\n1.中共党员（含预备党员）；\n2.具有与学历、专业相应的学位；\n3.定向招聘2026年度高校毕业生。","贵阳市观山湖区云潭南路609号","岑老师\n0851-87981943"]
[{"$nulls":6},20101015706,1,"C","教师岗位","承担体育课程教学，并能承担一定的行政管理工作。","是","研究生",null,null,"学科教育（体育）专业、运动训练专业、体育教学专业、体育教育训练学专业","具有与学历、专业相应的学位。","贵阳市观山湖区云潭南路609号","岑老师\n0851-87981943"]
[{"$nulls":6},20101015707,1,"C","教师岗位","承担数学课程教学，并能承担一定的行政管理工作。","是","研究生",null,null," 数学（一级学科）、学科教学（数学）专业","1.具有与学历、专业相应的学位；\n2.定向招聘2026年度高校毕业生。","贵阳市观山湖区云潭南路609号","岑老师\n0851-87981943"]
[{"$nulls":6},20101015708,1,"B","专业技术岗位","\n承担机房日常管理、机房硬件设备维护、机房软件与系统管理及实训教学相关工作。","否","研究生",null,null,"电子科学与技术（一级学科）、软件工程（一级学科）、计算机科学与技术（一级学科）、信息与通信工程（一级学科）","具有与学历、专业相应的学位。","贵阳市观山湖区云潭南路609号","岑老师\n0851-87981943"]
[{"$f":"MAX($A$1:A102)+1","v":25},"共青团贵阳市委",{"v":158,"d":"0158"},"贵阳市青少年宫","全额拨款",1,20101015801,1,"B","专业技术岗位","  从事青少年校外教育有关微电影拍摄、新媒体运营、活动策划相关工作及其他教研、教务等综合性工作。","否","本科及以上",null,"  新闻传播学类（一级学科）、\n  教育学类（一级学科）","  新闻传播学（一级学科）\n、教育学（一级学科）","具有与学历、专业相应的学位。","贵阳市观山湖区诚信南路399号","唐壮举  \n13765820315"]
[{"$f":"MAX($A$1:A103)+1","v":26},"云岩区信访局",{"v":201,"d":"0201"},"云岩区群众工作中心","全额拨款",2,20102020101,1,"A","管理岗位","负责群众接待登记和引导工作，做好政策解释。协助处理信访信件及相关文书工作。","否","本科及  以上 ",null,"法学专业、纪检监察专业、国家安全学专业","法学专业、纪检监察学专业、法律专业","1.中共党员（含预备党员）；\n2.具有与学历、专业相应的学位；\n3.具有2年及以上基层工作经历。       ","贵阳市云岩区渔安新城D组团4栋负三层1号","雷蕊\n0851-88238911"]
[{"$nulls":6},20102020102,1,"A","管理岗位","从事财务相关工作。","否","本科及  以上 ",null,"会计学专业、审计学专业、财务管理专业","会计专业、审计专业、\n公共管理学专业","1.中共党员（含预备党员）；\n2.具有与学历、专业相应的学位；\n3.具有初级及以上会计专业技术资格；\n4.具有2年及以上相关财务工作经历。","贵阳市云岩区渔安新城D组团4栋负三层1号","雷蕊\n0851-88238911"]
[{"$f":"MAX($A$1:A105)+1","v":27},"中共云岩区委社会工作部",{"v":202,"d":"0202"},"云岩区社会工作服务中心（云岩区志愿服务中心）","全额拨款",2,20102020201,1,"A","管理岗位","从事办公室综合管理及财务工作。","否","本科及  以上 ",null,"汉语言文学专业、新闻学专业、会计学专业\n","汉语言文字学专业、新闻学专业、会计学专业","具有与学历、专业相应的学位。","贵阳市云岩区新添大道南段299号","朱米芬\n0851-86610708"]
[{"$nulls":6},20102020202,1,"A","管理岗位","从事社会工作服务保障、社会工作专业人才队伍建设等相关工作。","否","本科及  以上 ",null,"社会学专业、社会工作专业、法学专业","社会学专业、民商法学专业、经济法学专业、诉讼法学专业","具有与学历、专业相应的学位","贵阳市云岩区新添大道南段299号","朱米芬\n0851-86610708"]
[{"$f":"MAX($A$1:A107)+1","v":28},"云岩区发展和改革局",{"$f":"MAX($C$8:C107)+1","v":{"v":203,"d":"0203"}},"云岩区投资项目建设服务中心","全额拨款",1,20102020301,1,"A","管理岗位","从事固定资产投资项目、重大工程和重点项目管理与监督，服务重点项目建设。","否","本科及以上",null,"不限","不限","1.中共党员（含预备党员）；\n2.具有与学历、专业相应的学位；\n3.定向招聘基层项目人员。","贵阳市云岩区新添大道南段229号","张雪\n0851-86679028"]
[{"$f":"MAX($A$1:A108)+1","v":29},"云岩区民政局",{"$f":"MAX($C$8:C108)+1","v":{"v":204,"d":"0204"}},"云岩区婚姻登记服务中心","全额拨款",1,20102020401,1,"A","管理岗位","主要负责民政婚姻、法律事务、法律审核、执法辅助等工作；协助局机关从事相关行业安全生产管理、法治政府建设等工作。","否","本科及  以上 ",null,"法学专业、知识产权专业、信用风险管理与法律防控专业","法学（一级学科）、政治学（一级学科）、社会学（一级学科）、马克思主义理论（一级学科）","1.具有与学历、专业相应的学位；\n2.具有A类法律职业资格证书。","贵阳市云岩区未来方舟D12组团","刘佳丽\n0851-86870423"]
[{"$f":"MAX($A$1:A109)+1","v":30},"云岩区财政局",{"$f":"MAX($C$8:C109)+1","v":{"v":205,"d":"0205"}},"云岩区金融工作服务中心","全额拨款",1,20102020501,1,"A","管理岗位","从事项目绩效管理、预算评审等相关工作。","否","本科及  以上 ",null,"建筑类（一级学科）、土木类（一级学科）","土木工程（一级学科）、建筑学（一级学科）","1.具有与学历、专业相应的学位；\n2.具有造价工程师一级资格证。","贵阳市云岩区新添大道南段299号","杨文熙\n0851-86679310"]
[{"$f":"MAX($A$1:A110)+1","v":31},"云岩区住房和城乡建设局",{"$f":"MAX($C$8:C110)+1","v":{"v":206,"d":"0206"}},"云岩区房屋征收服务中心","全额拨款",3,20102020601,2,"B","专业技术岗位","从事法规宣传、征收方案制定、文书审核等工作。","否","本科及  以上 ",null,"法学类（一级学科）、社会学类（一级学科）","法学(一级学科)、社会学（一级学科）","1.中共党员（含预备党员）；\n2.具有与学历、专业相应的学位。","贵阳市云岩区瑞金北路61号-3","袁红玉\n0851-86838207"]
[{"$nulls":6},20102020602,1,"B","专业技术岗位","从事征收档案管理及维护等工作。","否","本科及  以上 ",null,"计算机科学与技术专业、软件工程专业、信息管理与信息系统专业","不限","1.具有与学历、专业相应的学位；\n2.定向招聘2026年度高校毕业生。","贵阳市云岩区瑞金北路61号-3","袁红玉\n0851-86838207"]
[null,"云岩区住房和城乡建设局",{"$f":"MAX($C$8:C112)+1","v":{"v":207,"d":"0207"}},"云岩区农村公路养护管理所","全额拨款",1,20102020701,1,"A","管理岗位","从事住建领域施工合同的前置性审查、办公室行政事务的管理等工作。","否","本科及  以上 ",null,"法学(学科门类)、土木类（一级学科）、建筑类（一级学科）","法学(学科门类)、土木工程（一级学科） 、建筑学（一级学科）","1.具有与学历、专业相应的学位；\n2.法学类的考生须具有2年及以上从事法学行业的相关工作经历。","贵阳市云岩区未来方舟D12组团B栋","杨艳红\n0851-86823355"]
[null,null,{"$f":"MAX($C$8:C113)+1","v":{"v":208,"d":"0208"}},"云岩区建筑工程质量监督站","全额拨款",1,20102020801,1,"B","专业技术岗位","从事云岩行政区域内的建设工程招标备案、工程质量监督、工程竣工验收备案以及宣传贯彻落实《贵阳市房屋安全管理条例》等有关房屋安全管理的法律、法规、规章并组织指导、监督全区房屋使用安全管理等工作。","否","本科及  以上 ",null,"土木类（一级学科）、建筑类（一级学科）","土木工程（一级学科） 、建筑学（一级学科）","具有与学历、专业相应的学位。","贵阳市云岩区未来方舟D12组团B栋","杨艳红\n0851-86823355"]
[{"$f":"MAX($A$1:A114)+1","v":32},"云岩区农业农村局",{"$f":"MAX($C$8:C114)+1","v":{"v":209,"d":"0209"}},"云岩区动物疫病预防控制中心","全额拨款",1,20102020901,1,"A","管理岗位","从事综合协调机关日常事务,起草本单位综合性文稿,负责机关规范性文件合法性检查。","否","本科及  以上 ",null,"法学（学科门类）","法学（学科门类）","1.具有与学历、专业相应的学位；\n2.具有A类法律职业资格证书。","贵阳市云岩区未来方舟D12组团","邵楠茜\n0851-86652182"]
[{"$f":"MAX($A$1:A115)+1","v":33},"云岩区文体广电旅游局",{"$f":"MAX($C$8:C115)+1","v":{"v":210,"d":"0210"}},"云岩区文化馆","全额拨款",1,20102021001,1,"B","专业技术岗位","从事群众文化艺术培训工作。","否","本科及  以上 ",null,"音乐与舞蹈学类（一级学科）、艺术学理论类（一级学科）","艺术学理论（一级学科）、音乐与舞蹈学（一级学科）","具有与学历、专业相应的学位。","贵阳市云岩区新添大道南段299号","滕开龙\n0851-86610952"]
[{"$f":"MAX($A$1:A116)+1","v":34},"云岩区卫生健康局",{"$f":"MAX($C$8:C116)+1","v":{"v":211,"d":"0211"}},"云岩区疾病预防控制中心（区卫生监督站）","全额拨款",5,20102021101,3,"B","专业技术岗位","从事行政处罚案件法制审核、执法程序合法性把关、行政诉讼应诉、执法规范化建设、公共卫生事件应急法律支持、传染病防治法规合规、实验室生物安全法律监管、公共卫生政策研究等相关工作。","否","本科及以上 ",null,"法学专业、信用风险管理与法律防控专业、纪检监察专业、司法鉴定学专业","法学理论专业、宪法学与行政法学专业、刑法学专业、诉讼法学专业","具有与学历、专业相应的学位。","贵阳市云岩区半边街53号","蒲睿\n0851-86766927"]
[{"$nulls":6},20102021102,1,"A","管理岗位","处理单位各类法律问题及事宜、开展合法性审查、协助处理各类纠纷、依法处置各类信访、投诉案件等相关工作。","否","本科及以上 ",null,"不限","不限","1.具有与学历、专业相应的学位；\n2.具有A类法律职业资格证书。","贵阳市云岩区半边街53号","蒲睿\n0851-86766927"]
[{"$nulls":6},20102021103,1,"B","专业技术岗位","从事计算机系统及网络维护、计算机及信息技术管理、信息化建设等相关工作。","否","研究生及以上 ",null,null,"通信与信息系统专业、计算机软件与理论专业、计算机应用技术专业","1.具有与学历、专业相应的学位；\n2.定向招聘2026年度高校毕业生。\n","贵阳市云岩区半边街53号","蒲睿\n0851-86766927"]
[null,null,{"$f":"MAX($C$8:C119)+1","v":{"v":212,"d":"0212"}},"云岩区卫生健康综合服务中心","全额拨款",2,20102021201,1,"B","专业技术岗位","从事财务相关工作。","否","本科及  以上 ",null,"会计学专业、财务管理专业、审计学专业、财政学专业","会计学专业、企业管理（含：财务管理、市场营销、人力资源管理）专业、会计（专硕）、审计（专硕）、财政学（含∶税收学）专业","1.具有与学历、专业相应的学位；\n2.具有2年及以上财务工作经历。","贵阳市云岩区未来方舟D12组团","陈子捷\n0851-86679036"]
[{"$nulls":6},20102021202,1,"B","专业技术岗位","从事行政处罚决定法制审核及政策法规相关工作。","否","本科及  以上 ",null,"法学（学科门类）","法学（学科门类）、\n法律（专硕）","1.具有与学历、专业相应的学位；\n2.具有A类法律职业资格证书。","贵阳市云岩区未来方舟D12组团","陈子捷\n0851-86679036"]
[{"$f":"MAX($A$1:A121)+1","v":35},"云岩区综合行政执法局",{"$f":"MAX($C$8:C121)+1","v":{"v":213,"d":"0213"}},"云岩区市政工程管理所","全额拨款",3,20102021301,1,"A","管理岗位","从事财务等相关工作。","否","本科及  以上 ",null,"会计学专业、财务管理专业、审计学专业","会计学专业、审计学专业、会计（专硕）、审计（专硕）","具有与学历、专业相应的学位。","贵阳市云岩区鲤鱼西巷12号","韩瑶\n0851-86518381"]
[{"$nulls":6},20102021302,1,"A","管理岗位","从事人力资源管理等相关工作。","否","本科及  以上 ",null,"统计学类（一级学科）、工商管理类（一级学科）","应用经济学（一级学科）、工商管理（一级学科）","1.具有与学历、专业相应的学位；\n2.定向招聘2026年度高校毕业生。","贵阳市云岩区鲤鱼西巷12号","韩瑶\n0851-86518381"]
[{"$nulls":6},20102021303,1,"B","专业技术岗位","从事市政工程道路及附属设施的施工、维护；园林、园艺工程管理；桥梁及隧道工程管理、施工；排水系统的施工、维护等工作。","否","本科及  以上 ",null,"土木类（一级学科）、建筑类（一级学科）","建筑学（一级学科）、 土木工程（一级学科）","具有与学历、专业相应的学位。","贵阳市云岩区鲤鱼西巷12号","韩瑶\n0851-86518381"]
[null,null,{"$f":"MAX($C$8:C124)+1","v":{"v":214,"d":"0214"}},"云岩区黔灵山公园管理处","差额补贴",2,20102021401,1,"A","管理岗位","从事公园综合事务工作。","否","本科及以上",null,"旅游管理专业、会展经济与管理专业、旅游管理与服务教育专业","旅游管理专业、新闻学专业、传播学专业","1.具有与学历、专业相应的学位；\n2.具有2年及以上基层工作经历。","贵阳市云岩区枣山路187号","姚郁婷\n0851-86865176"]
[{"$nulls":6},20102021402,1,"A","管理岗位","从事公园宣传工作。","否","本科及以上",null,"新闻学专业、网络与新媒体专业、广播电视学专业","新闻学专业、传播学专业、汉语言文字学专业","1.中共党员（含预备党员）；\n2.具有与学历、专业相应的学位。","贵阳市云岩区枣山路187号","姚郁婷\n0851-86865176"]
[{"$f":"MAX($A$1:A126)+1","v":36},"云岩区工业和信息化局",{"$f":"MAX($C$8:C126)+1","v":{"v":215,"d":"0215"}},"云岩区工业经济发展服务中心","全额拨款",1,20102021501,1,"A","管理岗位","从事工业领域在招商引资、宣传推介、产业研究、技术创新试点示范项目推广应用等方面的相关服务工作。","否","本科及  以上 ",null,"工业设计专业、机械工程专业、机械设计制造及其自动化专业","机械设计及理论专业、航空宇航制造工程专业、食品科学专业","具有与学历、专业相应的学位。","贵阳市云岩区未来方舟D12组团","张红敏、徐燕 \n0851-86679314"]
[{"$f":"MAX($A$1:A127)+1","v":37},"云岩区水务管理局",{"$f":"MAX($C$8:C127)+1","v":{"v":216,"d":"0216"}},"云岩区水利站","全额拨款",1,20102021601,1,"A","管理岗位","从事城市供水、水资源管理、水旱灾害防御、河湖管理等工作。","否","本科及以上",null,"给排水科学与工程专业、城市水系统工程专业、水利水电工程专业、水务工程专业、水利科学与工程专业、智慧水利专业","结构工程专业、市政工程专业、防灾减灾工程及防护工程专业、水工结构工程专业、水利水电工程专业","具有与学历、专业相应的学位。","贵阳市云岩区未来方舟D12组团","罗玲\n0851-86652160"]
[{"$f":"MAX($A$1:A128)+1","v":38},"云岩区退役军人事务局",{"$f":"MAX($C$8:C128)+1","v":{"v":217,"d":"0217"}},"云岩区退役军人服务中心","全额拨款",1,20102021701,1,"A","管理岗位","从事退役军人事务管理服务工作。","否","本科及  以上 ",null,"不限","不限","1.具有与学历、专业相应的学位；\n2.定向招聘退役大学生士兵。","贵阳市云岩区渔安新城D组团1栋负1层2号","赵倩\n0851-85923768"]
[{"$f":"MAX($A$1:A129)+1","v":39},"云岩区大数据发展管理局",{"$f":"MAX($C$8:C129)+1","v":{"v":218,"d":"0218"}},"云岩区大数据产业促进中心","全额拨款",2,20102021801,2,"A","管理岗位","统筹全区数据资源管理与利用，负责分类分级管理、公共数据归集共享开放、跨部门信息互通；协同推进数字政府建设与共性基础设施规划，管理区级政务信息化项目，推动系统整合与数据融合应用；协调促进数字经济发展，推动数字产业化、产业数字化转型，负责大数据、软件和信息技术服务业行业管理，深化数字经济与实体经济融合，研究提出大数据产业发展相关对策建议；负责推动数据领域相关法规制度的落实，开展数据合规管理与监督，参与数字政府、数字经济相关规范性文件的制定与合法性审查。","否","本科及  以上 ",null,"经济学（学科门类）、法学（学科门类）、理学（学科门类）、工学（学科门类）、管理学（学科门类）","经济学（学科门类）、法学（学科门类）、理学（学科门类）、工学（学科门类）、管理学（学科门类）","1.具有与学历、专业相应的学位；\n2.定向招聘2026年度高校毕业生。","贵阳市云岩区未来方舟D12组团","路曼\n0851-85520609"]
[{"$f":"MAX($A$1:A130)+1","v":40},"云岩区政府直属",{"$f":"MAX($C$8:C130)+1","v":{"v":219,"d":"0219"}},"云岩区投资促进局","全额拨款",1,20102021901,1,"A","管理岗位","从事生产性服务业、电子信息制造业、大数据产业开展招商相关工作。","否","研究生及以上",null,null,"信息与通信工程（一级学科）、机械工程（一级学科）、控制科学与工程（一级学科）、电子科学与技术（一级学科）","具有与学历、专业相应的学位。","贵阳市云岩区新添大道南段229号","高雅\n0851-86679101"]
[{"$f":"MAX($A$1:A131)+1","v":41},"云岩区政府直属",{"$f":"MAX($C$8:C131)+1","v":{"v":220,"d":"0220"}},"云岩区人民政府政务服务中心","全额拨款",1,20102022001,1,"A","管理岗位","从事办公室综合管理工作。","否","本科及以上",null,"法学类(一级学科)、中国语言文学类（一级学科）、新闻传播学类（一级学科）","法学（一级学科）、新闻传播学（一级学科）、中国语言文学（一级学科）","1.具有与学历、专业相应的学位；\n2.定向招聘基层项目人员。","贵阳市云岩区北京东路未来方舟F4组团","聂淑珍\n0851-87162221"]
[{"$f":"MAX($A$1:A132)+1","v":42},"南明区人民政府办公室",{"v":301,"d":"0301"},"南明区人民政府政务服务中心","全额拨款",1,20103030101,1,"A","管理岗位","从事财务管理、预算支出、账户系统管理、会计核算等工作。","否","研究生",null,null,"财政学（含∶税收学）专业、会计学专业、会计(专硕)","具有与学历、专业相应的学位。","贵阳市南明区青云路285号","袁俪文\n0851-85842131"]
[{"$f":"MAX($A$1:A133)+1","v":43},"南明区教育局",{"$f":"MAX($C$8:C133)+1","v":{"v":302,"d":"0302"}},"南明区教育发展服务中心","全额拨款",2,20103030201,1,"A","管理岗位","从事计算机、电子政务等方面相关工作。","否","研究生","\n\n",null,"计算机科学与技术（一级学科）","具有与学历、专业相应的学位。","贵阳市南明区新华路19号君悦华庭C座4-5楼","欧丽\n0851-85818499"]
[{"$nulls":6},20103030202,1,"A","管理岗位","从事电子政务、计算机等方面相关工作。","否","研究生",null,null,"计算机科学与技术（一级学科）","1.具有与学历、专业相应的学位；\n2.定向招聘2026年度高校毕业生。","贵阳市南明区新华路19号君悦华庭C座4-5楼","欧丽\n0851-85818499"]
[{"$f":"MAX($A$1:A135)+1","v":44},"南明区民政局 ",{"$f":"MAX($C$8:C135)+1","v":{"v":303,"d":"0303"}},"南明区殡葬管理所","全额拨款",1,20103030301,1,"A","管理岗位","从事殡葬执法工作。","否","研究生",null,null,"法学（一级学科）","1.具有与学历、专业相应的学位；\n2.具有A类法律职业资格证书；\n3.定向招聘2026年度高校毕业生。","贵阳市南明区箭道街78号经协大厦16楼","冯杉\n0851-85812394"]
[{"$f":"MAX($A$1:A136)+1","v":45},"南明区财政局",{"$f":"MAX($C$8:C136)+1","v":{"v":304,"d":"0304"}},"南明区财政国库集中支付中心","全额拨款",2,20103030401,1,"A","管理岗位","从事财政业务合法合规性管理。","否","研究生",null,null,"法学(一级学科)、法律(专硕)","具有与学历、专业相应的学位。","贵阳市南明区瑞金南路332号12-13楼","李剑霄\n0851-85860847"]
[{"$nulls":6},20103030402,1,"A","管理岗位","从事财政工程类业务管理。","否","研究生",null,null,"工程管理专业、管理科学与工程专业","具有与学历、专业相应的学位。","贵阳市南明区瑞金南路332号12-13楼","李剑霄\n0851-85860847"]
[{"$f":"MAX($A$1:A138)+1","v":46},"南明区人力资源和社会保障局",{"$f":"MAX($C$8:C138)+1","v":{"v":305,"d":"0305"}},"南明区劳动人事争议仲裁院","全额拨款",1,20103030501,1,"A","管理岗位","依法从事劳动人事争议的调解、仲裁相关工作。","否","研究生",null,null,"法学(一级学科)、法律(专硕)","1.具有与学历、专业相应的学位；\n2.具有A类法律职业资格证书。","贵阳市南明区新华路108号","潘薛\n0851-85504973"]
[{"$f":"MAX($A$1:A139)+1","v":47},"南明区住房和城乡建设局",{"$f":"MAX($C$8:C139)+1","v":{"v":306,"d":"0306"}},"南明区住房保障中心","全额拨款",1,20103030601,1,"A","管理岗位","从事法律事务相关工作。","否","研究生",null,null,"法学(一级学科)、法律(专硕)","1.具有与学历、专业相应的学位；\n2.具有A类法律职业资格证书。","贵阳市南明区箭道街78号经协大厦22楼","李易君\n0851-85293381"]
[{"$f":"MAX($A$1:A140)+1","v":48},"南明区市场监督管理局",{"$f":"MAX($C$8:C140)+1","v":{"v":307,"d":"0307"}},"南明区市场监管智慧指挥调度中心","全额拨款",1,20103030701,1,"A","管理岗位","从事食品安全监督管理相关工作。","否","研究生",null,null,"食品科学与工程(一级学科)","具有与学历、专业相应的学位。","贵阳市南明区兴隆北巷4号","谭清碧、吴娜\n0851-85868255"]
[{"$f":"MAX($A$1:A141)+1","v":49},"南明区政府直属",{"$f":"MAX($C$8:C141)+1","v":{"v":308,"d":"0308"}},"南明区投资促进局（南明区会展经济促进办公室）","全额拨款",2,20103030801,1,"A","管理岗位","从事招商引资相关工作，制订全区招商引资目标、产业发展方向、行业导向、投资导向、规模及重点领域计划；负责组织并协调相关部门进行各类大型经贸交流活动和招商引资活动等。","否","研究生",null,null,"应用经济学（一级学科）","具有与学历、专业相应的学位。","贵阳市南明区瑞金南路332号6楼","张召麒\n0851-85844101"]
[{"$nulls":6},20103030802,1,"A","管理岗位","从事项目服务相关工作，策划、开发、筛选和调整、包装、更新招商引资项目；建立和完善全区招商引资项目库，编印投资促进发展相关资料；招商引资成效统计等。","否","研究生",null,null,"应用经济学（一级学科）、统计学（一级学科）、应用统计(专硕)","具有与学历、专业相应的学位。  ","贵阳市南明区瑞金南路332号6楼","张召麒\n0851-85844101"]
[{"$f":"MAX($A$1:A143)+1","v":50},"南明区政府直属",{"$f":"MAX($C$8:C143)+1","v":{"v":309,"d":"0309"}},"南明区房屋征收服务中心","全额拨款",1,20103030901,1,"A","管理岗位","从事房屋征收相关工作。","否","研究生",null,null,"建筑学（一级学科）、建筑学（专硕）、土木工程（一级学科）、土木工程专业（专硕）","1.具有与学历、专业相应的学位；\n2.定向招聘2026年度高校毕业生。","贵阳市南明区南厂路22号写字楼12层","金芳桐\n0851-85293278"]
[{"$f":"MAX($A$1:A144)+1","v":51},"中共南明区委政法委员会",{"$f":"MAX($C$8:C144)+1","v":{"v":310,"d":"0310"}},"南明区法学会","全额拨款",1,20103031001,1,"A","管理岗位","从事综合协调、文稿起草及党务政务等相关工作。","否","研究生",null,null,"法学(一级学科)、马克思主义理论(一级学科)、政治学(一级学科)","1.中共党员（含预备党员）；\n2.具有与学历、专业相应的学位。","贵阳市南明区箭道南巷21号","杨钊铖、龙安琴0851-85868803"]
[{"$f":"MAX($A$1:A145)+1","v":52},"南明区永乐乡政府",{"$f":"MAX($C$8:C145)+1","v":{"v":311,"d":"0311"}},"南明区永乐乡党务政务服务中心","全额拨款",1,20103031101,1,"A","管理岗位","从事财务相关工作。","否","本科及以上",null,"会计学专业、财务管理专业、审计学专业、资产评估专业\n","资产评估(专硕)、会计学专业、会计(专硕)、审计(专硕)","具有与学历、专业相应的学位。","贵阳市南明区永乐乡永乐街1号","彭畅\n0851-83991251"]
[null,null,{"$f":"MAX($C$8:C146)+1","v":{"v":312,"d":"0312"}},"南明区永乐乡农业农村综合服务中心","全额拨款",1,20103031201,1,"A","管理岗位","从事乡村振兴规划相关工作。","否","本科及以上",null,"城乡规划专业、风景园林专业、农林经济管理专业、乡村治理专业、农学专业、园艺专业、植物保护专业","城乡规划学（一级学科）、风景园林学（一级学科）、农林经济管理（一级学科）、园艺学（一级学科）、作物学（一级学科）、植物保护（一级学科）","具有与学历、专业相应的学位。","贵阳市南明区永乐乡永乐街1号","彭畅\n0851-83991251"]
[null,null,{"$f":"MAX($C$8:C147)+1","v":{"v":313,"d":"0313"}},"南明区永乐乡综合治理服务中心","全额拨款",1,20103031301,1,"A","管理岗位","从事法律事务相关工作。","否","研究生",null,null,"法学（一级学科）、法律(专硕)","1.具有与学历、专业相应的学位；\n2.具有A类法律职业资格证书。","贵阳市南明区永乐乡永乐街1号","彭畅\n0851-83991251"]
[{"$f":"MAX($A$1:A148)+1","v":53},"南明区人民政府新华路街道办事处",{"$f":"MAX($C$8:C148)+1","v":{"v":314,"d":"0314"}},"南明区新华路街道党务政务服务中心","全额拨款",1,20103031401,1,"A","管理岗位","从事公文写作、信息宣传、综合管理等办公室日常工作。","否","研究生",null,null,"中国语言文学（一级学科）、新闻传播学（一级学科）、新闻与传播（专硕）","1.具有与学历、专业相应的学位；\n2.定向招聘2026年度高校毕业生。","贵阳市南明区新华路石岭街5号","王林林\n0851-85521205"]
[null,null,{"$f":"MAX($C$8:C149)+1","v":{"v":315,"d":"0315"}},"南明区新华路街道综合治理服务中心","全额拨款",1,20103031501,1,"A","管理岗位","从事社会治安综合治理、信访维稳等相关工作。","否","本科及以上",null,"不限专业","不限专业","1.具有与学历、专业相应的学位；\n2.定向招聘基层项目服务人员。","贵阳市南明区新华路石岭街5号","王林林\n0851-85521205"]
[{"$f":"MAX($A$1:A150)+1","v":54},"南明区人民政府遵义路街道办事处",{"$f":"MAX($C$8:C150)+1","v":{"v":316,"d":"0316"}},"南明区遵义路街道党务政务服务中心","全额拨款",1,20103031601,1,"A","管理岗位","从事行政事务、公文写作等办公室日常工作。","否","本科及以上",null,"政治学类（一级学科）、法学类（一级学科）","政治学（一级学科）、法学（一级学科）、法律(专硕)","具有与学历、专业相应的学位。","贵阳市南明区解放路188号","许曜环\n0851-85960050"]
[null,null,{"$f":"MAX($C$8:C151)+1","v":{"v":317,"d":"0317"}},"南明区遵义路街道社区事务服务中心","全额拨款",1,20103031701,1,"A","管理岗位","从事居民服务、社区事务管理等相关工作。","否","本科及以上",null,"不限专业","不限专业","1.具有与学历、专业相应的学位；\n2.定向招聘退役大学生士兵。","贵阳市南明区解放路188号","许曜环\n0851-85960050"]
[null,null,{"$f":"MAX($C$8:C152)+1","v":{"v":318,"d":"0318"}},"南明区遵义路街道优化营商环境服务中心","全额拨款",1,20103031801,1,"A","管理岗位","从事优化营商环境、招商引资等相关工作。","否","研究生",null,null,"经济学(学科门类)","具有与学历、专业相应的学位。","贵阳市南明区解放路188号","许曜环\n0851-85960050"]
[{"$f":"MAX($A$1:A153)+1","v":55},"南明区人民政府中华南路街道办事处",{"$f":"MAX($C$8:C153)+1","v":{"v":319,"d":"0319"}},"南明区中华南路街道党务政务服务中心","全额拨款",1,20103031901,1,"A","管理岗位","从事办公室材料撰写及党务政务服务相关工作。","否","本科及以上",null,"中国语言文学类（一级学科）","中国语言文学（一级学科）","1.具有与学历、专业相应的学位；\n2.定向招聘2026年度高校毕业生。","贵阳市南明区法院街42号","唐增辉\n18985174396"]
[null,null,{"$f":"MAX($C$8:C154)+1","v":{"v":320,"d":"0320"}},"南明区中华南路街道优化营商环境服务中心","全额拨款",1,20103032001,1,"A","管理岗位","从事统计、调查、数据处理、统计分析研究等工作。","否","研究生",null,null,"经济学(学科门类)、会计学专业、会计(专硕)","1.具有与学历、专业相应的学位；\n2.定向招聘2026年度高校毕业生。","贵阳市南明区法院街42号","唐增辉\n18985174396"]
[{"$f":"MAX($A$1:A155)+1","v":56},"南明区人民政府油榨街道办事处",{"$f":"MAX($C$8:C155)+1","v":{"v":321,"d":"0321"}},"南明区油榨街道党务政务服务中心","全额拨款",1,20103032101,1,"A","管理岗位","从事公文写作、信息宣传、综合管理及办公室日常工作。","否","研究生",null,null,"中国语言文学（一级学科）、新闻传播学（一级学科）、新闻与传播（专硕）","具有与学历、专业相应的学位。","贵阳市南明区市南路43号","陈卓\n0851-85500850"]
[null,null,{"$f":"MAX($C$8:C156)+1","v":{"v":322,"d":"0322"}},"南明区油榨街道综合治理服务中心","全额拨款",1,20103032201,1,"A","管理岗位","从事财务等相关工作。","否","本科及以上",null,"会计学专业、财务管理专业、审计学专业","会计学专业、会计(专硕)、审计(专硕)","具有与学历、专业相应的学位。","贵阳市南明区市南路43号","陈卓\n0851-85500850"]
[{"$f":"MAX($A$1:A157)+1","v":57},"南明区人民政府河滨街道办事处",{"$f":"MAX($C$8:C157)+1","v":{"v":323,"d":"0323"}},"南明区河滨街道党务政务服务中心","全额拨款",1,20103032301,1,"A","管理岗位","从事经济建设 、产业发展综合管理工作。","否","研究生",null,null,"经济学(学科门类)","具有与学历、专业相应的学位。","贵阳市南明区瑞金南路46号","邹罗庚\n17685391186"]
[null,null,{"$f":"MAX($C$8:C158)+1","v":{"v":324,"d":"0324"}},"南明区河滨街道社区事务服务中心","全额拨款",1,20103032401,1,"A","管理岗位","主要负责辖区劳动保障、民政事务、老龄等相关工作。","否","本科及以上",null,"社会学类（一级学科）、公共管理类（一级学科）","社会学（一级学科）、公共管理（一级学科）、公共管理(专硕)","1.具有与学历、专业相应的学位；\n2.定向招聘2026年度高校毕业生。","贵阳市南明区瑞金南路46号","邹罗庚\n17685391186"]
[null,null,{"$f":"MAX($C$8:C159)+1","v":{"v":325,"d":"0325"}},"南明区河滨街道综合治理服务中心","全额拨款",1,20103032501,1,"A","管理岗位","承担12345，网格化服务、综合治理、安全生产、应急突发事件处理等工作。","否","研究生",null,null,"中国语言文学（一级学科）、新闻传播学（一级学科）、公共管理（一级学科）、公共管理(专硕)","具有与学历、专业相应的学位。","贵阳市南明区瑞金南路46号","邹罗庚\n17685391186"]
[{"$f":"MAX($A$1:A160)+1","v":58},"南明区人民政府兴关路街道办事处",{"$f":"MAX($C$8:C160)+1","v":{"v":326,"d":"0326"}},"南明区兴关路街道党务政务服务中心","全额拨款",1,20103032601,1,"A","管理岗位","从事财务及人事管理等相关工作。","否","本科及以上",null,"会计学专业、财务管理专业、审计学专业","会计学专业、会计(专硕)、审计(专硕)","1.中共党员（含预备党员）；\n2.具有与学历、专业相应的学位；\n3.具有初级及以上会计专业技术资格。","贵阳市南明区兴关路44号","梁美艳\n0851-85574629"]
[{"$f":"MAX($A$1:A161)+1","v":59},"南明区人民政府二戈街道办事处",{"$f":"MAX($C$8:C161)+1","v":{"v":327,"d":"0327"}},"南明区二戈街道党务政务服务中心","全额拨款",1,20103032701,1,"A","管理岗位","从事纪检监察相关工作。","否","研究生",null,null,"法学（一级学科）、会计学专业、会计(专硕)、审计(专硕)","1.中共党员（含预备党员）；\n2.具有与学历、专业相应的学位。","贵阳市南明区富源南路29号","李俊\n0851-83930415"]
[{"$f":"MAX($A$1:A162)+1","v":60},"南明区人民政府太慈桥街道办事处",{"$f":"MAX($C$8:C162)+1","v":{"v":328,"d":"0328"}},"南明区太慈桥街道社区事务服务中心","全额拨款",1,20103032801,1,"A","管理岗位","从事就业、社会保障、医疗保障、卫生健康服务、党务政务等相关工作。","否","研究生",null,null,"不限专业","1.中共党员（含预备党员）；\n2.具有与学历、专业相应的学位。","贵阳市南明区国际城D1组团1栋","廖世丽\n13511838409"]
[null,null,{"$f":"MAX($C$8:C163)+1","v":{"v":329,"d":"0329"}},"南明区太慈桥街道综合治理服务中心","全额拨款",1,20103032901,1,"A","管理岗位","从事信访维稳及应急值守工作、社会治安综合治理；网络服务平台建设、运营；矛盾纠纷预防、排查、化解服务等工作。","否","本科及以上",null,"不限专业","不限专业","1.中共党员（含预备党员）；\n2.具有与学历、专业相应的学位；\n3.定向招聘基层项目服务人员。","贵阳市南明区国际城D1组团1栋","廖世丽\n13511838409"]
[{"$f":"MAX($A$1:A164)+1","v":61},"南明区人民政府西湖路街道办事处",{"$f":"MAX($C$8:C164)+1","v":{"v":330,"d":"0330"}},"南明区西湖路街道党务政务服务中心","全额拨款",1,20103033001,1,"A","管理岗位","主要从事退役军人服务工作。","否","本科及以上",null,"不限专业","不限专业","1.中共党员（含预备党员）；\n2.具有与学历、专业相应的学位；\n3.定向招聘退役大学生士兵。","贵阳市南明区观水路18号","李静\n0851-85895130"]
[null,null,{"$f":"MAX($C$8:C165)+1","v":{"v":331,"d":"0331"}},"南明区西湖路街道社区事务服务中心","全额拨款",1,20103033101,1,"A","管理岗位","主要从事环境卫生、民政事务、党务政务等相关工作。","否","研究生",null,null,"管理学（学科门类）","1.中共党员（含预备党员）；\n2.具有与学历、专业相应的学位。","贵阳市南明区观水路18号","李静\n0851-85895130"]
[null,null,{"$f":"MAX($C$8:C166)+1","v":{"v":332,"d":"0332"}},"南明区西湖路街道优化营商环境服务中心","全额拨款",1,20103033201,1,"A","管理岗位","主要从事辖区经济发展、优化营商环境服务等相关工作。","否","本科及以上",null,"经济学（学科门类）","经济学（学科门类）","1.具有与学历、专业相应的学位；\n2.定向招聘2026年度高校毕业生。","贵阳市南明区观水路18号","李静\n0851-85895130"]
[{"$f":"MAX($A$1:A167)+1","v":62},"南明区人民政府水口寺街道办事处",{"$f":"MAX($C$8:C167)+1","v":{"v":333,"d":"0333"}},"南明区水口寺街道综合治理服务中心","全额拨款",1,20103033301,1,"A","管理岗位","从事社会治安综合治理、信访维稳等相关工作。","否","本科及以上",null,"不限专业","不限专业","1.具有与学历、专业相应的学位；\n2.定向招聘南明区优秀村（社区）干部。","贵阳市南明区蟠桃宫路28号","王忠生\n0851-85882007"]
[null,null,{"$f":"MAX($C$8:C168)+1","v":{"v":334,"d":"0334"}},"南明区水口寺街道优化营商环境服务中心","全额拨款",1,20103033401,1,"A","管理岗位","从事优化营商环境、招商引资等相关工作。","否","研究生",null,null,"经济学（学科门类）","具有与学历、专业相应的学位。","贵阳市南明区蟠桃宫路28号","王忠生\n0851-85882007"]
[{"$f":"MAX($A$1:A169)+1","v":63},"南明区人民政府中曹司街道办事处",{"$f":"MAX($C$8:C169)+1","v":{"v":335,"d":"0335"}},"南明区中曹司街道党务政务服务中心","全额拨款",1,20103033501,1,"A","管理岗位","从事办公室材料撰写等相关工作。","否","本科及以上",null,"中国语言文学类（一级学科）、新闻传播学类（一级学科）","中国语言文学（一级学科）、新闻传播学（一级学科）、新闻与传播（专硕）","1.具有与学历、专业相应的学位；\n2.定向招聘2026年度高校毕业生。","贵阳市南明区花溪大道中段甘荫塘小街1号","丁小勇\n0851-83812540"]
[{"$f":"MAX($A$1:A170)+1","v":64},"南明区人民政府湘雅街道办事处",{"$f":"MAX($C$8:C170)+1","v":{"v":336,"d":"0336"}},"南明区湘雅街道党务政务服务中心","全额拨款",1,20103033601,1,"A","管理岗位","从事公文写作、宣传报道及综合协调等相关工作。","否","本科及以上",null,"新闻传播学类（一级学科）","新闻传播学（一级学科）、新闻与传播(专硕)","1.具有与学历、专业相应的学位；\n2.定向招聘2026年度高校毕业生。","贵阳市南明区花溪大道北段123号","宋江美\n0851-85983644"]
[null,null,{"$f":"MAX($C$8:C171)+1","v":{"v":337,"d":"0337"}},"南明区湘雅街道综合治理服务中心","全额拨款",1,20103033701,1,"A","管理岗位","从事公文写作、宣传报道及综合协调等相关工作。","否","研究生",null,null,"中国语言文学（一级学科）","具有与学历、专业相应的学位。","贵阳市南明区花溪大道北段123号","宋江美\n0851-85983644"]
[{"$f":"MAX($A$1:A172)+1","v":65},"南明区人民政府沙冲路街道办事处",{"$f":"MAX($C$8:C172)+1","v":{"v":338,"d":"0338"}},"南明区沙冲路街道党务政务服务中心","全额拨款",1,20103033801,1,"A","管理岗位","承担党务政务服务，文化宣传，公文写作等工作。","否","研究生",null,null,"中国语言文学（一级学科）","具有与学历、专业相应的学位。","贵阳市南明区沙冲路街道朝阳洞路朝阳巷11号","朱林霞 15117720265"]
[null,null,{"$f":"MAX($C$8:C173)+1","v":{"v":339,"d":"0339"}},"南明区沙冲路街道综合治理服务中心","全额拨款",1,20103033901,1,"A","管理岗位","承担“12345”、网格化服务、综合治理、安全生产、应急突发事件处理等工作。","否","本科及以上",null,"不限专业","不限专业","1.具有与学历、专业相应的学位；\n2.定向招聘退役大学生士兵。","贵阳市南明区沙冲路街道朝阳洞路朝阳巷11号","朱林霞 15117720265"]
[null,null,{"$f":"MAX($C$8:C174)+1","v":{"v":340,"d":"0340"}},"南明区沙冲路街道优化营商环境服务中心","全额拨款",1,20103034001,1,"A","管理岗位","从事会计、财务管理及相关工作。","否","\n本科及以上",null,"会计学专业、财务管理专业、审计学专业、财务会计与审计专业、会计专业","会计(专硕)、审计(专硕)、会计学专业、财政学专业","具有与学历、专业相应的学位。","贵阳市南明区沙冲路街道朝阳洞路朝阳巷11号","朱林霞 15117720265"]
[{"$f":"MAX($A$1:A175)+1","v":66},"南明区人民政府望城街道办事处",{"$f":"MAX($C$8:C175)+1","v":{"v":341,"d":"0341"}},"南明区望城街道党务政务服务中心","全额拨款",1,20103034101,1,"A","管理岗位","从事办公室材料撰写及党务政务服务相关工作。","否","研究生",null,null,"公共管理（一级学科）、公共管理(专硕)","具有与学历、专业相应的学位。","贵阳市南明区沙冲东路47号","吕垚垚\n18286679389"]
[null,null,{"$f":"MAX($C$8:C176)+1","v":{"v":342,"d":"0342"}},"南明区望城街道综合治理服务中心","全额拨款",1,20103034201,1,"A","管理岗位","从事处置应急突发事件、维护社会稳定等工作。","否","本科及以上",null,"安全工程专业、应急技术与管理专业、安全生产监管专业、应急管理专业","土木工程（一级学科）、安全科学与工程（一级学科）","具有与学历、专业相应的学位。","贵阳市南明区沙冲东路47号","吕垚垚\n18286679389"]
[{"$f":"MAX($A$1:A177)+1","v":67},"南明区人民政府花果园街道办事处",{"$f":"MAX($C$8:C177)+1","v":{"v":343,"d":"0343"}},"南明区花果园街道党务政务服务中心","全额拨款",1,20103034301,1,"A","管理岗位","从事公文写作、宣传等工作。","否","研究生",null,null,"中国语言文学（一级学科）、新闻传播学（一级学科）、新闻与传播(专硕)","具有与学历、专业相应的学位。","贵阳市南明区花果园大街C区16栋3单元1楼","靳艳\n0851-85913101"]
[null,null,{"$f":"MAX($C$8:C178)+1","v":{"v":344,"d":"0344"}},"南明区花果园街道优化营商环境服务中心","全额拨款",1,20103034401,1,"A","管理岗位","从事经济发展营造良好营商环境、统计相关工作。","否","研究生",null,null,"应用经济学(一级学科)、金融(专硕)、应用统计(专硕)、税务(专硕)、国际商务(专硕)","具有与学历、专业相应的学位。","贵阳市南明区花果园大街C区16栋3单元1楼","靳艳\n0851-85913101"]
[{"$f":"MAX($A$1:A179)+1","v":68},"南明区人民政府小车河街道办事处",{"$f":"MAX($C$8:C179)+1","v":{"v":345,"d":"0345"}},"南明区小车河街道社区事务服务中心","全额拨款",1,20103034501,1,"A","管理岗位","从事社区事务服务保障相关工作。","否","本科及以上",null,"不限专业","不限专业","1.具有与学历、专业相应的学位；\n2.定向招聘退役大学生士兵。","贵阳市南明区花果园S1区9栋","卢菲\n0851-85751120"]
[null,null,{"$f":"MAX($C$8:C180)+1","v":{"v":346,"d":"0346"}},"南明区小车河街道优化营商环境服务中心","全额拨款",1,20103034601,1,"A","管理岗位","从事优化营商、应急突发事件、维护社会稳定等工作。","否","研究生",null,null,"经济学(学科门类)、管理学(学科门类)、法学(学科门类)、理学(学科门类)、工学(学科门类)","具有与学历、专业相应的学位。","贵阳市南明区花果园S1区9栋","卢菲\n0851-85751120"]
[{"$f":"MAX($A$1:A181)+1","v":69},"南明区人民政府兰花都街道办事处",{"$f":"MAX($C$8:C181)+1","v":{"v":347,"d":"0347"}},"南明区兰花都街道社区事务服务中心","全额拨款",1,20103034701,1,"A","管理岗位","从事民生救助、群众服务、党务政务等相关工作。","否","本科及以上",null,"法学(学科门类)","法学（学科门类）","1.中共党员（含预备党员）；\n2.具有与学历、专业相应的学位。","贵阳市南明区花果园L2区10栋","龙昌华 18185138618"]
[{"$f":"MAX($A$1:A182)+1","v":70},"乌当区人民政府办公室",{"v":401,"d":"0401"},"乌当区人民政府办公室新闻信息站","全额拨款",1,20104040101,1,"A","管理岗位","主要负责经济社会发展调研分析及相关新闻信息的采集和编写。","否","本科及以上",null,"经济学类（一级学科）、中国语言文学类（一级学科）","经济学（学科门类）、文学（学科门类）","1.具有与学历、专业相应的学位；\n2.定向招聘2026年度高校毕业生。","贵阳市乌当区航天大道7号行政中心乌当区人民政府办公室","阎晓萌\n0851-86402987；15285133286  "]
[{"$f":"MAX($A$1:A183)+1","v":71},"乌当区教育局",{"v":402,"d":"0402"},"乌当区学生资助管理中心","全额拨款 ",4,20104040201,2,"A","管理岗位","主要从事辖区教育系统经费管理、财务收支及预算决算等相关工作。","否","本科及以上",null,"会计学专业、财务管理专业、财务会计教育专业、内部审计专业","会计学专业、企业管理专业（含：财务管理、市场营销、人力资源管理）、会计（专硕）","具有与学历、专业相应的学位。","贵阳市乌当区高新北路2号智汇云锦B3栋","张玉梅\n0851-86410212；18785094559"]
[{"$nulls":6},20104040202,1,"A","管理岗位","主要从事辖区教育基建工程项目管理及布局规划等相关工作。","否","本科及以上",null,"建筑学专业、城乡规划专业、智慧建筑与建造专业","建筑学(专硕)、工程（专硕）、城市规划（专硕）","具有与学历、专业相应的学位。"]
[{"$nulls":6},20104040203,1,"A","管理岗位","主要从事辖区教育系统普法宣传及相关法律服务工作。","否","本科及以上",null,"法学专业、司法鉴定学专业、国家安全学专业","法学理论专业、宪法学与行政法学专业、诉讼法学专业、法律（专硕）","1.具有与学历、专业相应的学位；\n2.具有A类法律职业资格证书。"]
[{"$f":"MAX($A$1:A186)+1","v":72},"乌当区财政局",{"v":403,"d":"0403"},"乌当区财政国库集中支付中心","全额拨款",2,20104040301,2,"B","专业技术岗位","主要负责财政国库集中支付、财政授权支付及财政直接支付等相关工作。","否","本科及以上",null,"会计学专业、财政学专业、金融学专业","会计学专业、会计（专硕）、财政学专业（含：税收学）","1.具有与学历，专业相应的学位；              \n2.具有初级及以上会计专业技术资格证书；\n3.定向招聘2026年度高校毕业生。","贵阳市乌当区育新路156号","曹光宜\n0851-86840021；\n杜雯\n0851-86845206"]
[{"$f":"MAX($A$1:A187)+1","v":73},"乌当区自然资源局",{"v":404,"d":"0404"},"乌当区自然资源局百宜镇自然资源所","全额拨款",1,20104040401,1,"A","管理岗位","主要负责办公室综合管理及财务工作。","否","本科及以上",null,"经济学（学科门类）","经济学（学科门类）","1.中共党员（含预备党员）；\n2.具有与学历、专业相应的学位；\n3.具有2年及以上工作经历。","贵阳市乌当区航天路26号","胡薇\n0851-86841422； 18932017170"]
[null,null,{"v":405,"d":"0405"},"乌当区地质公园管理服务中心","全额拨款",1,20104040501,1,"A","管理岗位","主要负责辖区绿化、森林资源保护、森林防火及林业技能推广等相关工作。","否","本科及以上",null,"林学专业、园林专业、森林保护专业、经济林专业、智慧林业专业","林木遗传育种专业、森林保护学专业、野生动植物保护与利用专业","具有与学历、专业相应的学位。","贵阳市乌当区航天路26号","胡薇\n0851-86841422； 18932017170"]
[{"$f":"MAX($A$1:A189)+1","v":74},"乌当区卫生健康局",{"v":406,"d":"0406"},"乌当区疾病预防控制中心（贵阳市乌当区卫生监督站）","全额拨款",1,20104040601,1,"B","专业技术岗位","主要从事会计核算审核工作。","否","本科及以上",null,"会计学专业、财务管理专业、审计学专业","会计学专业、会计（专硕）、审计（专硕）","1.具有与学历、专业相应的学位；\n2.具有初级及以上会计专业技术资格证书或初级及以上审计专业技术资格证书。","贵阳市乌当区北衙路5号","陈颖琪\n0851-86845656；13765060775"]
[null,null,{"v":407,"d":"0407"},"乌当区妇幼卫生保健院","全额拨款",1,20104040701,1,"B","专业技术岗位","主要从事会计核算审核工作。","否","本科及以上",null,"会计学专业、财务管理专业、审计学专业","会计学专业、会计（专硕）、审计（专硕）","1.具有与学历、专业相应的学位；\n2.具有中级及以上会计专业技术资格证书或中级及以上审计专业技术资格证书。","贵阳市乌当区新添大道北段124号","李伟琳\n0851-86415404； 18985059891"]
[{"$f":"MAX($A$1:A191)+1","v":75},"乌当区综合行政执法局",{"v":408,"d":"0408"},"乌当区综合执法局投诉中心","全额拨款",1,20104040801,1,"A","管理岗位","主要负责处理群众对辖区城市管理及综合行政执法等方面的投诉等工作。","否","本科及以上",null,"法学专业、信用风险管理与法律防控专业、纪检监察专业","法学理论专业、宪法学与行政法学专业、诉讼法学专业","具有与学历、专业相应的学位。","贵阳市乌当区洪济路1号","王赢\n0851-86842616；13885005128"]
[{"$f":"MAX($A$1:A192)+1","v":76},"贵州乌当经济开发区管理委员会",{"v":409,"d":"0409"},"贵州乌当经济开发区产业服务中心","全额拨款",1,20104040901,1,"B","专业技术岗位","主要负责办公室综合管理及财务工作。","否","本科及以上",null,"会计学专业、财务管理专业、审计学专业","会计学专业、会计（专硕）、审计（专硕）","1.具有与学历、专业相应的学位；\n2.具有初级及以上会计专业技术资格证书；\n3.具有2年及以上会计相关工作经历。","贵阳市乌当区智汇云锦孵化基地B4栋19楼","罗良燕\n0851-86402015；13985000803"]
[{"$f":"MAX($A$1:A193)+1","v":77},"乌当区新堡布依族乡人民政府",{"v":410,"d":"0410"},"乌当区新堡布依族乡党务政务服务中心","全额拨款",1,20104041001,1,"A","管理岗位","主要负责组织开展辖区文体活动，协调社会服务资源，提供文教体旅便民服务等相关工作。","否","本科及以上",null,"新闻学专业、传播学专业、网络与新媒体专业","新闻学专业、传播学专业、新闻传播学学科专业","1.中共党员（含预备党员）；      2.具有与学历、专业相应的学位。","贵阳市乌当区陇上村陇上街上组113","黄紫懿\n0851-86100010；\n18798606896"]
[{"$f":"MAX($A$1:A194)+1","v":78},"乌当区水田镇人民政府",{"v":411,"d":"0411"},"乌当区水田镇党务政务服务中心","全额拨款",1,20104041101,1,"A","管理岗位","主要负责社会保障、退役军人服务及党群文体活动等相关工作。","否","本科及以上",null,"不限专业","不限专业","1.具有与学历、专业相应的学位；\n2.定向招聘乌当区2025年“三支一扶”服务期满人员。","贵阳市乌当区水田镇水田村上街一组85号","王燕\n0851-88124802；\n13809462978"]
[null,null,{"v":412,"d":"0412"},"乌当区水田镇农业农村综合服务中心","全额拨款",1,20104041201,1,"A","管理岗位","主要从事农业农村管理、涉农补贴及农村集体经济发展等相关工作。","否","本科及以上",null,"不限专业","不限专业","1.中共党员（含预备党员）；        2具有与学历、专业相应的学位。"]
[{"$f":"MAX($A$1:A196)+1","v":79},"乌当区羊昌镇人民政府",{"v":413,"d":"0413"},"乌当区羊昌镇综合治理服务中心","全额拨款",1,20104041301,1,"A","管理岗位","主要负责辖区社会治安综合治理，网络服务平台建设、运营及矛盾纠纷预防、排查、化解等工作。","否","大专及以上","不限","不限专业","不限专业","1.中共党员（含预备党员）；\n2.定向招聘乌当区优秀村（社区）干部。","贵阳市乌当区羊昌镇羊昌村羊昌西街1号","安娜娜\n0851-86110029；\n13809458782"]
[{"$f":"MAX($A$1:A197)+1","v":80},"乌当区下坝镇人民政府",{"v":414,"d":"0414"},"乌当区下坝镇党务政务服务中心","全额拨款",1,20104041401,1,"A","管理岗位","主要负责党务政务服务及社会保障、住房保障、养老助残等便民服务工作。","否","本科及以上",null,"不限专业","不限专业","1.具有与学历、专业相应的学位；\n2.定向招聘乌当区2025年“三支一扶”服务期满人员。","贵阳市乌当区下坝镇下坝村街上组209号","陈叶叶\n0851-86280204；13368522007"]
[{"$f":"MAX($A$1:A198)+1","v":81},"乌当区新场镇人民政府",{"v":415,"d":"0415"},"乌当区新场镇农业农村综合服务中心","全额拨款",1,20104041501,1,"A","管理岗位","主要负责单位财务、会计等有关工作。","否","本科及以上",null,"会计学专业、财务管理专业、审计学专业","会计（专硕）、税务（专硕）、审计（专硕）","1.中共党员（含预备党员）；\n2.具有与学历、专业相应的学位；\n3.定向招聘2026年度高校毕业生。","贵阳市乌当区新场镇新场村下街组159号","龙国兰\n0851-86130002；\n18785036103"]
[{"$f":"MAX($A$1:A199)+1","v":82},"乌当区百宜镇人民政府",{"v":416,"d":"0416"},"乌当区百宜镇农业农村综合服务中心","全额拨款",1,20104041601,1,"A","管理岗位","主要从事农业农村管理、涉农补贴及农村集体经济发展等相关工作。","否","本科及以上",null,"不限专业","不限专业","1.具有与学历、专业相应的学位；\n2.定向招聘基层项目服务人员。","贵阳市乌当区百宜镇百宜街上94号","刘芳\n0851-86113002；\n18722955128"]
[{"$f":"MAX($A$1:A200)+1","v":83},"乌当区人民政府观溪路街道办事处",{"v":417,"d":"0417"},"乌当区观溪路街道优化营商环境服务中心","全额拨款",1,20104041701,1,"A","管理岗位","主要负责开展辖区企业服务、对外交流合作及推介等相关工作。","否","本科及以上",null,"不限专业","不限专业","1.具有与学历、专业相应的学位；\n2.定向招聘基层项目服务人员。","贵阳市乌当区观溪路街道观溪北路5号","徐冰玉\n0851-86453029；18184014255"]
[{"$f":"MAX($A$1:A201)+1","v":84},"乌当区人民政府新光路街道办事处",{"v":418,"d":"0418"},"乌当区新光路街道党务政务服务中心","全额拨款",1,20104041801,1,"A","管理岗位","主要负责辖区党务政务服务及社会保障、住房保障、养老助残等相关工作。","否","本科及以上",null,"不限专业","不限专业","1.中共党员（含预备党员）；\n2.具有与学历、专业相应的学位；               \n 3.定向招聘基层项目服务人员。","贵阳市乌当区新添大道北段110号","韩娟\n0851-86200973； 18984180671"]
[{"$f":"MAX($A$1:A202)+1","v":85},"乌当区人民政府新创路街道办事处",{"v":419,"d":"0419"},"乌当区新创路街道党务政务服务中心","全额拨款",1,20104041901,1,"A","管理岗位","主要负责党务政务服务，组织社区开展各类党群文体活动等相关工作。","否","本科及以上",null,"不限专业","不限专业","1.中共党员（含预备党员）；      2.具有与学历、专业相应的学位。","贵阳市乌当区创业路2号","王晓霞\n0851-86463977；15186999484"]
[{"$f":"MAX($A$1:A203)+1","v":86},"乌当区人民政府龙广路街道办事处",{"v":420,"d":"0420"},"乌当区龙广路街道党务政务服务中心","全额拨款",1,20104042001,1,"A","管理岗位","主要负责辖区党务政务服务，组织开展党群文体活动及社会保障、住房保障、养老助残等相关工作。","否","本科及以上",null,"不限专业","不限专业","1.具有与学历、专业相应的学位；\n2.定向招聘基层项目服务人员。","贵阳市乌当区新添大道北段198号","李令佳\n0851-86405075；18212893816"]
[{"$f":"MAX($A$1:A204)+1","v":87},"白云区发展和改革局",{"v":501,"d":"0501"},"白云区粮油购销服务中心","全额拨款",1,"20105050101",1,"A","管理岗位","从事粮油储存、安全管理等相关工作","否","本科及以上",null,"不限专业","不限专业","1.具有与学历、专业相应的学位；\n2.因长期需要攀爬粮仓、油罐等设施，建议男性报考。","贵阳市白云区云峰大道99号","罗茜、张书琪\n0851-84616750"]
[{"$f":"MAX($A$1:A205)+1","v":88},"白云区财政局",{"v":502,"d":"0502"},"白云区财政国库集中支付中心","全额拨款",1,"20105050201",1,"B","专业技术岗位","从事预算支出、账户系统管理、会计核算等工作。","否","本科及以上",null,"财政学专业、会计学专业、会计专业、财务管理专业、审计学专业","会计学专业、会计专业、财政学（含∶税收学）专业、金融学（含∶保险学）专业、金融专业","无","贵阳市白云区行政中心北楼三楼","罗茜、张书琪\n0851-84616750"]
[{"$f":"MAX($A$1:A206)+1","v":89},"白云区人力资源和社会保障局",{"v":503,"d":"0503"},"白云区劳动保障服务中心","全额拨款",1,"20105050301",1,"A","管理岗位","从事劳动者权益保障、保障农民工工资支付、常态化开展工地巡查、农民工群体矛盾协调处置等相关工作。","否","本科及以上",null,"不限专业","不限专业","1.具有与学历、专业相应的学位；\n2.定向招聘退役大学生士兵。","贵阳市白云区七一路行政中心二期36-4","罗茜、张书琪\n0851-84616750"]
[{"$f":"MAX($A$1:A207)+1","v":90},"白云区政府直属",{"v":504,"d":"0504"},"白云区招商服务中心","全额拨款",1,"20105050401",1,"A","管理岗位","从事招商引资、优化营商环境建设、办公室文秘等工作。","否","本科及以上",null,"经济学(学科门类)","经济学(学科门类)","无","贵阳市白云区云峰大道博泰世界岛B栋20楼","罗茜、张书琪\n0851-84616750"]
[{"$f":"MAX($A$1:A208)+1","v":91},"白云区文体广电旅游局",{"v":505,"d":"0505"},"白云区文化馆","全额拨款",1,"20105050501",1,"B","专业技术岗位","从事群众文化活动的组织、文艺演出、文艺创作培训等相关工作。","否","本科及以上",null,"音乐与舞蹈学类（一级学科）、文化产业管理专业","舞蹈学专业、音乐学专业","1.具有与学历、专业相应的学位；\n2.定向招聘2026年度高校毕业生。","贵阳市白云区七一\n路图书馆综合大楼","罗茜、张书琪\n0851-84616750"]
[{"$f":"MAX($A$1:A209)+1","v":92},"白云区卫生健康局",{"v":506,"d":"0506"},"白云区疾病预防控制中心（卫生监督站）","全额拨款",2,"20105050601",1,"A","管理岗位","从事行政执法、监督等工作。","否","本科及以上",null,"法学（学科门类）","法学（学科门类）","具有与学历、专业相应的学位","贵阳市白云南路112号","罗茜、张书琪\n0851-84616750"]
[{"$nulls":6},"20105050602",1,"A","管理岗位","从事财务管理等工作。","否","本科及以上",null,"会计学专业、财务管理专业、财务会计与审计专业、审计学专业、会计专业","会计学专业、财务管理专业、会计专业、审计专业","1.具有与学历、专业相应的学位；\n2.定向招聘2026年度高校毕业生。"]
[null,null,{"v":507,"d":"0507"},"白云区都拉布依族乡中心卫生院","全额拨款",1,"20105050701",1,"B","专业技术岗位","从事会计核算、财务管理等工作。","否","大专及以上","会计专业、财务管理专业、财务与会计专业、会计与审计专业、财会与审计专业、审计专业","会计学专业、财务管理专业、审计学专业、会计专业","会计学专业、财务管理专业、会计专业、审计专业","定向招聘随军家属","贵阳市白云区都拉布依族乡都拉村小寨组31号","罗茜、张书琪\n0851-84616750"]
[{"$f":"MAX($A$1:A212)+1","v":93},"白云区艳山红镇人民政府",{"v":508,"d":"0508"},"白云区艳山红镇党务政务服务中心","全额拨款",1,"20105050801",1,"A","管理岗位","从事党务政务服务、社保、养老、退役军人服务管理等便民服务。","否","本科及以上",null,"法学类（一级学科）","不限专业","1.中共党员（含预备党员）；              \n2.具有与学历、专业相应的学位。","贵阳市白云区龙井路288号","罗茜、张书琪\n0851-84616750"]
[{"$f":"MAX($A$1:A213)+1","v":94},"白云区麦架镇人民政府",{"v":509,"d":"0509"},"白云区麦架镇综合治理服务中心","全额拨款",1,"20105050901",1,"A","管理岗位","从事辖区城镇管理、社会治安综合治理等工作。","否","本科及以上",null,"法学类（一级学科）","不限专业","1.具有与学历、专业相应的学位；\n2.定向招聘退役大学生士兵。","贵阳市白云区麦架镇大坝社区文华路1号","罗茜、张书琪\n0851-84616750"]
[null,null,{"v":510,"d":"0510"},"白云区麦架镇产业发展服务中心","全额拨款",1,"20105051001",1,"A","管理岗位","从事产业结构调整、产业项目指导服务等工作。","否","本科及以上",null,"工程管理专业、工程造价专业、项目管理专业","不限专业","1.具有与学历、专业相应的学位；\n2.定向招聘2026年度高校毕业生。",null,"罗茜、张书琪\n0851-84616750"]
[{"$f":"MAX($A$1:A215)+1","v":95},"白云区沙文镇人民政府",{"v":511,"d":"0511"},"白云区沙文镇农业农村综合服务中心","全额拨款",1,"20105051101",1,"A","管理岗位","从事农业农村服务保障工作。","否","大专及以上","不限专业","不限专业","不限专业","定向招聘白云区2025年“三支一扶”服务期满人员","贵阳市白云区沙文镇沙子哨商业街","罗茜、张书琪\n0851-84616750"]
[{"$f":"MAX($A$1:A216)+1","v":96},"白云区都拉布依族乡人民政府",{"v":512,"d":"0512"},"白云区都拉布依族乡党务政务服务中心","全额拨款",1,"20105051201",1,"A","管理岗位","从事办公室综合管理工作。","否","本科及以上",null,"不限专业","不限专业","1.中共党员（含预备党员）；\n2.具有与学历、专业相应的学位。","贵阳市白云区都拉布依族乡行政街与银都路交叉口西50米","罗茜、张书琪\n0851-84616750"]
[{"$nulls":5},1,"20105051202",1,"A","管理岗位","从事办公室综合管理工作。","否","本科及以上",null,"不限专业","不限专业","1.具有与学历、专业相应的学位；\n2.定向招聘基层项目服务人员。",null,"罗茜、张书琪\n0851-84616750"]
[{"$f":"MAX($A$1:A218)+1","v":97},"白云区牛场布依族乡人民政府",{"v":513,"d":"0513"},"白云区牛场布依族乡党务政务服务中心","全额拨款",1,"20105051301",1,"A","管理岗位","从事民政社会救助、殡葬管理相关工作。","否","大专及以上","不限专业","不限专业","不限专业","定向招聘白云区优秀村（社区）干部","贵阳市白云区牛场布依族乡牛场村三组32号","罗茜、张书琪\n0851-84616750"]
[{"$f":"MAX($A$1:A219)+1","v":98},"白云区人民政府泉湖街道办事处",{"v":514,"d":"0514"},"白云区泉湖街道党务政务服务中心","全额拨款",1,"20105051401",1,"A","管理岗位","从事党务政务服务，协调社会服务资源，提供文化、教育、体育等各种便民服务等工作。","否","本科及以上",null,"中国语言文学类（一级学科）","不限专业","1.中共党员（含预备党员）；\n2.具有与学历、专业相应的学位。","贵阳市白云区南湖路中段","罗茜、张书琪\n0851-84616750"]
[{"$f":"MAX($A$1:A220)+1","v":99},"白云区人民政府云城街道办事处",{"v":515,"d":"0515"},"白云区云城街道社区事务服务中心","全额拨款",1,"20105051501",1,"A","管理岗位","从事日常财务管理、资产管理、预决算编制、资金管理等具体事务性工作。","否","本科及以上",null,"财政学专业、会计学专业、财务管理专业、审计学专业、会计专业","财政学（含∶税收学）专业、会计学专业、会计专业","具有与学历、专业相应的学位","贵阳市白云区白金大道云城尚品A1组团1－1－7号","罗茜、张书琪\n0851-84616750"]
[{"$f":"MAX($A$1:A221)+1","v":100},"白云区人民政府龚家寨街道办事处",{"v":516,"d":"0516"},"白云区龚家寨街道党务政务服务中心","全额拨款",1,"20105051601",1,"A","管理岗位","从事财务管理及党务政务服务等相关工作。","否","本科及以上",null,"会计学专业、会计专业、法学专业、汉语言文学专业","会计学专业、会计专业、法学专业、新闻学专业","1.具有与学历、专业相应的学位；\n2.定向招聘2026年度高校毕业生。","贵阳市白云区同心东路115号","罗茜、张书琪\n0851-84616750"]
[{"$f":"MAX($A$1:A222)+1","v":101},"白云区人民政府都拉营街道办事处",{"v":517,"d":"0517"},"白云区都拉营街道综合治理服务中心","全额拨款",1,"20105051701",1,"A","管理岗位","从事财务相关工作。","否","本科及以上",null,"财政学专业、会计学专业、财务管理专业、审计学专业、会计专业","财政学（含∶税收学）专业、会计学专业、会计专业","1.具有与学历、专业相应的学位；          2.具有初级及以上会计专业技术资格证书。","贵阳市白云区都拉营车辆厂汇通路","罗茜、张书琪\n0851-84616750"]
[{"$f":"MAX($A$1:A223)+1","v":102},"花溪区教育局",{"v":601,"d":"0601"},"贵阳市第三十四中学","全额拨款",1,20106060101,1,"A","管理岗位","负责财务等相关工作。","否","本科及以上",null,"会计学专业、财务管理专业、审计学专业","财政学（含∶税收学）专业、会计学专业、会计(专硕)","具有与学历、专业相应的学位。","贵阳市小河区清水路130号","税泽冰\n0851-83155059"]
[{"$f":"MAX($A$1:A224)+1","v":103},"花溪区民政局",{"$f":"MAX($C$8:C224)+1","v":{"v":602,"d":"0602"}},"花溪区社会救助服务中心","全额拨款",1,"20106060201",1,"A","管理岗位","负责城乡居民最低生活保障、特困人员救助供养、老年人权益保障工作。","否","本科及以上",null,"不限专业","不限专业","具有与学历、专业相应的学位。","贵阳市花溪区霞晖路175号","刘晓婕\n0851-83851813"]
[{"$f":"MAX($A$1:A225)+1","v":104},"花溪区文体广电旅游局",{"$f":"MAX($C$8:C225)+1","v":{"v":603,"d":"0603"}},"花溪区图书馆","全额拨款",1,"20106060301",1,"B","专业技术岗位","负责财务等相关工作。","否","本科及以上",null,"会计学专业、财务管理专业、审计学专业","财政学（含：税收学）专业、会计学专业、会计（专硕）","具有与学历、专业相应的学位。","贵阳市花溪区明珠大道192号","杨梦瑶\n0851-83873719"]
[{"$f":"MAX($A$1:A226)+1","v":105},"花溪区黔陶布依族苗族乡人民政府",{"$f":"MAX($C$8:C226)+1","v":{"v":604,"d":"0604"}},"花溪区黔陶布依族苗族乡农业农村综合服务中心","全额拨款",2,"20106060401",1,"A","管理岗位","主要负责农业方面工作，包括日常财务管理、资产管理、预决算编制、资金管理、涉农补贴、村级财务管理等具体事务性工作。","否","本科及以上",null,"会计学专业、财务管理专业、审计学专业","会计（专硕）、会计学专业、农林经济管理（一级学科）","具有与学历、专业相应的学位。","贵阳市花溪区黔陶布依族苗族乡黔陶村小院组64号","曾琴\n0851-83240000"]
[{"$nulls":6},"20106060402",1,"B","专业技术岗位","主要负责农业方面工作，包括开展种养殖业和农业机械的技术推广、水利、农林、农机、畜牧，资产资金管理，村级财务管理等工作。","否","本科及以上",null,"农学(学科门类)","农学(学科门类)","具有与学历、专业相应的学位。","贵阳市花溪区黔陶布依族苗族乡黔陶村小院组64号","曾琴\n0851-83240000"]
[null,null,{"$f":"MAX($C$8:C228)+1","v":{"v":605,"d":"0605"}},"花溪区黔陶布依族苗族乡综合治理服务中心","全额拨款",1,"20106060501",1,"A","管理岗位","主要负责社会治安综合治理，网络服务平台建设、运营，矛盾纠纷预防、排查、化解服务等工作。","否","本科及以上",null,"不限专业","不限专业","1.具有与学历、专业相应的学位；\n2.定向招聘基层项目服务人员。","贵阳市花溪区黔陶布依族苗族乡黔陶村小院组64号","曾琴\n0851-83240000"]
[{"$f":"MAX($A$1:A229)+1","v":106},"花溪区高坡苗族乡人民政府",{"$f":"MAX($C$8:C229)+1","v":{"v":606,"d":"0606"}},"花溪区高坡苗族乡党务政务服务中心","全额拨款",1,"20106060601",1,"A","管理岗位","主要负责党务政务服务中心日常事务，包括党务政策咨询与宣传；政务咨询与导办、政务信息管理、就业创业服务等工作。","否","本科及以上",null,"不限专业","不限专业","1.具有与学历、专业相应的学位；   \n2.定向招聘2026年度高校毕业生。 ","贵阳市花溪区高坡苗族乡高坡村场坝寨132号","谭欣月\n0851-83220000"]
[null,null,{"$f":"MAX($C$8:C230)+1","v":{"v":607,"d":"0607"}},"花溪区高坡苗族乡农业农村综合服务中心","全额拨款",1,"20106060701",1,"A","管理岗位","主要负责农业服务中心日常事务，包括宣传农业政策和相关法律法规；开展种养殖业和农业机械的技术推广、信息报送、水利、农林、农机、畜牧等工作。","否","本科及以上",null,"植物生产类（一级学科）、自然保护与环境生态类（一级学科）、林学类（一级学科）","农学（学科门类）","具有与学历、专业相应的学位。","贵阳市花溪区高坡苗族乡高坡村场坝寨132号","谭欣月\n0851-83220000"]
[{"$f":"MAX($A$1:A231)+1","v":107},"花溪区马铃布依族苗族乡人民政府",{"$f":"MAX($C$8:C231)+1","v":{"v":608,"d":"0608"}},"花溪区马铃布依族苗族乡农业农村综合服务中心","全额拨款",1,"20106060801",1,"B","专业技术岗位","负责农业农村、林业、水利技术及技术推广、农业机械管理、重大动物疫病防控、野生动物保护等具体工作；负责农业种养殖、畜牧兽医、农田水利建设、饮水安全、防汛抗旱、绿化、森林资源保护、森林防火、林业技能推广等工作。","否","本科及以上",null,"工学（学科门类）","工学（学科门类）","具有与学历、专业相应的学位。","贵阳市花溪区马铃布依族苗族乡马铃村冲头组街上","崔海婷 \n0851-83280000"]
[{"$f":"MAX($A$1:A232)+1","v":108},"花溪区久安乡人民政府",{"$f":"MAX($C$8:C232)+1","v":{"v":609,"d":"0609"}},"花溪区久安乡综合治理服务中心","全额拨款",1,"20106060901",1,"A","管理岗位","主要负责“12345”、网格化服务管理信息、群众来信来访、村(居)上报等各类事件的统一接收、按责转办、督促落实、数据统计等工作;负责配合处置、应对应急突发事件；承担城乡管理、社会治安综合治理等相关的事务性、辅助性工作。","否","本科及以上",null,"法学类（一级学科）、汉语言文学专业、行政管理专业","不限专业","具有与学历、专业相应的学位。","贵阳市花溪区久安乡小山村光头组","吴光飞\n0851-83340000"]
[{"$f":"MAX($A$1:A233)+1","v":109},"花溪区孟关苗族布依族乡人民政府",{"$f":"MAX($C$8:C233)+1","v":{"v":610,"d":"0610"}},"花溪区孟关苗族布依族乡农业农村综合服务中心","全额拨款",1,"20106061001",1,"B","专业技术岗位","从事水务、农业技术推广、农机推广、农业产业结构调整、动物疫病防治、畜牧兽医、水产品、农用物资、农产品质量等相关服务工作。","否","本科及以上",null,"农学（学科门类）","农学（学科门类）","1.具有与学历、专业相应的学位；    \n2.定向招聘2026年度高校毕业生。             ","贵阳市花溪区孟关苗族布依族乡孟关村1组1号","陈茜\n0851-83960115 "]
[null,null,{"$f":"MAX($C$8:C234)+1","v":{"v":611,"d":"0611"}},"花溪区孟关苗族布依族乡产业发展服务中心","全额拨款",2,"20106061101",2,"A","管理岗位","开展产业结构调整、产业项目指导服务工作;承担为辖区经济发展营造良好营商环境等相关工作，负责区域内工业、商业和服务业发展及招商引资的规划、指导、协调和推进等服务工作，做好企业服务工作，培育特色产业;开展对外交流合作、推介等相关服务工作。","否","本科及以上",null,"不限专业","不限专业","具有与学历、专业相应的学位。","贵阳市花溪区孟关苗族布依族乡孟关村1组1号","陈茜\n0851-83960115 "]
[{"$f":"MAX($A$1:A235)+1","v":110},"花溪区石板镇人民政府",{"$f":"MAX($C$8:C235)+1","v":{"v":612,"d":"0612"}},"花溪区石板镇党务政务服务中心","全额拨款",1,"20106061201",1,"A","管理岗位","组织开展群众性、文化性的文化体育活动和相关培训，指导本地经济社会发展政策宣传，协助有关部门管理本辖区文化市场等工作。","否","本科及以上",null,"中国语言文学类（一级学科）、新闻传播学类（一级学科）","不限专业","具有与学历、专业相应的学位。","贵阳市花溪区石板镇石板一村4号","黎彤\n0851-83300301"]
[null,null,{"$f":"MAX($C$8:C236)+1","v":{"v":613,"d":"0613"}},"花溪区石板镇农业农村综合服务中心","全额拨款",1,"20106061301",1,"A","管理岗位","主要负责农业农村、林业、水利技术及技术推广等具体工作；负责农业种养殖、畜牧兽医、森林资源防火等工作。","否","本科及以上",null,"农学（学科门类）","不限专业","具有与学历、专业相应的学位。","贵阳市花溪区石板镇石板一村4号","黎彤\n0851-83300301"]
[null,null,{"$f":"MAX($C$8:C237)+1","v":{"v":614,"d":"0614"}},"花溪区石板镇产业发展服务中心","全额拨款",2,"20106061401",1,"A","管理岗位","承担为辖区经济发展营造良好营商环境等相关工作，负责区域内工业、商业和服务业发展及招商引资的规划、指导、协调和推进等服务工作。","否","本科及以上",null,"经济学（学科门类）、土木类（一级学科）、建筑类（一级学科）","不限专业","具有与学历、专业相应的学位。","贵阳市花溪区石板镇石板一村4号","黎彤\n0851-83300301"]
[{"$nulls":6},"20106061402",1,"A","管理岗位","承担为辖区经济发展营造良好营商环境等相关工作，负责区域内工业、商业和服务业发展及招商引资的规划、指导、协调和推进等服务工作。","否","本科及以上",null,"法学类（一级学科）、政治学类（一级学科）","不限专业","具有与学历、专业相应的学位。","贵阳市花溪区石板镇石板一村4号","黎彤\n0851-83300301"]
[{"$f":"MAX($A$1:A239)+1","v":111},"花溪区燕楼镇人民政府",{"$f":"MAX($C$8:C239)+1","v":{"v":615,"d":"0615"}},"花溪区燕楼镇党务政务服务中心","全额拨款",2,"20106061501",1,"B","专业技术岗位","主要负责党务政务服务方面的工作，包括开展社会保障、住房保障、养老助残等便民服务；负责现有政务信息系统的日常维护管理、数据资源管理等工作。","否","本科及以上",null,"计算机类（一级学科）","工学（学科门类）","1.具有与学历、专业相应的学位；\n2.定向招聘基层项目服务人员。","贵阳市花溪区燕楼镇燕楼村","胡作佳\n0851-83260073"]
[{"$nulls":6},"20106061502",1,"A","管理岗位","主要负责所属辖区内退役军人的服务保障性相关工作，协助落实就业创业、优抚帮扶、权益保障、数据信息采集等工作。","否","本科及以上",null,"不限专业","不限专业","1.具有与学历、专业相应的学位；\n2.定向招聘2026年度高校毕业生。","贵阳市花溪区燕楼镇燕楼村","胡作佳\n0851-83260073"]
[null,null,{"$f":"MAX($C$8:C241)+1","v":{"v":616,"d":"0616"}},"花溪区燕楼镇农业农村综合服务中心","全额拨款",3,"20106061601",1,"B","专业技术岗位","主要负责农业方面工作，包括开展种植业、养殖业和农业机械的技术推广，负责植物病虫害防治、农产品质量检测、畜禽疾病预防，指导农业产业化经营管理等工作。","否","本科及以上",null,"农学（学科门类）","农学（学科门类）","1.具有与学历、专业相应的学位；\n2.定向招聘基层项目服务人员。","贵阳市花溪区燕楼镇燕楼村","胡作佳\n0851-83260073"]
[{"$nulls":6},"20106061602",1,"B","专业技术岗位","负责对辖区内的森林资源进行维护、监测和管理；开展退耕还林和生态环境建设；负责林业资源调查、林业统计、森林资源档案管理等工作。","否","本科及以上",null,"管理学（学科门类）","管理学（学科门类）","1.具有与学历、专业相应的学位；\n2.定向招聘基层项目服务人员。","贵阳市花溪区燕楼镇燕楼村","胡作佳\n0851-83260073"]
[{"$nulls":6},"20106061603",1,"A","管理岗位","主要负责农业方面工作，包括日常财务管理，资产管理、资金管理、涉农补贴等具体事务性工作；开展政策咨询和宣传、信息收集、数据储存及农业农村服务等工作。","否","大专及以上","不限专业","不限专业","不限专业","定向招聘花溪区2025年三支一扶服务期满人员","贵阳市花溪区燕楼镇燕楼村","胡作佳\n0851-83260073"]
[null,null,{"$f":"MAX($C$8:C244)+1","v":{"v":617,"d":"0617"}},"花溪区燕楼镇综合治理服务中心","全额拨款",1,"20106061701",1,"A","管理岗位","为社会治安综合治理等工作提供服务保障，负责“12345”、网格化服务管理信息，督促落实、数据统计等工作；负责配合处置、应对应急突发事件；承担城乡管理、社会治安综合治理等相关的事务性、辅助性工作。","否","本科及以上",null,"不限专业","不限专业","1.具有与学历、专业相应的学位；\n2.定向招聘2026年度高校毕业生。","贵阳市花溪区燕楼镇燕楼村","胡作佳\n0851-83260073"]
[{"$f":"MAX($A$1:A245)+1","v":112},"花溪区青岩镇人民政府",{"$f":"MAX($C$8:C245)+1","v":{"v":618,"d":"0618"}},"花溪区青岩镇农业农村综合服务中心","全额拨款",2,"20106061801",2,"B","专业技术岗位","负责农业农村、林业、水利技术及技术推广、农业机械管理、重大动物疫病防控、野生动物保护等具体工作；负责农业种养殖、畜牧兽医、农田水利建设、饮水安全、防汛抗旱、绿化、森林资源保护、森林防火、林业技能推广等具体工作。","否","本科及以上",null,"水利水电工程专业、水务工程专业、水利科学与工程专业","建筑学（一级学科）、水利工程（一级学科）","1.具有与学历、专业相应的学位；\n2.定向招聘2026年度高校毕业生。","贵阳市花溪区青岩镇北街村小西冲6号","陈少东\n0851-83200427"]
[null,null,{"$f":"MAX($C$8:C246)+1","v":{"v":619,"d":"0619"}},"花溪区青岩镇产业发展服务中心","全额拨款",1,"20106061901",1,"A","管理岗位","负责产业结构调整、产业项目的指导服务工作；负责工业、商业、服务业发展及招商引资的相关服务工作，做好企业服务，培育特色产业；对外交流合作、推介等相关工作。","否","本科及以上",null,"土木工程专业、水利水电工程专业、智能建造专业","土木工程（一级学科）、建筑学（一级学科）","1.具有与学历、专业相应的学位；\n2.定向招聘2026年度高校毕业生。","贵阳市花溪区青岩镇北街村小西冲6号","陈少东\n0851-83200427"]
[{"$f":"MAX($A$1:A247)+1","v":113},"花溪区麦坪镇人民政府",{"$f":"MAX($C$8:C247)+1","v":{"v":620,"d":"0620"}},"花溪区麦坪镇党务政务服务中心","全额拨款",1,"20106062001",1,"B","专业技术岗位","主要负责社会保障、住房保障、养老助残、退役军人服务管理工作；宣传党建理论知识，提供党务政策咨询；组织开展各类党群文体活动等党务政务工作。","否","本科及以上",null,"中国语言文学类(一级学科)、新闻传播学类(一级学科)","\n中国语言文学（一级学科）、新闻传播学（一级学科）、新闻与传播（专硕）","1.中共党员（含预备党员）；\n2.具有与学历、专业相应的学位。","贵阳市花溪区麦坪镇麦坪村四组","肖忍\n0851-83360041"]
[null,null,{"$f":"MAX($C$8:C248)+1","v":{"v":621,"d":"0621"}},"花溪区麦坪镇综合治理服务中心","全额拨款",1,"20106062101",1,"A","管理岗位","从事综合治理服务中心办公室相关工作。","否","本科及以上",null,"不限专业","不限专业","1.具有与学历、专业相应的学位；    \n2.定向招聘2026年度高校毕业生。 ","贵阳市花溪区麦坪镇麦坪村四组","肖忍\n0851-83360041"]
[{"$f":"MAX($A$1:A249)+1","v":114},"花溪区人民政府贵筑街道办事处",{"$f":"MAX($C$8:C249)+1","v":{"v":622,"d":"0622"}},"花溪区贵筑街道党务政务服务中心","全额拨款",1,"20106062201",1,"A","管理岗位","负责党建事务性工作；宣传党建理论知识；负责办公室日常工作，从事公文起草，工作信息、计划、总结、报告等综合材料拟写等工作。","否","本科及以上",null,"新闻传播学类(一级学科）、中国语言文学类(一级学科）","新闻传播学(一级学科）、新闻与传播（专硕）、中国语言文学(一级学科）","1.中共党员（含预备党员）；\n2.具有与学历、专业相应的学位。","贵阳市花溪区甲秀南路396号","王秀琼\n0851-83851782"]
[null,null,{"$f":"MAX($C$8:C250)+1","v":{"v":623,"d":"0623"}},"花溪区贵筑街道社区事务服务中心","全额拨款",2,"20106062301",1,"A","管理岗位","负责街道劳动力资源登记管理、就业技能培训、协助开展劳动执法检查、企业退休人员社会化管理服务、居（村）民最低生活保障、社会救助、医疗卫生和康养事业发展、医疗保障以及民族宗教等方面的综合服务工作。","否","本科及以上",null,"不限专业","不限专业","1.具有与学历、专业相应的学位；   \n2.定向招聘基层项目服务人员或随军家属或优秀村（社区）干部。","贵阳市花溪区甲秀南路396号","王秀琼\n0851-83851782"]
[{"$nulls":6},"20106062302",1,"B","专业技术岗位","管理单位财务，负责审核各类原始凭证、固定资产管理以及其他会计事务。","否","本科及以上",null,"会计学专业、财务管理专业、审计学专业","财政学（含∶税收学）专业、会计学专业、会计(专硕)","具有与学历、专业相应的学位。","贵阳市花溪区甲秀南路396号","王秀琼\n0851-83851782"]
[null,null,{"$f":"MAX($C$8:C252)+1","v":{"v":624,"d":"0624"}},"花溪区贵筑街道综合治理服务中心","全额拨款",1,"20106062401",1,"A","管理岗位","从事本辖区内信访维稳工作，开展人民调解、矛盾纠纷排查化解、法治宣传教育工作和法律咨询活动等工作。","否","本科及以上",null,"法学类（一级学科）、新闻传播学类（一级学科）","法学（一级学科）、新闻传播学(一级学科）、新闻与传播（专硕）","具有与学历、专业相应的学位。","贵阳市花溪区甲秀南路396号","王秀琼\n0851-83851782"]
[null,null,{"$f":"MAX($C$8:C253)+1","v":{"v":625,"d":"0625"}},"花溪区贵筑街道优化营商环境服务中心","全额拨款",1,"20106062501",1,"A","管理岗位","从事辖区经济社会各类统计分析、管理及运用等相关工作；负责营商环境建设、规划等相关工作。","否","本科及以上",null,"不限专业","不限专业","1.具有与学历、专业相应的学位；\n2.定向招聘基层项目服务人员。\n","贵阳市花溪区甲秀南路396号","王秀琼\n0851-83851782"]
[{"$f":"MAX($A$1:A254)+1","v":115},"花溪区人民政府阳光街道办事处",{"$f":"MAX($C$8:C254)+1","v":{"v":626,"d":"0626"}},"花溪区阳光街道社区事务服务中心","全额拨款",1,"20106062601",1,"A","管理岗位","负责组织开展公益服务，协助管理公用设施和公共服务设施，协助开展物业管理工作，协助做好卫生健康、老龄工作，承担劳动保障、环境卫生、林业绿化、民政事务等具体事务性工作。","否","大专及以上","不限专业","不限专业","不限专业","定向招聘基层项目服务人员。","贵阳市花溪区松涛路156号","潘卯香\n0851-83636686"]
[null,null,{"$f":"MAX($C$8:C255)+1","v":{"v":627,"d":"0627"}},"花溪区阳光街道综合治理服务中心","全额拨款",1,"20106062701",1,"A","管理岗位","负责处置、应对应急突发事件、社会治安综合治理等相关的事务性、辅助性工作。","否","本科及以上",null,"不限专业","不限专业","具有与学历、专业相应的学位 。 ","贵阳市花溪区松涛路156号","潘卯香\n0851-83636686"]
[{"$f":"MAX($A$1:A256)+1","v":116},"花溪区人民政府清溪街道办事处",{"$f":"MAX($C$8:C256)+1","v":{"v":628,"d":"0628"}},"花溪区清溪街道党务政务服务中心","全额拨款",1,"20106062801",1,"A","管理岗位","承担本辖区内相关党务政务服务，组织开展各类党群文体活动以及社会保障、住房保障、养老助残等便民服务工作;做好本辖区退役军人服务管理等相关事务性工作。","否","本科及以上",null,"马克思主义理论类（一级学科）、公共管理类（一级学科）","不限专业","1.中共党员（含预备党员）；       2.具有与学历、专业相应的学位。","贵阳市花溪区南溪苑7号楼","喻文聪\n0851-83851049"]
[null,null,{"$f":"MAX($C$8:C257)+1","v":{"v":629,"d":"0629"}},"花溪区清溪街道社区事务服务中心","全额拨款",1,"20106062901",1,"A","管理岗位","组织开展公益服务，协助管理公用设施和公共服务设施;协助开展物业管理工作;承担劳动保障、环境卫生、林业绿化、民政事务等具体事务性工作。","否","本科及以上",null,"土木类（一级学科）、测绘类（一级学科）","土木工程（一级学科）、测绘科学与技术（一级学科）","具有与学历、专业相应的学位。","贵阳市花溪区南溪苑7号楼","喻文聪\n0851-83851049"]
[{"$f":"MAX($A$1:A258)+1","v":117},"花溪区人民政府溪北街道办事处",{"$f":"MAX($C$8:C258)+1","v":{"v":630,"d":"0630"}},"花溪区溪北街道党务政务服务中心","全额拨款",1,"20106063001",1,"A","管理岗位","承担本辖区内相关党务政务服务，为新时代文明实践工作活动提供服务场所和便民服务等，组织开展各类党群文体活动。","否","本科及以上",null,"\n中国语言文学类（一级学科）、新闻传播学类（一级学科）","\n中国语言文学（一级学科）、新闻传播学（一级学科）、新闻与传播（专硕）","1.中共党员（含预备党员）；       2.具有与学历、专业相应的学位。","贵阳市花溪区吉麟村委会207号","刘燕 \n0851-83636923"]
[null,null,{"$f":"MAX($C$8:C259)+1","v":{"v":631,"d":"0631"}},"花溪区溪北街道优化营商环境服务中心","全额拨款",1,"20106063101",1,"A","管理岗位","承担为辖区经济发展营造良好营商环境等相关工作，负责区域内工业、商业和服务业发展的规划、指导、协调和推进等服务工作，做好企业服务工作；开展对外交流合作、 推介等相关服务工作。","否","本科及以上",null,"不限专业","不限专业","1.具有与学历、专业相应的学位；   \n2.定向招聘基层项目服务人员。","贵阳市花溪区吉麟村委会207号","刘燕\n 0851-83636923"]
[{"$f":"MAX($A$1:A260)+1","v":118},"花溪区人民政府黄河路街道办事处",{"$f":"MAX($C$8:C260)+1","v":{"v":632,"d":"0632"}},"花溪区黄河路街道党务政务服务中心","全额拨款",1,"20106063201",1,"A","管理岗位","承担本辖区内党务政务服务的相关工作；组织开展志愿服务等活动；组织开展各类党群文体活动：协调社会服务资源，提供文化、教育、体育等各种便民服务。","否","本科及以上",null,"不限专业","不限专业","1.中共党员（含预备党员）；\n2.具有与学历、专业相应的学位；\n3.定向招聘基层项目服务人员。","贵阳市经开区黄河路241号","赵灵\n0851-83839851"]
[null,null,{"$f":"MAX($C$8:C261)+1","v":{"v":633,"d":"0633"}},"花溪区黄河路街道社区事务服务中心","全额拨款",1,"20106063301",1,"A","管理岗位","组织开展公益服务；协助做好老龄工作；承担劳动保障、民政事务等具体事务性工作。","否","本科及以上",null,"不限专业","不限专业","1.具有与学历、专业相应的学位 ；\n2.定向招聘退役大学生士兵或随军家属。","贵阳市经开区黄河路241号","赵灵\n0851-83839851"]
[null,null,{"$f":"MAX($C$8:C262)+1","v":{"v":634,"d":"0634"}},"花溪区黄河路街道优化营商环境服务中心","全额拨款",1,"20106063401",1,"A","管理岗位","承担为辖区经济发展营造良好营商环境等相关工作，负责区域内工业、商业和服务业发展的规划、指导、协调和推进等服务工作，做好企业服务工作；负责组织实施辖区相关专业统计调查及各种普查和专项调查工作。","否","本科及以上",null,"工学（学科门类）","工学（学科门类）","1.具有与学历、专业相应的学位；\n2.定向招聘2026年度高校毕业生。","贵阳市经开区黄河路241号","赵灵\n0851-83839851"]
[{"$f":"MAX($A$1:A263)+1","v":119},"花溪区人民政府平桥街道办事处",{"$f":"MAX($C$8:C263)+1","v":{"v":635,"d":"0635"}},"花溪区平桥街道党务政务服务中心","全额拨款",1,"20106063501",1,"A","管理岗位","主要负责辖区内相关党务政务服务，驻辖区单位、企业的便民服务工作；组织开展志愿服务等活动；组织开展各类党群文体活动；协调社会服务资源，提供文化、教育、体育等各种便民服务。","否","本科及以上",null,"中国语言文学类（一级学科）、新闻传播学类（一级学科)","文学（学科门类）","1.中共党员（含预备党员）；       2.具有与学历、专业相应的学位。","贵阳市花溪区小河漓江路143号","徐杨\n0851-83891406"]
[null,null,{"$f":"MAX($C$8:C264)+1","v":{"v":636,"d":"0636"}},"花溪区平桥街道社区事务服务中心","全额拨款",1,"20106063601",1,"A","管理岗位","主要负责组织开展公益服务，协助管理公用设施和公共服务设施；协助开展物业管理工作；协助做好老龄工作；承担劳动保障、环境卫生、民政事务等具体事务性工作。","否","本科及以上",null,"法学（学科门类）","法学（学科门类）","1.具有与学历、专业相应的学位；    \n2.定向招聘2026年度高校毕业生。                           ","贵阳市花溪区小河漓江路143号","徐杨\n0851-83891406"]
[null,null,{"$f":"MAX($C$8:C265)+1","v":{"v":637,"d":"0637"}},"花溪区平桥街道优化营商环境服务中心","全额拨款",2,"20106063701",2,"A","管理岗位","主要负责为辖区经济发展营造良好营商环境等相关工作，负责区域内企业服务工作；开展对外交流合作、推介等相关服务工作；负责组织实施辖区相关专业统计调查及各种普查和专项调查工作。","否","本科及以上",null,"农学（学科门类）、经济学（学科门类）","农学（学科门类）、\n经济学（学科门类）","具有与学历、专业相应的学位。","贵阳市花溪区小河漓江路143号","徐杨\n0851-83891406"]
[{"$f":"MAX($A$1:A266)+1","v":120},"花溪区人民政府小孟街道办事处",{"$f":"MAX($C$8:C266)+1","v":{"v":638,"d":"0638"}},"花溪区小孟街道党务政务服务中心","全额拨款",2,"20106063801",1,"B","专业技术岗位","承担本辖区内相关党务政务服务，以及社会保障、住房保障、养老助残等直接面向群众和驻区单位、企业的便民服务工作。","否","本科及以上",null,"中国语言文学类（一级学科）、新闻传播学类（一级学科）","中国语言文学（一级学科）、新闻传播学（一级学科）、新闻与传播（专硕）","具有与学历、专业相应的学位。","贵阳市花溪区数安大道数安汇安楼G层","李雪\n0851-88576484"]
[{"$nulls":6},"20106063802",1,"A","管理岗位","承担本辖区内相关党务政务服务，以及社会保障、住房保障、养老助残等直接面向群众和驻区单位、企业的便民服务工作。","否","本科及以上",null,"不限专业","不限专业","1.中共党员（含预备党员）；\n2.具有与学历、专业相应的学位。","贵阳市花溪区数安大道数安汇安楼G层","李雪\n0851-88576484"]
[{"$f":"MAX($A$1:A268)+1","v":121},"花溪区人民政府金筑街道办事处",{"$f":"MAX($C$8:C268)+1","v":{"v":639,"d":"0639"}},"花溪区金筑街道党务政务服务中心","全额拨款",1,"20106063901",1,"A","管理岗位","负责党务政务服务工作；提供党务政策咨询等各类服务和资源保障；负责党建事务性工作；宣传党的路线、方针、政策等具体工作；办理党内有关业务。","否","本科及以上",null,"不限专业","不限专业","1.中共党员（含预备党员）；       2.具有与学历、专业相应的学位。","贵阳市花溪区鑫中路401号","胡太琴\n0851-83760012"]
[null,null,{"$f":"MAX($C$8:C269)+1","v":{"v":640,"d":"0640"}},"花溪区金筑街道综合治理服务中心","全额拨款",1,"20106064001",1,"A","管理岗位","从事社会治安综合治理、平安建设、化解矛盾纠纷、处理群众信访事项、维护社会稳定、网格化服务管理等工作。","否","本科及以上",null,"不限专业","不限专业","1.具有与学历、专业相应的学位；   \n2.定向招聘退役大学生士兵。","贵阳市花溪区鑫中路401号","胡太琴\n0851-83760012"]
[{"$f":"MAX($A$1:A270)+1","v":122},"观山湖区人力资源和社会保障局","0701","观山湖区人才交流服务中心","全额拨款",1,20107070101,1,"B","专业技术岗位","从事人才服务相关工作。","否","本科及以上",null,"工商管理类（一级学科）、公共管理类（一级学科）","管理学（学科门类）","具有与学历、专业相应的学位。","贵阳市观山湖区石林西路与7号路交叉口政务大厅1号楼5楼","袁胜蓝\n18985414638"]
[{"$f":"MAX($A$1:A271)+1","v":123},"观山湖区卫生健康局",{"v":702,"d":"0702"},"观山湖区金华镇中心卫生院","全额拨款",1,20107070201,1,"B","专业技术岗位","从事日常财务管理、预决算编制、资金管理、财务管理等事务性工作。","否","本科及以上",null,"会计学专业、财务管理专业、审计学专业","工商管理（一级学科）、工商管理（专硕）、会计（专硕）","1.具有与学历、专业相应的学位；       \n 2.具有初级及以上会计专业技术资格证书。","贵阳市观山湖区金华镇金华街151号","蔡承琴\n13765144181"]
[null,null,{"$f":"MAX($C$8:C272)+1","v":{"v":703,"d":"0703"}},"观山湖区百花湖镇卫生院","全额拨款",1,20107070301,1,"B","专业技术岗位","从事日常财务管理、预决算编制、资金管理、财务管理等事务性工作。","否","本科及以上",null,"会计学专业、财务管理专业、审计学专业","工商管理（一级学科）、工商管理（专硕）、会计（专硕）","1.具有与学历、专业相应的学位；        \n2.具有初级及以上会计专业技术资格证书。","贵阳市观山湖区百花湖镇百花大街6号","李月 \n13984194280"]
[{"$f":"MAX($A$1:A273)+1","v":124},"观山湖区统计局",{"$f":"MAX($C$8:C273)+1","v":{"v":704,"d":"0704"}},"观山湖区统计局调查中心（普查中心）","全额拨款",1,20107070401,1,"B","专业技术岗位","从事开展统计调查相关工作。","否","本科及以上",null,"经济学类（一级学科）、工商管理类（一级学科）","应用经济学（一级学科）、应用统计专业","具有与学历、专业相应的学位。","贵阳市观山湖区石林西路省地质科技园3号楼3楼","杨瑶\n15186969750"]
[{"$f":"MAX($A$1:A274)+1","v":125},"观山湖区百花湖镇人民政府",{"$f":"MAX($C$8:C274)+1","v":{"v":705,"d":"0705"}},"观山湖区百花湖镇党务政务服务中心","全额拨款",1,20107070501,1,"A","管理岗位","从事党务政务、社会保障、住房保障、养老助残、退役军人服务管理等相关工作。","否","本科及以上",null,"法学（学科门类）、中国语言文学类（一级学科）","法学（学科门类）、中国语言文学（一级学科）","1.具有与学历、专业相应的学位；\n2.定向招聘2026年度高校毕业生。","贵阳市观山湖区百花湖镇上街组","周倩\n18785039903"]
[null,null,{"$f":"MAX($C$8:C275)+1","v":{"v":706,"d":"0706"}},"观山湖区百花湖镇产业发展服务中心","全额拨款",1,20107070601,1,"A","管理岗位","从事优化营商环境、农业产业化等相关工作。","否","本科及以上",null,"管理学（学科门类）","管理学（学科门类）","1.具有与学历、专业相应的学位；\n2.定向招聘2026年度高校毕业生。"]
[null,null,{"$f":"MAX($C$8:C276)+1","v":{"v":707,"d":"0707"}},"观山湖区百花湖镇综合治理服务中心","全额拨款",1,20107070701,1,"B","专业技术岗位","从事社会治安综合治理、禁毒、信访维稳等相关工作。","否","本科及以上",null,"社会学类（一级学科）、公共管理类（一级学科）","社会学（一级学科）、公共管理（一级学科）","具有与学历、专业相应的学位。"]
[null,null,{"$f":"MAX($C$8:C277)+1","v":{"v":708,"d":"0708"}},"观山湖区百花湖镇农业农村综合服务中心","全额拨款",1,20107070801,1,"B","专业技术岗位","从事农业技术服务、粮食安全等农业农村相关工作。","否","本科及以上",null,"农学(学科门类)","农学(学科门类)","1.具有与学历、专业相应的学位；\n2.定向招聘2026年度高校毕业生。"]
[{"$f":"MAX($A$1:A278)+1","v":126},"观山湖区金华镇人民政府",{"$f":"MAX($C$8:C278)+1","v":{"v":709,"d":"0709"}},"观山湖区金华镇党务政务服务中心","全额拨款",1,20107070901,1,"A","管理岗位","从事相关党务政务服务，以及直接面向群众和驻辖区单位、企业的便民工作。","否","本科及以上",null,"不限专业","不限专业","1.具有与学历、专业相应的学位；\n2.定向招聘退役大学生士兵或随军家属。","贵阳市金华镇金悦路悦城智慧物流园区A区A栋","张颖\n18166987563"]
[null,null,{"$f":"MAX($C$8:C279)+1","v":{"v":710,"d":"0710"}},"观山湖区金华镇农业农村综合服务中心","全额拨款",2,20107071001,1,"B","专业技术岗位","从事农业种养殖相关工作。","否","本科及以上",null,"农学专业、植物保护专业、植物科学与技术专业、种子科学与工程专业、设施农业科学与工程专业、智慧农业专业、菌物科学与工程专业","农学（学科门类）","具有与学历、专业相应的学位。"]
[{"$nulls":6},20107071002,1,"B","专业技术岗位","从事畜牧兽医相关工作。","否","本科及以上",null,"动物医学专业、动物科学专业、动物药学专业、经济动物学专业、智慧牧业科学与工程专业、实验动物学专业、兽医公共卫生专业","农学（学科门类）","具有与学历、专业相应的学位。"]
[{"$f":"MAX($A$1:A281)+1","v":127},"观山湖区朱昌镇人民政府",{"$f":"MAX($C$8:C281)+1","v":{"v":711,"d":"0711"}},"观山湖区朱昌镇产业发展服务中心","全额拨款",1,20107071101,1,"A","管理岗位","从事优化营商环境、农业产业化等相关工作。","否","本科及以上",null,"不限专业","不限专业","1.具有与学历、专业相应的学位；\n2.定向招聘基层项目人员或观山湖区优秀村（社区）干部。","贵阳市观山湖区金钟大道236号","刘子瑜  15285007800"]
[null,null,{"$f":"MAX($C$8:C282)+1","v":{"v":712,"d":"0712"}},"观山湖区朱昌镇农业农村综合服务中心","全额拨款",1,20107071201,1,"B","专业技术岗位","从事农业农村经济发展、农业技术推广等工作。","否","本科及以上",null,"植物生产类（一级学科）、动物医学类（一级学科）","农学（学科门类）","具有与学历、专业相应的学位。"]
[{"$f":"MAX($A$1:A283)+1","v":128},"观山湖区人民政府云潭街道办事处",{"$f":"MAX($C$8:C283)+1","v":{"v":713,"d":"0713"}},"观山湖区云潭街道党务政务服务中心","全额拨款",1,20107071301,1,"A","管理岗位","从事退役军人服务管理相关工作，组织村（社区）开展各类党群文体活动，负责文化、教育、体育等各种便民服务。","否","本科及以上",null,"新闻传播学类\n（一级学科）、中国语言文学类（一级学科）","文学（学科门类）","具有与学历、专业相应的学位。","贵阳市观山湖区云潭北路650号云潭街道办事处","吴英\n18908516877"]
[null,null,{"$f":"MAX($C$8:C284)+1","v":{"v":714,"d":"0714"}},"观山湖区云潭街道优化营商环境服务中心","全额拨款",1,20107071401,1,"B","专业技术岗位","从事企业服务管理档案，辖区内投资服务，开展便民服务、配合、协助有关部门做好外来投资项目的审批和管理服务工作。","否","本科及以上",null,"工商管理类（一级学科）、经济学类（一级学科）","管理学（学科门类）","具有与学历、专业相应的学位。"]
[{"$f":"MAX($A$1:A285)+1","v":129},"观山湖区人民政府金华园街道办事处",{"$f":"MAX($C$8:C285)+1","v":{"v":715,"d":"0715"}},"观山湖区金华园街道党务政务服务中心","全额拨款",1,20107071501,1,"B","专业技术岗位","从事财务管理、资产管理、资金管理、涉农补贴、村（社区）财务管理等各类相关工作。","否","本科及以上",null,"经济学（学科门类）、会计学专业、财务管理专业、审计学专业","经济学（学科门类）、工商管理（一级学科）、工商管理（专硕）、会计（专硕）","1.具有与学历、专业相应的学位；\n2.定向招聘2026年度高校毕业生。","贵阳市观山湖区金岭路131号","周琳\n13984872416"]
[null,null,{"$f":"MAX($C$8:C286)+1","v":{"v":716,"d":"0716"}},"观山湖区金华园街道社区事务服务中心","全额拨款",2,20107071601,1,"B","专业技术岗位","从事公益服务、劳动保障、环境卫生、林业绿化、民政事务等各类社区事务服务相关工作。","否","本科及以上",null,"社会学类（一级学科）、公共管理类（一级学科）","社会学（一级学科）、公共管理（一级学科）","具有与学历、专业相应的学位。"]
[{"$nulls":6},20107071602,1,"A","管理岗位","从事社区事务服务管理等相关工作。","否","本科及以上",null,"社会学类（一级学科）、公共管理类（一级学科）","社会学（一级学科）、公共管理（一级学科）","具有与学历、专业相应的学位。"]
[null,null,{"$f":"MAX($C$8:C288)+1","v":{"v":717,"d":"0717"}},"观山湖区金华园街道优化营商环境服务中心","全额拨款",1,20107071701,1,"A","管理岗位","从事优化辖区营商环境服务管理等相关工作。","否","本科及以上",null,"工商管理类（一级学科）、经济学类（一级学科）","管理学（学科门类）","具有与学历、专业相应的学位。"]
[{"$f":"MAX($A$1:A289)+1","v":130},"观山湖区人民政府世纪城街道办事处",{"$f":"MAX($C$8:C289)+1","v":{"v":718,"d":"0718"}},"观山湖区世纪城街道社区事务服务中心","全额拨款",1,20107071801,1,"B","专业技术岗位","从事财务管理、资产管理、资金管理、涉农补贴、村（社区）财务管理等相关工作。","否","本科及以上",null,"经济学（学科门类）、会计学专业、财务管理专业、审计学专业","经济学（学科门类）、工商管理（一级学科）、工商管理（专硕）、会计（专硕）","1.具有与学历、专业相应的学位；\n2.定向招聘2026年度高校毕业生。","贵阳市观山湖区世纪城街道石龙路184号","陈晓兰           18096081052"]
[null,null,{"$f":"MAX($C$8:C290)+1","v":{"v":719,"d":"0719"}},"观山湖区世纪城街道综合治理服务中心","全额拨款",1,20107071901,1,"A","管理岗位","从事“12345”、网格化服务管理信息、群众来信来访、村(社区)上报等相关工作。","否","本科及以上",null,"法学类（一级学科）、社会学类（一级学科）、中国语言文学类（一级学科）","法学（一级学科）、社会学（一级学科）、中国语言文学（一级学科）","具有与学历、专业相应的学位。"]
[null,null,{"$f":"MAX($C$8:C291)+1","v":{"v":720,"d":"0720"}},"观山湖区世纪城街道优化营商环境服务中心","全额拨款",2,20107072001,1,"A","管理岗位","从事为辖区经济发展营造良好营商环境等相关工作；负责开展对外交流合作、推介等相关服务工作。","否","本科及以上",null,"经济学类（一级学科）、金融学类（一级学科）、经济与贸易类（一级学科）","理论经济学（一级学科）、区域经济学专业、国民经济学专业","具有与学历、专业相应的学位。"]
[{"$nulls":6},20107072002,1,"A","管理岗位","从事区域内工业、商业和服务业发展的规划、指导、协调和推进等服务工作，做好企业服务工作；负责协助开展统计工作。","否","本科及以上",null,"经济学类（一级学科）、金融学类（一级学科）、经济与贸易类（一级学科）","应用经济学（一级学科）、理论经济学（一级学科）","具有与学历、专业相应的学位。"]
[{"$f":"MAX($A$1:A293)+1","v":131},"观山湖区人民政府宾阳街道办事处",{"$f":"MAX($C$8:C293)+1","v":{"v":721,"d":"0721"}},"观山湖区宾阳街道优化营商环境服务中心","全额拨款",1,20107072101,1,"A","管理岗位","从事辖区内经济发展的规划、指导、协调和推进等服务工作，开展统计工作。","否","本科及以上",null,"经济学类（一级学科）、金融学类（一级学科）、统计学类（一级学科）、中国语言文学类（一级学科）、工商管理类（一级学科）、公共管理类（一级学科）、法学类（一级学科）、政治学类（一级学科）、马克思主义理论类（一级学科）","应用经济学（一级学科）、金融（一级学科）、应用统计（一级学科）、中国语言文学（一级学科）、工商管理（一级学科）、公共管理（一级学科）、法学（一级学科）、政治学（一级学科）、马克思主义理论（一级学科）","具有与学历、专业相应的学位。","贵阳市云岩区野鸭街200号","刘建敏\n15285118982\n唐庆宁\n13639122543"]
[null,null,{"$f":"MAX($C$8:C294)+1","v":{"v":722,"d":"0722"}},"观山湖区宾阳街道社区事务服务中心","全额拨款",1,20107072201,1,"A","管理岗位","从事辖区内劳动保障、老龄工作及民政事务等具体事务性工作。","否","本科及以上",null,"社会学类（一级学科）、中国语言文学类（一级学科）、工商管理类（一级学科）、公共管理类（一级学科）、法学类 （一级学科）、政治学类（一级学科）、马克思主义理论类（一级学科）","社会学（一级学科）、中国语言文学（一级学科）、工商管理（一级学科）、公共管理（一级学科）、法学（一级学科）、政治学（一级学科）、马克思主义理论（一级学科）","具有与学历、专业相应的学位。"]
[{"$f":"MAX($A$1:A295)+1","v":132},"观山湖区人民政府观山街道办事处",{"$f":"MAX($C$8:C295)+1","v":{"v":723,"d":"0723"}},"观山湖区观山街道社区事务服务中心","全额拨款",1,20107072301,1,"B","专业技术岗位","从事组织开展公益服务，协助做好老龄工作、管理公用设施和公共服务设施，承担劳动保障、环境卫生等具体事务性工作。","否","本科及以上",null,"公共管理类（一级学科）、社会学类（一级学科）","公共管理（一级学科）、社会学（一级学科）","具有与学历、专业相应的学位。","贵阳市观山湖区大关城市花园10栋","盛转玲\n18920522905"]
[{"$f":"MAX($A$1:A296)+1","v":133},"观山湖区人民政府金阳街道办事处",{"$f":"MAX($C$8:C296)+1","v":{"v":724,"d":"0724"}},"观山湖区金阳街道社区事务服务中心","全额拨款",1,20107072401,1,"A","管理岗位","从事公益服务、劳动保障、民政事务、法律咨询等具体事务性工作，协助管理公用设施和公共服务设施。","否","本科\n及以上",null,"法学类\n（一级学科）","法学\n（一级学科）","具有与学历、专业相应的学位。","贵阳市观山湖区碧海南路87号","陈军燕\n18508536070"]
[{"$f":"MAX($A$1:A297)+1","v":134},"中共息烽县委组织部","0901","息烽县党建服务中心（息烽县党代表联络服务中心）","全额拨款",2,20109090101,2,"A","管理岗位","负责基层党建相关工作。","否","本科及以上",null,"不限专业","不限专业","1.中共党员(含预备党员）；\n2.具有与学历、专业相应的学位。","贵阳市息烽县永阳街道中央广场3号楼","张登峰\n0851-87721196"]
[{"$f":"MAX($A$1:A298)+1","v":135},"中共息烽县委宣传部",{"v":902,"d":"0902"},"息烽县互联网舆情研究中心","全额拨款",1,20109090201,1,"A","管理岗位","从事网络信息传播管理、网络安全和信息安全保障等工作。","否","本科及以上",null,"计算机类（一级学科）","计算机科学与技术（一级学科）、网络空间安全（一级学科）","定向招聘2026年度高校毕业生。\n","贵阳市息烽县县府路26号（息烽县中央广场2号楼）","谢艳红\n0851-87721334"]
[{"$f":"MAX($A$1:A299)+1","v":136},"中共息烽县委社会工作部",{"v":903,"d":"0903"},"息烽县社会工作服务中心（息烽县志愿服务中心）","全额拨款",1,20109090301,1,"A","管理岗位","从事党务政务综合服务管理工作。","否","本科及以上",null,"思想政治教育专业、\n法学专业、社会工作专业、社会学专业、行政管理专业","思想政治教育专业、法学学科专业、法律(专硕)、社会工作(专硕)、社会学专业、社会学学科专业、行政管理专业",null,"贵阳市息烽县永阳街道县府路25号","罗红会\n0851-87728133"]
[{"$f":"MAX($A$1:A300)+1","v":137},"息烽县信访局",{"v":904,"d":"0904"},"息烽县人民群众来访接待服务中心","全额拨款",1,20109090401,1,"A","管理岗位","从事信访综合业务工作。","否","本科及以上",null,"法学类（一级学科）、中国语言文学类（一级学科）","法学（一级学科）、中国语言文学（一级学科）、法律(专硕)\n","1.具有与学历、专业相应的学位；                        2.定向招聘2026年度高校毕业生。","贵阳市息烽县永靖镇城南商业一条街农资孵化园三楼","李吉利\n0851-87725575"]
[{"$f":"MAX($A$1:A301)+1","v":138},"息烽县工业和信息化局",{"v":905,"d":"0905"},"息烽县工业企业服务中心（息烽县煤炭安全生产技术中心）","全额拨款",1,20109090501,1,"B","专业技术岗位","为煤炭安全生产提供技术支持和服务，推动工业经济发展。","否","本科及以上",null,"采矿工程专业、资源勘查工程专业、矿物加工工程专业","采矿工程专业、矿产普查与勘探专业、矿物加工工程专业","需下井从事煤矿安全检查工作及驻矿工作，建议男性报考。","贵阳市息烽县坪上工业园区电子商务运营中心3楼","胡国艳\n0851-87721384"]
[{"$f":"MAX($A$1:A302)+1","v":139},"息烽县自然资源局",{"v":906,"d":"0906"},"息烽县自然资源开发和生态修复中心","全额拨款",1,20109090601,1,"A","管理岗位","开展耕地保护、年度变更调查、矿山地质环境恢复治理、土地修复、耕地占补平衡、新增耕地、全域土地综合整治等工作。","否","本科及以上",null,"土地资源管理专业、测绘工程专业、遥感科学与技术专业、地理空间信息工程专业","测绘科学与技术（一级学科）、测绘工程专业、土地资源管理专业","1.具有与学历、专业相应的学位；\n2.定向招聘2026年度高校毕业生。","贵阳市息烽县永阳街道玄天东路20号","周仕美\n0851-87721298"]
[null,null,{"v":907,"d":"0907"},"息烽县空间规划服务中心","全额拨款",1,20109090701,1,"B","专业技术岗位","协助制定全县各级规划的近期和远期编制计划。","否","本科及以上",null,"城乡规划专业、城市设计专业、城市规划专业、人文地理与城乡规划专业、资源环境与城乡规划管理专业、自然地理与资源环境专业","城乡规划学（一级学科）、城市规划与设计(含：风景园林规划与设计）专业、城市规划(专硕）","具有与学历、专业相应的学位。","贵阳市息烽县永阳街道玄天东路20号"]
[null,null,{"v":908,"d":"0908"},"息烽县林业科技推广站\n（息烽县林木种苗站）","全额拨款",1,20109090801,1,"B","专业技术岗位","从事森林资源调查及管理、森林经营等工作。","否","本科及以上",null,"林学类（一级学科）、森林工程专业","林学（一级学科）、森林工程专业、林业（ 专硕）           ","具有与学历、专业相应的学位。","贵阳市息烽县永阳街道玄天东路20号"]
[null,null,{"v":909,"d":"0909"},"息烽县国有林场","全额拨款",2,20109090901,2,"B","专业技术岗位","从事森林资源调查设计、管理、生物多样性保护、野生动植物保护等。","否","本科及以上",null,"林学类（一级学科）、森林工程专业","林学（一级学科）、森林工程专业、林业（ 专硕）               ","具有与学历、专业相应的学位。","贵阳市息烽县永阳街道玄天东路20号"]
[{"$f":"MAX($A$1:A306)+1","v":140},"息烽县投资促进局",{"v":910,"d":"0910"},"息烽县投资促进局","全额拨款",1,20109091001,1,"A","管理岗位","从事产业研究、项目谋划及招商引资工作。","否","本科及以上",null,"化学专业、化学生物学专业、能源化学专业、材料科学与工程专业、无机非金属材料工程专业、新能源材料与器件专业、化学工程与工艺专业、制药工程专业、精细化工专业","化学（一级学科）、化学工程与技术（一级学科）、材料科学与工程（一级学科）\n","具有与学历、专业相应的学位。","贵阳市息烽县永靖镇坪上工业园区电子商务运营中心9楼","李刚萍\n0851-87725760"]
[null,null,{"v":911,"d":"0911"},"息烽县利用外资和招商引资项目代办服务中心","全额拨款",1,20109091101,1,"A","管理岗位","负责在县级审批项目和乡(镇)涉及县级权限审批事项的代办业务并为园区工业企业及全域招商企业提供协调服务。","否","本科及以上",null,"化学专业、化学生物学专业、能源化学专业、材料科学与工程专业、无机非金属材料工程专业、新能源材料与器件专业、化学工程与工艺专业、制药工程专业、精细化工专业","化学（一级学科）、化学工程与技术（一级学科）、材料科学与工程（一级学科）\n","1.具有与学历、专业相应的学位；\n2.定向招聘2026年度高校毕业生。","贵阳市息烽县永靖镇坪上工业园区电子商务运营中心9楼"]
[{"$f":"MAX($A$1:A308)+1","v":141},"息烽县流长镇人民政府",{"v":912,"d":"0912"},"息烽县流长镇党务政务服务中心（息烽县流长镇退役军人服务站）","全额拨款",1,20109091201,1,"B","专业技术岗位","从事党务政务服务中心相关工作。","否","本科及以上",null,"金融学类（一级学科）、经济学类（一级学科）、财政学类（一级学科）、工商管理类（一级学科）、计算机类（一级学科）、社会学类（一级学科）","经济学(学科门类)、工商管理（一级学科）、计算机科学与技术（一级学科）、网络空间安全（一级学科）、软件工程（一级学科）、电子信息(专硕)、社会学（一级学科）、工商管理(专硕)、会计(专硕)、社会工作(专硕)","1.具有与学历、专业相应的学位；\n2.定向招聘基层项目服务人员。","贵阳市息烽县流长镇乌江路59号","杨维文\n0851-87690142"]
[{"$f":"MAX($A$1:A309)+1","v":142},"息烽县鹿窝镇人民政府",{"v":913,"d":"0913"},"息烽县鹿窝镇综合治理服务中心","全额拨款",1,20109091301,1,"A","管理岗位","负责网格化服务管理信息、村上报等各类事件的统一接收、按责转办、督促落实、数据统计、“三减一规范”等工作。","否","大专及以上","不限专业","不限专业","不限专业","定向招聘息烽县优秀村（社区）干部","贵阳市息烽县鹿窝镇建文路13号","陈青青\n0851-87670018"]
[null,null,{"v":914,"d":"0914"},"息烽县鹿窝镇党务政务服务中心（息烽县鹿窝镇退役军人服务站）","全额拨款",1,20109091401,1,"B","专业技术岗位","负责日常财务收支、固定资产管理、编制年度预决算、涉农补贴、工资发放、财务票据管理等工作。","否","本科及以上",null,"会计学专业、金融学专业、财政学专业、经济学专业、经济统计学专业、财务管理专业","会计学专业、会计（专硕）、金融学（含：保险学）专业、金融（专硕）、财政学（含∶税收学）专业","具有与学历、专业相应的学位。","贵阳市息烽县鹿窝镇建文路13号"]
[{"$f":"MAX($A$1:A311)+1","v":143},"息烽县小寨坝镇人民政府",{"v":915,"d":"0915"},"息烽县小寨坝镇农业农村综合服务中心","全额拨款",2,20109091501,1,"B","专业技术岗位","负责镇域内林地权属、林地使用、森林资源保护、林业绿化、森林防火、生态环保、林业技术推广以及农业科技项目等相关工作。","否","本科及以上",null,"林学类（一级学科）、草学类（一级学科）、植物保护专业、植物科学与技术专业","林学（一级学科）、植物保护（一级学科）、草学（一级学科）","1.具有与学历、专业相应的学位；\n2.定向招聘2026年度高校毕业生。","贵阳市息烽县小寨坝镇磷城北路2号","唐文洁\n0851-87762321"]
[{"$nulls":6},20109091502,1,"B","专业技术岗位","负责辖区产业项目指导服务、工业信息化，做好区域内工业发展事务性工作；负责村镇建设、规划管理、农房建设监督管理。","否","本科及以上",null,"化学类（一级学科）、测绘类（一级学科）、建筑学专业、城乡规划专业、城市规划专业、资源环境与城乡规划管理专业、自然地理与资源环境专业、人文地理与城乡规划专业","化学（一级学科）、化学工程与技术（一级学科）、测绘科学与技术（一级学科）、建筑学（一级学科）、城市规划(专硕)","具有与学历、专业相应的学位。","贵阳市息烽县小寨坝镇磷城北路2号"]
[{"$f":"MAX($A$1:A313)+1","v":144},"息烽县温泉镇人民政府",{"v":916,"d":"0916"},"息烽县温泉镇综合治理服务中心","全额拨款",1,20109091601,1,"A","管理岗位","负责社会治安综合治理相关服务工作。","否","大专及以上","不限专业","不限专业","不限专业","定向招聘退役大学生士兵。","贵阳市息烽县温泉镇亲民路1号","杨佳\n0851-87781008"]
[null,null,{"v":917,"d":"0917"},"息烽县温泉镇农业农村综合服务中心","全额拨款",1,20109091701,1,"B","专业技术岗位","负责动物疫病防治、畜牧兽医等相关服务工作。","否","本科及以上",null,"中兽医学专业、动物医学专业、动物药学专业、动物科学专业、动植物检疫专业、兽医公共卫生专业、畜牧兽医专业\n","兽医学（一级学科）、畜牧(专硕)、兽医(专硕)、动物遗传育种与繁殖专业、动物营养与饲料科学专业","具有与学历、专业相应的学位。","贵阳市息烽县温泉镇亲民路1号"]
[{"$f":"MAX($A$1:A315)+1","v":145},"息烽县九庄镇人民政府",{"v":918,"d":"0918"},"息烽县九庄镇党务政务服务中心（息烽县九庄镇退役军人服务站）","全额拨款",1,20109091801,1,"B","专业技术岗位","从事财务相关工作。","否","本科及以上",null,"经济学类（一级学科）、金融学类（一级学科）、财政学类（一级学科）、会计学专业","经济学(学科门类)、会计学专业、会计(专硕)","具有与学历、专业相应的学位。","贵阳市息烽县九庄镇兴隆路164号","杨泽旭\n0851-87651090"]
[null,null,{"v":919,"d":"0919"},"息烽县九庄镇农业农村综合服务中心","全额拨款",2,20109091901,1,"A","管理岗位","从事环境卫生综合整治、森林资源保护、森林防火、林业技能推广等具体工作。","否","大专及以上","不限专业","不限专业","不限专业","定向招聘息烽县2025年“三支一扶”服务期满人员。","贵阳市息烽县九庄镇兴隆路164号"]
[{"$nulls":6},20109091902,1,"B","专业技术岗位","从事农业技术综合服务管理等相关工作。","否","本科及以上",null,"农学（学科门类）","农学（学科门类）","具有与学历、专业相应的学位。","贵阳市息烽县九庄镇兴隆路164号"]
[{"$f":"MAX($A$1:A318)+1","v":146},"息烽县永阳街道办事处",{"v":920,"d":"0920"},"息烽县永阳街道党务政务服务中心（息烽县永阳街道退役军人服务站）","全额拨款",1,20109092001,1,"B","专业技术岗位","从事基层群众文化服务等工作。","否","本科及以上",null,"新闻传播学类（一级学科）","新闻传播学（一级学科）、新闻与传播(专硕)",null,"贵阳市息烽县永阳街道虎城大道中段21号","朱喜艳\n0851-87717651"]
[{"$nulls":4},"全额拨款",1,20109092002,1,"B","专业技术岗位","从事基层单位财务、会计、出纳、预算、村（社区）财务相关工作。","否","本科及以上",null,"财政学专业、财务管理专业、会计学专业、审计学专业、会计专业","财政学专业、财政学（含∶税收学）专业、会计学专业、会计(专硕)、审计(专硕)",null,"贵阳市息烽县永阳街道虎城大道中段21号"]
[{"$f":"MAX($A$1:A320)+1","v":147},"中共修文县委办公室",1001,"修文县党政专用通信保障中心","全额拨款",2,"20110100101",2,"A","管理岗位","从事办公室日常工作，相关设备管理。","否","本科及以上",null,"不限专业","不限专业","1.中共党员（含预备党员）；\n2.具有与学历、专业相应的学位。","贵阳市修文县行政中心A区","汪婷\n 18785185767"]
[{"$f":"MAX($A$1:A321)+1","v":148},"中共修文县委组织部",{"$f":"MAX($C$8:C321)+1","v":1002},"修文县党建工作服务中心","全额拨款",1,"20110100201",1,"A","管理岗位","从事党建相关工作。","否","本科及以上",null,"不限专业","不限专业","1.中共党员（含预备党员）；\n2.具有与学历、专业相应的学位。\n                                                                                                                                                                                                                                                                                   ","贵阳市修文县行政中心A区","邹雪梅\n0851-82327011"]
[{"$f":"MAX($A$1:A322)+1","v":149},"中共修文县委政法委员会",{"$f":"MAX($C$8:C322)+1","v":1003},"修文县关爱中心","全额拨款",1,"20110100301",1,"A","管理岗位","从事关爱中心日常工作。","否","本科及以上",null,"不限专业","不限专业","1.中共党员（含预备党员）；\n2.具有与学历、专业相应的学位。\n                                                                                                                                                                                                                                                                                    ","贵阳市修文县行政中心A区","王丽\n0851-82322376"]
[{"$f":"MAX($A$1:A323)+1","v":150},"中共修文县委社会工作部",{"$f":"MAX($C$8:C323)+1","v":1004},"修文县社会工作服务中心","全额拨款",1,"20110100401",1,"A","管理岗位","从事组织、协调、活动开展等综合性管理工作。","否","本科及以上",null,"不限专业","不限专业","1.具有与学历、专业相应的学位；\n2.定向招聘2026年度高校毕业生。","贵阳市修文县行政中心A区","李晓雪\n18785065132"]
[{"$f":"MAX($A$1:A324)+1","v":151},"中共修文县委宣传部",{"$f":"MAX($C$8:C324)+1","v":1005},"修文县融媒体中心","全额拨款",1,"20110100501",1,"B","专业技术岗位","从事播音与主持、新闻媒体采编工作","否","本科及以上",null,"录音艺术专业、播音与主持艺术专业、新闻学专业、网络与新媒体专业、国际新闻与传播专业、数字媒体技术专业、新媒体技术专业、虚拟现实技术专业、编辑出版学专业、广播电视学专业","新闻传播学（一级学科）、新闻与传播（专硕）、广播电视（专硕）、广播电视艺术学专业","1.具有广播电视播音员主持人资格考试合格证；\n2.具有普通话一级乙等证书。","贵阳市修文县行政中心B区","罗毅\n0851-82370581"]
[{"$f":"MAX($A$1:A325)+1","v":152},"修文县人大常委会办公室",{"$f":"MAX($C$8:C325)+1","v":1006},"修文县人大代表联络服务中心","全额拨款",1,"20110100601",1,"A","管理岗位","从事县内各级人大代表的联络以及为人大代表开展活动提供服务和保障工作。","否","本科及以上",null,"不限专业","不限专业","具有与学历、专业相应的学位。","贵阳市修文县行政中心A区","余小六\n0851-82322432"]
[{"$f":"MAX($A$1:A326)+1","v":153},"修文县人民政府办公室",{"$f":"MAX($C$8:C326)+1","v":1007},"修文县信息服务中心","全额拨款",2,"20110100701",1,"A","管理岗位","从事办公室工作。","否","本科及以上",null,"不限专业","不限专业","具有与学历、专业相应的学位。","贵阳市修文县行政中心A区","万姝\n0851-82322464"]
[{"$nulls":6},"20110100702",1,"A","管理岗位","从事办公室工作。","否","本科及以上",null,"不限专业","不限专业","1.具有与学历、专业相应的学位；\n2.定向招聘2026年度高校毕业生。","贵阳市修文县行政中心A区","万姝\n0851-82322464"]
[{"$f":"MAX($A$1:A328)+1","v":154},"修文县发展和改革局",{"$f":"MAX($C$8:C328)+1","v":1008},"修文县大数据产业发展中心","全额拨款",1,"20110100801",1,"B","专业技术岗位","从事人工智能、区块链等新兴技术推广应用，从事大数据及信息化项目建设技术支持等工作。","否","本科及以上",null,"信息工程专业、人工智能专业、计算机科学与技术专业、软件工程专业、网络工程专业、数据科学与大数据技术专业、信息管理与信息系统专业、大数据管理与应用专业、智能科学与技术专业、通信工程专业","计算机科学与技术（一级学科）、软件工程（一级学科）、信息与通信工程（一级学科）、电子信息（专硕）","1.具有与学历、专业相应的学位；\n2.定向招聘2026年度高校毕业生。","贵阳市修文县行政中心B区","郑艳君\n0851-82328590"]
[{"$f":"MAX($A$1:A329)+1","v":155},"修文县工业和信息化局",{"$f":"MAX($C$8:C329)+1","v":1009},"修文县中小企业服务中心","全额拨款",1,"20110100901",1,"B","专业技术岗位","从事中小企业相关工作。","否","本科及以上",null,"电子信息类（一级学科）、电气类（一级学科）、机械设计制造及其自动化专业、机械电子工程专业、智能制造工程专业、采矿工程专业","矿业工程（一级学科）、电气工程（一级学科）、电子信息（专硕）、机械工程（一级学科）、电子科学与技术（一级学科）、信息与通信工程（一级学科）、机械（专硕）","具有与学历、专业相应的学位。","贵阳市修文县行政中心A区","阳吉勇\n19336602668"]
[{"$f":"MAX($A$1:A330)+1","v":156},"修文县财政局",{"$f":"MAX($C$8:C330)+1","v":1010},"修文县金融工作服务中心","全额拨款",1,"20110101001",1,"A","管理岗位","从事财务管理相关工作。","否","本科及以上",null,"财政学类（一级学科）、会计学专业、财务管理专业、审计学专业","应用经济学（一级学科）、工商管理（一级学科）、工商管理（专硕）、会计（专硕）、审计（专硕）、税务（专硕）","1.具有与学历、专业相应的学位；\n2.定向招聘2026年度高校毕业生。","贵阳市修文县行政中心B区","陈贤玲\n13608563409"]
[null,null,{"$f":"MAX($C$8:C331)+1","v":1011},"修文县洒坪镇财务服务中心","全额拨款",1,"20110101101",1,"B","专业技术岗位","从事财务管理相关工作。","否","本科及以上",null,"财政学类（一级学科）、会计学专业、财务管理专业、审计学专业","应用经济学（一级学科）、工商管理（一级学科）、工商管理（专硕）、会计（专硕）、审计（专硕）、税务（专硕）","具有与学历、专业相应的学位。","贵阳市修文县洒坪镇小坝村街上组135号","陈贤玲\n13608563409"]
[null,null,{"$f":"MAX($C$8:C332)+1","v":1012},"修文县六广镇财务服务中心","全额拨款",1,"20110101201",1,"A","管理岗位","从事财务管理相关工作。","否","本科及以上",null,"财政学类（一级学科）、会计学专业、财务管理专业、审计学专业","应用经济学（一级学科）、工商管理（一级学科）、工商管理（专硕）、会计（专硕）、审计（专硕）、税务（专硕）","具有与学历、专业相应的学位。","贵阳市修文县六广镇凤凰路1号","陈贤玲\n13608563409"]
[{"$f":"MAX($A$1:A333)+1","v":157},"修文县人力资源和社会保障局",{"$f":"MAX($C$8:C333)+1","v":1013},"修文县小额贷款担保中心","全额拨款",1,"20110101301",1,"A","管理岗位","从事办公室综合业务。","否","本科及以上",null,"不限专业","不限专业","1.具有与学历、专业相应的学位；\n2.定向招聘2026年度高校毕业生。","贵阳市修文县行政中心A区","吴红\n0851-82322078"]
[{"$f":"MAX($A$1:A334)+1","v":158},"修文县自然资源局",{"$f":"MAX($C$8:C334)+1","v":1014},"修文县地质灾害应急中心","全额拨款",1,"20110101401",1,"A","管理岗位","从事地质灾害应急相关工作。","否","本科及以上",null,"地理科学类（一级学科）、地质学类（一级学科）、地质类（一级学科）、测绘类（一级学科）、法学类（一级学科）、土地资源管理专业、建筑学专业、城乡规划专业","地理学（一级学科）、地质学（一级学科）、地质资源与地质工程（一级学科）、测绘科学与技术（一级学科）、城乡规划学（一级学科）、建筑学（一级学科）、法学（一级学科）、城市规划（专硕）、法律（专硕）、土地资源管理（专硕）、建筑学（专硕）","1.具有与学历、专业相应的学位；\n2.该岗位需经常开展户外作业，需适应户外工作环境。","贵阳市修文县行政中心B区","覃庆川\n0851-82322471"]
[null,null,{"$f":"MAX($C$8:C335)+1","v":1015},"修文县土地储备中心","全额拨款",2,"20110101501",2,"A","管理岗位","从事土地储备相关工作。","否","本科及以上",null,"地理科学类（一级学科）、地质学类（一级学科）、地质类（一级学科）、测绘类（一级学科）、法学类（一级学科）、土地资源管理专业、建筑学专业、城乡规划专业","地理学（一级学科）、地质学（一级学科）、地质资源与地质工程（一级学科）、测绘科学与技术（一级学科）、城乡规划学（一级学科）、建筑学（一级学科）、法学（一级学科）、城市规划（专硕）、法律（专硕）、土地资源管理（专硕）、建筑学（专硕）","具有与学历、专业相应的学位。\n","贵阳市修文县行政中心B区","覃庆川\n0851-82322471"]
[{"$f":"MAX($A$1:A336)+1","v":159},"修文县住房和城乡建设局",{"$f":"MAX($C$8:C336)+1","v":1016},"修文县房地产交易管理服务中心","全额拨款",1,"20110101601",1,"B","专业技术岗位","从事房开企业资质审查和房地产项目开发相关工作。","否","本科及以上",null," 土木工程专业、给排水科学与工程专业、建筑学专业、建筑电气与智能化专业、道路桥梁与渡河工程专业","土木工程（一级学科）、建筑学（一级学科）、建筑学（专硕）、土木水利（专硕）","具有与学历、专业相应的学位。","贵阳市修文县行政中心B区","余瑛\n18685142551"]
[{"$f":"MAX($A$1:A337)+1","v":160},"修文县交通运输局",{"$f":"MAX($C$8:C337)+1","v":1017},"修文县公路管理所","全额拨款",1,"20110101701",1,"B","专业技术岗位","从事公路管理相关工作。","否","本科及以上",null,"土木类（一级学科）","土木工程（一级学科）、土木水利（专硕）","1.具有与学历、专业相应的学位；\n2.定向招聘2026年度高校毕业生。","贵阳市修文县行政中心B区","余琴琴\n0851-82322047"]
[{"$f":"MAX($A$1:A338)+1","v":161},"修文县水务管理局",{"$f":"MAX($C$8:C338)+1","v":1018},"修文县河长制工作服务中心","全额拨款",1,"20110101801",1,"B","专业技术岗位","从事水利建设相关工作。","否","本科及以上",null,"水利类（一级学科）、给排水科学与工程专业","水利工程（一级学科）、土木水利（专硕）","具有与学历、专业相应的学位。","贵阳市修文县行政中心B区","何其睿\n0851-82322055"]
[{"$f":"MAX($A$1:A339)+1","v":162},"修文县农业农村局",{"$f":"MAX($C$8:C339)+1","v":1019},"修文县蔬菜生产管理站","全额拨款",1,"20110101901",1,"B","专业技术岗位","从事蔬菜产业服务等工作。","否","本科及以上",null,"植物生产类（一级学科）","作物学（一级学科）、园艺学（一级学科）、农业资源与环境（一级学科）、植物保护（一级学科）、农艺与种业（专硕）、资源利用与植物保护（专硕）","1.具有与学历、专业相应的学位；\n2.定向招聘2026年度高校毕业生。","贵阳市修文县行政中心B区","罗芬\n18285089282"]
[{"$f":"MAX($A$1:A340)+1","v":163},"修文县文体广电旅游局",{"$f":"MAX($C$8:C340)+1","v":1020},"修文县文化馆","全额拨款",1,"20110102001",1,"B","专业技术岗位","从事组织群众文化活动、繁荣群众文化事业，民族民间文化艺术遗产收集整理；文化宣传、文艺活动组织、文化培训及文化市场管理等工作。","否","本科及以上",null,"文化产业管理专业、舞蹈编导专业、舞蹈学专业、舞蹈教育专业、音乐教育专业","音乐与舞蹈学（一级学科）、\n戏剧与舞蹈学（一级学科）、舞蹈（专硕）","具有与学历、专业相应的学位。","贵阳市修文县行政中心B区","段玉婷\n18608509381"]
[{"$f":"MAX($A$1:A341)+1","v":164},"修文县卫生健康局",{"$f":"MAX($C$8:C341)+1","v":1021},"修文县人民医院","差额补贴",1,"20110102101",1,"B","专业技术岗位","从事单位财务工作。","否","本科及以上",null,"会计学专业、财务管理专业、审计学专业","工商管理（一级学科）、工商管理（专硕）、会计（专硕）、审计（专硕）","1.具有会计师及以上资格；\n2.具有与学历、专业相应的学位。","贵阳市修文县龙场镇翠屏东路42号","龚萍\n0851-82329255\n0851-82327995"]
[{"$f":"MAX($A$1:A342)+1","v":165},"修文县统计局",{"$f":"MAX($C$8:C342)+1","v":1022},"修文县乡镇统计服务中心","全额拨款",1,"20110102201",1,"B","专业技术岗位","从事统计、普查工作。","否","本科及以上",null,"统计学类（一级学科）、社会学类（一级学科）","统计学（一级学科）、社会学（一级学科）、\n应用统计（专硕）、统计学专业","具有与学历、专业相应的学位。","贵阳市修文县行政中心A区","姚秀丹\n0851-82322135"]
[{"$f":"MAX($A$1:A343)+1","v":166},"修文经开区管理委员会",{"$f":"MAX($C$8:C343)+1","v":1023},"修文县园区建设服务中心","全额拨款",1,"20110102301",1,"A","管理岗位","从事经开区产业发展、企业服务、招商、生态环保等工作。","否","本科及以上",null,"不限专业","不限专业","具有与学历、专业相应的学位。","贵阳市修文县贵钢大道","易华\n18285001857"]
[{"$f":"MAX($A$1:A344)+1","v":167},"修文县人民政府",{"$f":"MAX($C$8:C344)+1","v":1024},"修文县投资促进局","全额拨款",1,"20110102401",1,"A","管理岗位","从事招商引资工作。","否","本科及以上",null,"不限专业","不限专业","具有与学历、专业相应的学位。","贵阳市修文县行政中心A区","邓海燕\n0851-82372378"]
[{"$f":"MAX($A$1:A345)+1","v":168},"修文县大石布依族乡人民政府",{"$f":"MAX($C$8:C345)+1","v":1025},"修文县大石布依族乡综合治理服务中心","全额拨款",1,"20110102501",1,"B","专业技术岗位","从事城乡规划、房屋建设管理、数据统计、社会治安综合治理相关工作；协助开展物业管理工作。","否","本科及以上",null,"土木类（一级学科）、城乡规划专业、建筑学专业","土木工程（一级学科）、建筑学（一级学科）、建筑学（专硕）、城乡规划学（一级学科）、城市规划（专硕）、土木水利（专硕）","具有与学历、专业相应的学位。","贵阳市修文县大石布依族乡大石村街上组65号","赵斌\n15086292253"]
[{"$f":"MAX($A$1:A346)+1","v":169},"修文县六广镇人民政府",{"$f":"MAX($C$8:C346)+1","v":1026},"修文县六广镇农业农村综合服务中心","全额拨款",2,"20110102601",2,"B","专业技术岗位","从事动植物疫病防控；农业农村技术推广以及乡村振兴服务相关工作。","否","本科及以上",null,"农学（学科门类）","农学（学科门类）","具有与学历、专业相应的学位。","贵阳市修文县六广镇凤凰路1号","吴盼涛\n13037849315"]
[{"$f":"MAX($A$1:A347)+1","v":170},"修文县六屯镇人民政府",{"$f":"MAX($C$8:C347)+1","v":1027},"修文县六屯镇党务政务服务中心","全额拨款",1,"20110102701",1,"B","专业技术岗位","负责辖区内医保审核及政策咨询等相关工作。","否","本科及以上",null,"临床医学类（一级学科）、中医学类（一级学科）、中西医结合类（一级学科）、中药学类（一级学科）、药学类（一级学科）","临床医学（一级学科）、药学（一级学科）、中医学（一级学科）、中西医结合（一级学科）、中药学（一级学科）、药学（专硕）","具有与学历、专业相应的学位。","贵阳市修文县六屯镇都堡村中心组","吴娇\n 18585027136"]
[{"$f":"MAX($A$1:A348)+1","v":171},"修文县洒坪镇人民政府",{"$f":"MAX($C$8:C348)+1","v":1028},"修文县洒坪镇综合治理服务中心","全额拨款",1,"20110102801",1,"A","管理岗位","从事基层综合治理服务有关工作。","否","本科及以上",null,"不限专业","不限专业","定向招聘修文县优秀村（社区）干部。","贵阳市修文县洒坪镇青山村6号","徐艺桁\n13595198184"]
[{"$f":"MAX($A$1:A349)+1","v":172},"修文县六桶镇人民政府",{"$f":"MAX($C$8:C349)+1","v":1029},"修文县六桶镇农业农村综合服务中心","全额拨款",1,"20110102901",1,"A","管理岗位","从事基层农业发展相关工作。","否","本科及以上",null,"不限专业","不限专业","定向招聘修文县2025年“三支一扶”服务期满人员。","贵阳市修文县六桶镇盐井社区中心组62号","吕倩\n18885148712"]
[{"$f":"MAX($A$1:A350)+1","v":173},"修文县小箐镇人民政府",{"$f":"MAX($C$8:C350)+1","v":1030},"修文县小箐镇农业农村综合服务中心","全额拨款",1,"20110103001",1,"B","专业技术岗位","从事动植物疫病防控；农业农村技术推广以及乡村振兴服务相关工作。","否","本科及以上",null,"农学（学科门类）","农学（学科门类）","具有与学历、专业相应的学位。","贵阳市修文县小箐镇小箐东路10号","陈倩\n0851-82420012；18286365796；\n"]
[{"$f":"MAX($A$1:A351)+1","v":174},"修文县人民政府阳明洞街道办事处",{"$f":"MAX($C$8:C351)+1","v":1031},"修文县阳明洞街道党务政务服务中心","全额拨款",1,"20110103101",1,"A","管理岗位","从事社会保障、就业促进、协调劳动关系和劳动保障、医保等便民服务工作。","否","本科及以上",null,"不限专业","不限专业","具有与学历、专业相应的学位。","贵阳市修文县澳林电子商贸城对面大青村安置房10号楼","焦娇\n13721592560"]
[null,null,{"$f":"MAX($C$8:C352)+1","v":1032},"修文县阳明洞街道综合治理服务中心","全额拨款",1,"20110103201",1,"A","管理岗位","从事安全生产、防灾减灾、突发事件应对、城乡规划、住房保障等工作。","否","本科及以上",null,"不限专业","不限专业","具有与学历、专业相应的学位。","贵阳市修文县澳林电子商贸城对面大青村安置房10号楼","焦娇\n13721592560"]
[{"$f":"MAX($A$1:A353)+1","v":175},"修文县人民政府扎佐街道办事处",{"$f":"MAX($C$8:C353)+1","v":1033},"修文县扎佐街道农业农村综合服务中心","全额拨款",1,"20110103301",1,"A","管理岗位","从事生态环境保护服务相关工作。","否","本科及以上",null,"不限专业","不限专业","1.具有与学历、专业相应的学位；\n2.定向招聘2026年度高校毕业生。","贵阳市修文县扎佐街道\n襄阳南路83号","潘睿婷\n18985549228"]
[null,null,{"$f":"MAX($C$8:C354)+1","v":1034},"修文县扎佐街道优化营商环境服务中心","全额拨款",1,"20110103401",1,"A","管理岗位","从事辖区经济发展营造良好环境服务工作。","否","本科及以上",null,"不限专业","不限专业","1.具有与学历、专业相应的学位；\n2.定向招聘基层项目人员。","贵阳市修文县扎佐街道\n襄阳南路83号","潘睿婷\n18985549228"]
[{"$f":"MAX($A$1:A355)+1","v":176},"修文县人民政府景阳街道办事处",{"$f":"MAX($C$8:C355)+1","v":1035},"修文县景阳街道党务政务服务中心","全额拨款",1,"20110103501",1,"A","管理岗位","从事办公室日常工作。","否","本科及以上",null,"不限专业","不限专业","具有与学历、专业相应的学位。","贵阳市修文县景阳街道办事处（贵钢安置小区）","刘子涵\n0851-82320917   18327797445   "]
[null,null,{"$f":"MAX($C$8:C356)+1","v":1036},"修文县景阳街道优化营商环境服务中心","全额拨款",1,"20110103601",1,"A","管理岗位","从事办公室日常工作。","否","本科及以上",null,"不限专业","不限专业","1.具有与学历、专业相应的学位；\n2.定向招聘2026年度高校毕业生。","贵阳市修文县景阳街道办事处（贵钢安置小区）","刘子涵\n0851-82320917   18327797445   "]
[{"$f":"MAX($A$1:A357)+1","v":177},"修文县人民政府久长街道办事处",{"$f":"MAX($C$8:C357)+1","v":1037},"修文县久长街道综合治理服务中心","全额拨款",1,"20110103701",1,"A","管理岗位","从事综合治理服务相关工作。","否","本科及以上",null,"不限专业","不限专业","1.具有与学历、专业相应的学位；\n2.定向招聘退役大学生士兵或随军家属。","贵阳市修文县久长街道珑山大道20号","田睿睿 18311849426"]
[null,null,{"$f":"MAX($C$8:C358)+1","v":1038},"修文县久长街道农业农村综合服务中心","全额拨款",1,"20110103801",1,"A","管理岗位","从事农业农村相关工作。","否","本科及以上",null,"不限专业","不限专业","具有与学历、专业相应的学位。","贵阳市修文县久长街道珑山大道20号","田睿睿 18311849426"]
[{"$f":"MAX($A$1:A359)+1","v":178},"开阳县人民政府办公室",1101,"开阳县人工影响天气服务中心","全额拨款",1,20111110101,1,"B","专业技术岗位","从事人工增雨、防雹指挥调度，人工影响天气重点共产项目技术等工作。","否","本科及以上",null,"大气科学专业，应用气象学专业，气象技术与工程专业、智慧气象技术专业、电子信息工程专业","大气科学（一级学科）、电子信息（一级学科）","具有与学历、专业相应的学位。","贵阳市开阳县硒城街道刘育村","陈梅\n0851-87221220"]
[{"$f":"MAX($A$1:A360)+1","v":179},"开阳县民政局",1102,"开阳县社会福利中心","全额拨款",2,20111110201,1,"A","管理岗位","从事社会福利相关工作。","否","本科及以上",null,"法学类（一级学科）、社会学类（一级学科）","法学（一级学科）、社会学（一级学科）","具有与学历、专业相应的学位。","贵阳市开阳县开州大道7号","谢鑫\n15685307333"]
[{"$nulls":6},20111110202,1,"A","管理岗位","从事社会福利相关工作。","否","本科及以上",null,"法学类（一级学科）、社会学类（一级学科）","法学（一级学科）、社会学（一级学科）","1.具有与学历、专业相应的学位；\n2.定向招聘2026年度高校毕业生。 "]
[{"$f":"MAX($A$1:A362)+1","v":180},"开阳县自然资源局",1103,"开阳县森林防火专业队","全额拨款",2,20111110301,1,"B","专业技术岗位","从事森林资源保护相关工作。","否","本科及以上",null,"林学类(一级学科)、森林工程专业、木材科学与工程专业、林产化工专业","林学（一级学科）、林业工程（一级学科）","具有与学历、专业相应的学位。","贵阳市开阳县开洲大道172号","邱丽娟、张梅\n0851-87254857"]
[{"$nulls":6},20111110302,1,"B","专业技术岗位","从事森林资源保护相关工作。","否","本科及以上",null,"应急技术与管理专业、应急装备技术与工程专业、消防工程专业、抢险救援指挥与技术专业、火灾勘查专业","安全科学与工程（一级学科）","具有与学历、专业相应的学位。","贵阳市开阳县开洲大道172号","邱丽娟、张梅\n0851-87254857"]
[{"$f":"MAX($A$1:A364)+1","v":181},"开阳县文化和旅游局",1104,"开阳县文化馆","全额拨款",1,20111110401,1,"B","专业技术岗位","从事文化活动相关工作。","否","本科及以上",null,"表演专业、戏剧学专业、播音与主持艺术专业","艺术（一级学科）","具有与学历、专业相应的学位。","贵阳市开阳县开洲大道35号","单永贵\n13765022752"]
[{"$f":"MAX($A$1:A365)+1","v":182},"开阳县应急管理局",1105,"开阳县应急综合服务中心","全额拨款",2,20111110501,1,"A","管理岗位","从事应急管理、安全生产及防灾减灾工作。","否","本科及以上",null,"采矿工程专业、电气工程及其自动化专业、机械设计制造及其自动化专业、电气工程与智能控制专业","矿业工程（一级学科）、机械工程（一级学科）、电气工程（一级学科）","具有与学历、专业相应的学位。","贵阳市开阳县经开区三块石智能服务中心","张育倩\n13985568490"]
[{"$nulls":6},20111110502,1,"A","管理岗位","从事应急管理防灾、减灾、救灾资金管理工作。","否","本科及以上",null,"经济学专业、财政学专业、税收学专业、会计学专业、会计专业、审计学专业","财政学专业、会计学专业","具有与学历、专业相应的学位。"]
[{"$f":"MAX($A$1:A367)+1","v":183},"开阳县宅吉乡人民政府",1106,"开阳县宅吉乡党务政务服务中心","全额拨款",1,20111110601,1,"A","管理岗位","从事党务政务综合服务相关工作。","否","本科及以上",null,"不限","不限","1.具有与学历、专业相应的学位；\n2.定向招聘开阳县2025年“三支一扶”服务期满人员。","贵阳市开阳县宅吉乡街上","胡星\n0851-87330000"]
[{"$f":"MAX($A$1:A368)+1","v":184},"开阳县米坪乡人民政府",1107,"开阳县米坪乡农业农村综合服务中心","全额拨款",1,20111110701,1,"B","专业技术岗位","从事农业农村相关工作、林业、水利技术及技术推广、重大动物疫病防控、野生动物保护等相关工作。","否","本科及以上",null,"农学（学科门类）、农业工程类（一级学科）","农学（学科门类）、农业工程（一级学科）","1.具有与学历、专业相应的学位；\n2.定向招聘2026年度高校毕业生。","贵阳市开阳县米坪乡和谐大道18号","吴昊\n0851-87350001"]
[{"$f":"MAX($A$1:A369)+1","v":185},"开阳县龙水乡人民政府",1108,"开阳县龙水乡农业农村综合服务中心","全额拨款",1,20111110801,1,"A","管理岗位","从事农业农村相关工作，负责农村、水务、林业相关服务工作。","否","本科及以上",null,"不限","不限","1.具有与学历、专业相应的学位；\n2.定向招聘基层项目服务人员或定向招聘开阳县优秀村（社区）干部。","贵阳市开阳县龙水乡龙江村街上组96号","冉茂江\n18886376125"]
[null,null,1109,"开阳县龙水乡党务政务服务中心","全额拨款",1,20111110901,1,"A","管理岗位","从事旅游服务工作。","否","本科及以上",null,"旅游管理类（一级学科）、文化产业管理专业","旅游管理专业","具有与学历、专业相应的学位。"]
[{"$f":"MAX($A$1:A371)+1","v":186},"开阳县禾丰布依族苗族乡人民政府",1110,"开阳县禾丰布依族苗族乡党务政务服务中心","全额拨款",1,20111111001,1,"A","管理岗位","从事旅游服务相关工作。","否","本科及以上",null,"表演专业、戏剧学专业、播音与主持艺术专业","艺术（一级学科）","具有与学历、专业相应的学位。","贵阳市开阳县禾丰布依族苗族乡街上","黄伟\n18786756403"]
[{"$f":"MAX($A$1:A372)+1","v":187},"开阳县高寨苗族布依族乡人民政府",1111,"开阳县高寨苗族布依族乡党务政务服务中心","全额拨款",1,20111111101,1,"B","专业技术岗位","从事党务政务综合服务管理工作。","否","本科及以上",null,"工商管理类（一级学科）、音乐与舞蹈学类（一级学科）、设计学类（一级学科）、表演专业","工商管理（一级学科）、艺术（一级学科）、设计学（一级学科）","具有与学历、专业相应的学位。","贵阳市开阳县高寨苗族布依族乡爱民路9号","杨渝\n13885004615"]
[{"$f":"MAX($A$1:A373)+1","v":188},"开阳县金中镇人民政府",1112,"开阳县金中镇党务政务服务中心","全额拨款",1,20111111201,1,"A","管理岗位","从事党务政务综合服务管理工作，负责日常财务管理、资产管理、预决算编制、资金管理、涉农补贴、村级财务管理等具体事务性工作。","否","本科及以上",null,"经济学专业、财政学专业、税收学专业、会计学专业、会计专业、审计学专业","财政学专业、会计学专业","具有与学历、专业相应的学位。","贵阳市开阳县金中镇金府路1号","伍洋\n0851-87512067"]
[null,null,1113,"开阳县金中镇农业农村综合服务中心","全额拨款",1,20111111301,1,"B","专业技术岗位","从事农业农村相关工作，负责兽医检测相关工作。","否","本科及以上",null,"植物生产类（一级学科）、动物医学类（一级学科）、动物生产类（一级学科）、经济学类（一级学科）","作物学（一级学科）、畜牧学（一级学科）、兽医学（一级学科）、应用经济学（一级学科）","具有与学历、专业相应的学位。"]
[{"$f":"MAX($A$1:A375)+1","v":189},"开阳县楠木渡镇人民政府",1114,"开阳县楠木渡镇农业农村综合服务中心","全额拨款",1,20111111401,1,"B","专业技术岗位","从事农业农村相关工作，负责农业相关服务工作。","否","本科及以上",null,"农学（学科门类）、经济学类（一级学科）","农学（学科门类）、应用经济学（一级学科）","1.具有与学历、专业相应的学位；\n2.定向招聘2026年度高校毕业生。","贵阳市开阳县楠木渡镇临江村胜利路8号","孟开榜\n0851-87532243"]
[{"$f":"MAX($A$1:A376)+1","v":190},"开阳县龙岗镇人民政府",1115,"开阳县龙岗镇党务政务服务中心","全额拨款",1,20111111501,1,"A","管理岗位","从事党务政务综合服务管理工作。","否","本科及以上",null,"不限","不限","具有与学历、专业相应的学位。","贵阳市开阳县龙岗镇紫江大道45号","项蓉\n13708180867"]
[{"$f":"MAX($A$1:A377)+1","v":191},"开阳县花梨镇人民政府",1116,"开阳县花梨镇综合治理服务中心","全额拨款",1,20111111601,1,"B","专业技术岗位","从事综合治理相关工作。","否","本科及以上",null,"交通运输类（一级学科）","交通运输（一级学科）","1.具有与学历、专业相应的学位；\n2.定向招聘2026年度高校毕业生。","贵阳市开阳县花梨镇花梨大街310号","杨云\n18084304490"]
[{"$f":"MAX($A$1:A378)+1","v":192},"开阳县财政局",1117,"开阳县花梨镇财务服务中心","全额拨款",1,20111111701,1,"A","管理岗位","从事财务管理相关工作。","否","本科及以上",null,"经济学专业、财政学专业、税收学专业、会计学专业、会计专业、审计学专业","财政学专业、会计学专业","具有与学历、专业相应的学位。","贵阳市开阳县花梨镇花梨大街310号","杨云\n18084304490"]
[{"$f":"MAX($A$1:A379)+1","v":193},"开阳县永温镇人民政府",1118,"开阳县永温镇党务政务服务中心","全额拨款",1,20111111801,1,"A","管理岗位","从事党务政务服务相关工作。","否","本科及以上",null,"不限","不限","具有与学历、专业相应的学位。","贵阳市开阳县永温镇永金路12号","程梅\n18212761819"]
[{"$f":"MAX($A$1:A380)+1","v":194},"开阳县人民政府硒城街道办事处",1119,"开阳县硒城街道优化营商环境服务中心","全额拨款",1,20111111901,1,"A","管理岗位","从事优化营商环境相关工作。","否","本科及以上",null,"国际经济与贸易专业、贸易经济专业、国际经济发展合作专业","国际贸易学专业","具有与学历、专业相应的学位。","贵阳市开阳县硒城街道学良大道52号","谭绍英\n15286046045"]
[null,null,1120,"开阳县硒城街道综合治理服务中心","全额拨款",1,20111112001,1,"A","管理岗位","从事综合治理相关工作。","否","本科及以上",null,"法学类（一级学科）","法学（一级学科）","1.具有与学历、专业相应的学位；\n2.具有A类法律职业资格证书。"]
[null,null,1121,"开阳县硒城街道社区事务服务中心","全额拨款",1,20111112101,1,"B","专业技术岗位","从事农业农村相关工作。","否","本科及以上",null,"农学专业、动物医学专业、动植物检疫专业","蔬菜学专业、动物营养与饲料科学专业、基础兽医学专业","具有与学历、专业相应的学位。"]
[{"$f":"MAX($A$1:A383)+1","v":195},"开阳县人民政府云开街道办事处",1122,"开阳县云开街道社区事务服务中心","全额拨款",3,20111112201,1,"B","专业技术岗位","从事农业农村相关工作，负责农村、水务、林业相关服务工作。","否","本科及以上",null," 农学专业、植物保护专业、农业资源与环境专业、种子科学与工程专业、农业水利工程专业、设施农业科学与工程专业","农学（学科门类）","1.具有与学历、专业相应的学位；\n2.定向招聘2026年度高校毕业生。","贵阳市开阳县开州大道162号1号楼","蔡霞\n0851-87251012"]
[{"$nulls":6},20111112202,1,"A","管理岗位","从事公益服务相关工作。","否","本科及以上",null,"国际经济与贸易专业、贸易经济专业、国际经济发展合作专业","国际贸易学专业","具有与学历、专业相应的学位。"]
[{"$nulls":6},20111112203,1,"A","管理岗位","从事开展公益服务协助开展公用设施、老龄工作、劳动保障、民政事务等。","否","本科及以上",null," 人力资源管理专业、公共事业管理专业、劳动与社会保障专业","公共管理（一级学科）","具有与学历、专业相应的学位。"]
[{"$f":"MAX($A$1:A386)+1","v":196},"开阳县人民政府紫兴街道办事处",1123,"开阳县紫兴街道优化营商环境服务中心","全额拨款",1,20111112301,1,"A","管理岗位","从事辖区经济运行、协调和促进营商环境建设工作。","否","本科及以上",null,"不限","不限","1.具有与学历、专业相应的学位；\n2.定向招聘退役大学生士兵。","贵阳市开阳县紫兴街道东湖大道4网格14栋","向志峰\n0851-87311815"]
[null,null,1124,"开阳县紫兴街道农业农村综合服务中心","全额拨款",1,20111112401,1,"A","管理岗位","从事农业农村相关管理和服务工作。","否","本科及以上",null,"农学专业、植物保护专业、植物科学与技术专业、设施农业科学与工程专业","作物学（一级学科）、农业资源与环境（一级学科）、植物保护（一级学科）","具有与学历、专业相应的学位。"]
[null,null,1125,"开阳县紫兴街道党务政务服务中心","全额拨款",1,20111112501,1,"B","专业技术岗位","从事会计核算、财务管理工作。","否","本科及以上",null,"金融学专业、金融工程专业、金融数学专业、经济与金融专业、会计专业、会计学专业、财务管理专业、审计学专业","会计学专业、企业管理专业、金融（一级学科）、金融学专业","1.具有与学历、专业相应的学位；\n2.定向招聘2026年度高校毕业生。"]
[{"$f":"MAX($A$1:A389)+1","v":197},"贵州双龙航空港经济区",1401,"贵阳市南明区小碧布依族苗族乡党务政务服务中心","全额拨款",1,20114140101,1,"A","管理岗位","从事辖区内党务政务服务、社会保障、住房保障、养老助残等便民服务、退役军人服务管理等相关工作。","否","本科及以上",null,"法学(学科门类）、中国语言文学类（一级学科）、公共管理类（一级学科）","法学（学科门类）、中国语言文学（一级学科）、公共管理（一级学科）","1.中共党员（含预备党员）；\n2.具有与学历、专业相应的学位。","贵阳市南明区小碧布依族苗族乡龙洞堡机场路口三岔路","胡 晶  \n0851-85405758"]
[null,null,1402,"贵阳市南明区小碧布依族苗族乡农业农村综合服务中心","全额拨款",1,20114140201,1,"A","管理岗位","从事农业农村、林业、水利技术及技术推广、畜牧兽医、农田水利建设、防汛抗旱、森林资源保护等相关工作。","否","本科及以上",null,"农学（学科门类）、农业工程类(一级学科）、农业经济管理类(一级学科）","农学（学科门类）、农业工程类(一级学科）、农林经济管理类(一级学科）","1.具有与学历、专业相应的学位；\n2.具有1年及以上基层工作经历的高校毕业生。","贵阳市南明区小碧布依族苗族乡龙洞堡机场路口三岔路","胡 晶\n0851-85405757"]
[null,null,1403,"贵阳市南明区小碧布依族苗族乡综合治理服务中心","全额拨款",1,20114140301,1,"A","管理岗位","从事网格化服务管理、群众来信来访、社会治安综合治理等相关工作；负责配合处置、应对应急突发事件。","否","本科及以上",null,"法学(学科门类）、中国语言文学类（一级学科）、公共管理类（一级学科）、计算机类（一级学科）","法学（学科门类）、中国语言文学（一级学科）、公共管理（一级学科）、计算机科学与技术（一级学科）","1.具有与学历、专业相应的学位；\n2.具有1年及以上基层工作经历的高校毕业生。","贵阳市南明区小碧布依族苗族乡龙洞堡机场路口三岔路","胡 晶\n0851-85405756"]
[null,null,1404,"贵阳市南明区龙洞堡街道社区事务服务中心","全额拨款",2,20114140401,1,"A","管理岗位","从事辖区就业促进、社会保障、低保、社会救助、社会优抚、养老、助残、卫生健康等相关工作。","否","本科及以上",null,"不限","不限","具有与学历、专业相应的学位","贵阳市南明区见龙洞路48号卓信商务港10楼","梁宁 \n0851-85400218"]
[{"$nulls":6},20114140402,1,"A","管理岗位","从事辖区就业促进、社会保障、低保、社会救助、社会优抚、养老、助残、卫生健康等相关工作。","否","本科及以上",null,"不限","不限","1.具有与学历、专业相应的学位；\n2.定向招聘2026年度高校毕业生。"]
[null,null,1405,"贵阳市南明区龙洞堡街道优化营商环境服务中心","全额拨款",1,20114140501,1,"A","管理岗位","从事优化营商环境、企业服务、统计等相关工作。","否","本科及以上",null,"财政学类（一级学科）、统计学专业、会计学专业","应用经济学（一级学科）、会计学专业","具有与学历、专业相应的学位。","贵阳市南明区见龙洞路48号卓信商务港10楼","梁宁 \n0851-85400218"]
[{"$f":"MAX($A$1:A395)+1","v":198},"贵阳综合保税区",1601,"贵阳综合保税区应急管理服务保障中心","全额拨款",3,20116160101,1,"A","管理岗位","从事安全生产监管、应急管理等工作，负责防汛抗旱、危险化学品管理、应急处突等。","否","本科及以上",null,"安全工程专业、环境工程专业、应用化学专业","安全科学与工程专业、环境科学与工程专业、化学专业","具有与学历、专业相应的学位。","贵阳市白云区都拉营综保路349号","邓永利\n0851-86985803"]
[{"$nulls":6},20116160102,1,"A","管理岗位","从事安全生产监管、应急管理等工作，负责防汛抗旱、危险化学品管理、应急处突等。","否","本科及以上",null,"安全工程专业、环境工程专业、应用化学专业","安全科学与工程专业、环境科学与工程专业、化学专业","1.具有与学历、专业相应的学位；\n2.具备1年以上相关工作经验。\n","贵阳市白云区都拉营综保路349号","邓永利\n0851-86985803"]
[{"$nulls":6},20116160103,1,"A","管理岗位","从事安全生产、自然灾害预测预报信息化管理工作，负责中心信息网络建设、管理和维护。","否","本科及以上",null,"计算机科学与技术专业、通信工程专业、信息工程专业、信息资源管理专业","计算机科学与技术专业（一级学科）、信息与通信工程专业（一级学科）","1.具有与学历、专业相应的学位；\n2.具备2年以上相关工作经验。\n","贵阳市白云区都拉营综保路349号","邓永利\n0851-86985803"]